Workbook

Sheet Segto.30.01.2019 Isvimed RC (hidden)
A1: Código: FPAR03 | D1: PLAN DE MEJORAMIENTO ÚNICO
O2: PERÍODO FISCAL:
A3: Versión: 06 | D3: ENTIDAD: Instituto Social de Vivienda y Hábitat Municipio de Medellín – ISVIMED
Y4: =TODAY() -> 2020-07-29
A5: FORMULACIÓN DE LAS ACCIONES | N5: SEGUIMIENTO VIGENCIA 2016 (Auditoria 2017) Contraloría | S5: SEGUIMIENTO VIGENCIA 2017 (Auditoria 2018) Radicado E14772 y E 15503 (Contraloría) | X5: SEGUIMIENTO VIGENCIA 2019 (Realizado por: Isvimed)
A6: NOMBRE DE LA AUDITORÍA | B6: FECHA DE LA AUDITORÍA (aaaa-mm-dd) | C6: Nro. | D6: DESCRIPCIÓN DEL HALLAZGO | E6: CAUSAS DEL HALLAZGO | F6: HALLAZGO ADMINISTRATIVO CON INCIDENCIA | G6: ACCIÓN DE MEJORAMIENTO/CORRECTIVA | H6: PLAZO DE LA ACCIÓN | J6: OBJETIVO QUE SE BUSCA LOGRAR | K6: FECHA OBTENCIÓN DE RESUILTADOS | L6: RESPONSABLE | N6: CUMPLIMIENTO DE LA ACCIÓN % | O6: EFECTIVIDAD % | P6: OBSERVACIONES Vigencia 2018. | S6: CUMPLIMIENTO DE LA ACCIÓN % | T6: EFECTIVIDAD % | V6: NOMBRE DE LA AUDITORÍA | W6: SUBDIRECCIÓN | X6: TIEMPO | Z6: AVANCES (Subdirección) ENERO 2019 | AE6: CALIFICACIÓN (JOCI) | AJ6: AVANCES (Subdirección) MARZO 2019 | AO6: AVANCES (Subdirección) JUNIO 2019 | AT6: CALIFICACIÓN (JOCI) | AY6: AVANCES (Subdirección) OCTUBRE 2019 | BD6: AVANCES (Subdirección) DICIEMBRE 2019
F7: (Lista desplegable) | H7: FECHA INICIO (AA/MM/DD) | I7: FECHA TERMINACIÓN (AA/MM/DD) | L7: DEPENDENCIA | M7: FUNCIONARIO | X7: TIEMPO DE EJECUCIÓN PLAZO | Y7: TIEMPO RESTANTE PARA EL VENCIMIENTO | Z7: AUTOEVEALUACIÓN CON CORTE A: (DD/MM/AAAA) | AA7: REPORTE DE AVANCE (Diligencia Auditado) | AB7: RADICADO DE RESPUESTA | AC7: SOPORTES | AD7: CUMPLIMIENTO DE LA ACCIÓN % | AE7: SEGUIMIENTO A LA EFICACIA (Diligencia el Auditor) | AF7: CUMPLIMIENTO DE LA ACCIÓN % | AG7: CUMPLIMIENTO DE LA EFECTIVIDAD % | AH7: ESTADO DE LA EFECTIVIDAD | AI7: RECOMENDACIÓN | AJ7: AUTOEVEALUACIÓN CON CORTE A: (DD/MM/AAAA) | AK7: REPORTE DE AVANCE (Diligencia Auditado) | AL7: RADICADO DE RESPUESTA | AM7: SOPORTES | AN7: CUMPLIMIENTO DE LA ACCIÓN % | AO7: AUTOEVEALUACIÓN CON CORTE A: (DD/MM/AAAA) | AP7: REPORTE DE AVANCE (Diligencia Auditado) | AQ7: RADICADO DE RESPUESTA | AR7: SOPORTES | AS7: CUMPLIMIENTO DE LA ACCIÓN % | AT7: SEGUIMIENTO A LA EFICACIA (Diligencia el Auditor) | AU7: CUMPLIMIENTO DE LA ACCIÓN % | AV7: CUMPLIMIENTO DE LA EFECTIVIDAD % | AW7: ESTADO DE LA EFECTIVIDAD | AX7: RECOMENDACIÓN | AY7: AUTOEVEALUACIÓN CON CORTE A: (DD/MM/AAAA) | AZ7: REPORTE DE AVANCE (Diligencia Auditado) | BA7: RADICADO DE RESPUESTA | BB7: SOPORTES | BC7: CUMPLIMIENTO DE LA ACCIÓN % | BD7: AUTOEVEALUACIÓN CON CORTE A: (DD/MM/AAAA) | BE7: REPORTE DE AVANCE (Diligencia Auditado) | BF7: RADICADO DE RESPUESTA | BG7: SOPORTES | BH7: CUMPLIMIENTO DE LA ACCIÓN %
A8: AUDITORÍA ESPECIAL MEJORAMIENTO DE VIVIENDA | B8: junio de 2015 | C8: 29.7 | D8: Hallazgo administrativo 7 con presunta incidencia fiscal (corresponde a la observación 9 del informe preliminar). Incumplimiento resoluciones convenio 188: Mediante el convenio 188 de 2013, la Asociación de Mujeres Cabeza de Familia Unidas de Medellín — AMUCAFAUM realizó entre el 17 de abril y el 16 de junio de 2013, 100 diagnósticos para mejoramientos de vivienda en la comuna 6 del Municipio de Medellín. Posteriormente, el ISVIMED expide las resoluciones: 624 del 26 de julio de 2013, 702 del 20 de agosto de 2013 y 1132 de 2 de diciembre de 2013. En cada una de estas resoluciones se determina que este operador en calidad de oferente en el marco de la postulación colectiva para adelantar el proyecto, ejecutará las obras de mejoramiento de vivienda de las familias contenidas en ellas, cuyos diagnósticos se realizaron en el mencionado convenio. En los informes de interventoría de marzo 16 de 2015 para estas tres resoluciones se establece el incumplimiento del operador por: no cumplir el plazo, no facilitar la labor de interventoría, no garantizar la entrega de materiales de buena calidad y la finalización de algunas actividades a total satisfacción en cada una de las viviendas, suspender obras, no registrar en las bitácoras firmas del profesional técnico encargado por el operador en la residencia de las obras, no reportar cambios de obra, ni sustentarlos, no efectuar seguimiento y reparaciones necesarias en las viviendas donde se encontraron obras defectuosas. En el citado informe de interventoría correspondiente a la resolución 624, además de las causales anteriores, se menciona, no haber recibido en debida forma dos actos de licencia estructural expedidos por la curaduría cuarta de Medellín y no disponer de escombros y material de excavación en botadero oficial en algunas viviendas intervenidas. El daño cuantificado por la interventoría es de $28.656.646, más la indexación que deberá realizarse sobre esa cifra desde la fecha en la cual se debió acreditar la terminación de los mejoramientos hasta la fecha de devolución al ISVIMED. La resolución 624 contemplaba la ejecución de 44 mejoramientos de vivienda por valor de $332.291.405 en un plazo de 2 meses, que venció el 13 de octubre de 2013. Los correspondientes amparos de pago anticipado y cumplimiento contemplados en la póliza 42-44-101061546 de Seguros del Estado vencieron el 12 de febrero de 2014 y su cuantía es por $166.145.702 y $33.229.149,5 respectivamente. No se constituyó garantía de calidad y estabilidad. Para la resolución 702, la cuantificación del daño realizada por la interventoría en su informe de marzo 16 de 2015 es de $45.329.040, más la indexación que deberá realizarse sobre esa cifra desde el 3 de noviembre de 2013 fecha en la cual se debió acreditar la terminación de los mejoramientos hasta la fecha de devolución al ISVIMED. La resolución 702 contemplaba la ejecución de 30 mejoramientos por valor de $225.990.524 en un plazo de 2 meses, que venció el 3 de noviembre de 2013. Los amparos de pago anticipado y cumplimiento ontemplados en la póliza 42-44- 101061994 de Seguros del Estado vencieron el 2 de marzo de 2014 y sus cuantías son por $112.995.262 y $22.599.052,4 respectivamente. No se constituyó garantía de calidad y estabilidad. Para la resolución 1132, en la cual además de las causales generales anteriormente citadas, se menciona en el informe de interventoría de marzo 16 de 2015, no haber recibido en debida forma 11 de los 15 actos de licencia estructural expedidos por la curaduría cuarta de Medellín, la cuantificación del daño realizada por la interventoría es de $66.040.657, más la indexación que deberá realizarse sobre esa cifra desde la fecha en la cual se debió acreditar la terminación de los mejoramientos hasta la fecha de devolución al ISVIMED. La resolución 1132 contemplaba la ejecución de 27 mejoramientos por valor de $210.227.286 en un plazo de dos meses, que venció el 7 de febrero de 2014. Los amparos de pago anticipado y cumplimiento contemplados en la póliza 42-44- 101064616 de Seguros del Estado vencieron el 6 de abril de 2014 y sus cuantías son por $ 105.113.643 y $21.022.728 respectivamente. En esta resolución se exige una vigencia igual a la duración del contrato para las garantías de cumplimiento y pago anticipado, sin embargo, se constituye por dos meses más. En total el daño cuantificado por la interventoría para las resoluciones mediante las cuales se asignan los subsidios de mejoramiento de vivienda viabilizados en el convenio 188 de 2013, cuyo operador es la Asociación de Mujeres Cabeza de Familia Unidas de Medellín — AMUCAFAUM, asciende a $140.026.343. Actualmente, se encuentran varios beneficiarios de los subsidios, perjudicados, por no tener su vivienda en condiciones adecuadas a causa de obras inconclusas, o con calidad deficiente, algunos que han asumido por cuenta propia las reparaciones de obras defectuosas y otros que están pagando arriendo por encontrarse sus viviendas en condiciones que no permiten su habitabilidad, especialmente aquellos a los cuales se les asignó subsidio de tipo estructural, que el operador inició sin la correspondiente licencia. Aún es incierta la fecha de solución de estos problemas, ya que según lo expresado en respuesta a requerimiento de la Contraloría en este sentido, debe quedar en firme el acto administrativo que declare el siniestro o la ocurrencia del riesgo de cumplimiento, para proceder a la reasignación de los beneficiarios que no se les haya ejecutado o se les haya hecho parcialmente el mejoramiento. Además de que los plazos establecidos en las tres resoluciones mediante las cuales se asignaron los subsidios de mejoramiento de vivienda que AMUCAFAUM debía ejecutar, vencieron desde el 13 de octubre de 2013, 3 de noviembre de 2013 y 7 de febrero de 2014, se observa en la documentación analizada, que en reunión de seguimiento, el 24 de febrero de 2014, la interventoría, "le recalca al operador la pronta entrega de los mejoramientos y es un llamado al cumplimiento para no afectar pólizas". Es decir, que desde esa fecha ya se había concluido sobre el incumplimiento del operador, no obstante en la documentación evaluada se observa que solo hasta el 16 de marzo de 2015, la interventoría presenta su informe, donde solicita la declaratoria de ocurrencia del siniestro .o riesgo de incumplimiento, lo que constituye el primer paso para aplicar cualquier mecanismo previsto para los casos de incumplimiento, de acuerdo a lo establecido en el numeral 11 del manual de contratación del ISVIMED adoptado mediante resolución 020 de febrero 16 de 2014. De acuerdo con información suministrada por ISVIMED, a mayo 25 de 2015, estaban en estudio los informes de supervisión para citar al Asociado a descargos. En estas condiciones, se concluye que el ISVIMED, no ha actuado con la debida celeridad y oportunidad para lograr la recuperación de estos recursos, configurándose una presunta vulneración al principio de la gestión fiscal de la eficiencia, cuantificada en $140.026.343. Esta situación constituye un hallazgo administrativo con presunta incidencia fiscal. | F8: Fiscal | G8: Adelantar el procesos sancionatorio establecido en la ley 1474 de 2011 art. 86, para establecer la responsabilidad del no cumplimiento del objeto del convenio dentro del plazo otorgado para ello, y recuperar los recursos público a que haya lugar. | H8: 2015-06-30 | I8: 2015-09-01 | J8: recuperar los recursos destinados para la ejecución del convenio y no ejecutados y sancionar al asociado incumplido, si hay lugar a ello. | K8: 2015-09-01 | L8: subdirección de apoyo jurídico | M8: Jaison alvarado | N8: 70% | O8: 50% | P8: Pese a los documentos aportados como evidencia, La CGM en Auditoría Regular Vigencia 2016, califico el cumplimiento en el 70% y la efectividad en 50%. No se cerró. (Ver matriz de evaluación remitida en correo del 14 de noviembre de 2017). Mediante las resoluciones 1390 y 1391 de agosto de 2017, se modificaron las resoluciones 1058 y 1822 de 2014, con las que se subsanaron 56 beneficiarios pendientes de ejecución de mejoramiento por el operador ASOCASA (quedan faltando 53 beneficiarios) Sigue pendiente 27 beneficiarios que se deben subsanar del operador AMUCAFAUM (se proyectará la resolución para hacerlos en el 2018 en el programa de Cerrar la Brecha. Se mantiene la calificación dada por la contraloría hasta tanto se subsanen los beneficiarios que aún quedan pendientes. Avance febrero 2018: Se culmino el procedimiento sancionatorio adelantado en contra de AMUCAFAUM, mediante la resolucion 1855 del 19 de diciembre de 2017 con radicado S1097. En ocasion de ejecución de las resoluciones 624, 702 y 1132 de 2013. Se envia notificación electrónica a la aseguradora Seguros del Estado de la resolucion 1855 para lo efectos legales respectivos. (copia correo) Avance mayo 2018: El 23 de febrero de 2018, SEGUROS DEL ESTADO S.A presentó solicitud de revocatoria directa en contra de la Resolución 1855 del 19 de diciembre de 2017. El 20 de abril de 2018 se expidió la Resolución 403, por la cual se resolvió la solicitud de revocatoria directa en contra de la Resolución 1855 del 19 de diciembre de 2017. | S8: 0% | T8: 0% | V8: AUDITORÍA ESPECIAL MEJORAMIENTO DE VIVIENDA | W8: Dotación Jurídica | X8: =+I8-H8 -> 63 | Y8: =+I8-$Y$4 -> -1,793 | Z8: 2019-01-24 | AA8: Jurídica: El ISVIMED inicio un procedimiento sancionatorio contra AMUCAFAUM el 08 de julio de 2015 para recuperar el recurso entregado y no ejecutado, no obstante, en el transcurso del procedimiento sancionatario aludido, AMUCAFAUM culminó la ejecución de los recursos entregados y no ejecutados. | AB8: E19757 de 2018 (PAG 22) | AC8: 1. Resolucion 403 de 2018. 2. Resolución 1855 de 2017 | AD8: 100% | AE8: Seguimiento 04.01.2019: Este hallazgo continúa abierta de acuerdo al informe realizado por la Contraloría con radicado E15503 con fecha de 20.12.2018. Califican el cumplimiento de la acción y de la efectividad en 0%. | AF8: 50% | AG8: 50% | AH8: =IF($AG8="","",IF($AG8=100%,"Cerrado",IF($AG8<=39%,"CB",IF($AG8<=79%,"CM",IF($AG8<=99%,"CA",""))))) -> CM | AI8: Seguimiento 04.01.2019: Retomar el caso y realizar una trazabilidad del proyecto técnica, jurídica y financiera con cada uno de los soportes que validen el cierre de las acciones de manera efectiva. Las acciones deben estar dirigidas a recuperar los recursos. | AW8: =IF($AV8="","",IF($AV8=100%,"Cerrado",IF($AV8<=39%,"CB",IF($AV8<=79%,"CM",IF($AV8<=99%,"CA",""))))) -> 
A9: EVALUACIÓN FISCAL Y FINANCIERA VIGENCIA 2015 | B9: Abril de 2016 | C9: 1 | D9: Hallazgo Administrativo #1: Debilidades en el cumplimiento del Plan de Mejoramiento de la Auditoria Fiscal y Financiera; Si bien se identificó por parte del equipo auditor durante la evaluación del Plan de Mejoramiento en desarrollo de la Auditoría Fiscal y Financiera Vigencia 2015, que la entidad ha emprendido acciones para superar las deficiencias relacionadas con la demora en la liquidación de los convenios interadministrativos suscritos con la Empresa de Desarrollo Urbano –EDU y al proceso de nulidad y restablecimiento del derecho corresponde al pago de multas y sanciones a la DIAN, también es claro que la fecha establecida por la entidad fue el 31 de diciembre del 2014, y por desconocimiento no se solicitó a la Contraloría General de Medellín ampliación del plazo tal como lo establece la Resolución 149 de 2013. | F9: Administrativa | G9: Aunar esfuerzos para lograr las acciones de mejoramiento implementadas para los hallazgos adminstrativos de la auditoria fiscal y finaciera vigencia 2014 y realizar seguimiento mensual | H9: 2016-04-30 | I9: 2017-06-30 | J9: Dar cumplimiento a las acciones de mejoramiento implementadas en la auditoria de la vigencia 2014 | K9: 2017-06-30 | L9: Subdireccion de dotación de vivienda y habitat. Subdireccion Juridica, Subdireccion Administrativa y Finnaciera | M9: Claudia Patricia Cuartas Pescador. Isbel Cristina Aramburo Jaramillo, Francisco Javier Tabares Calderon | P9: LIQUIDACIÓN CONVENIOS EDU: Se aportó al equipo auditor la siguiente información: En memorando 400-157 del 30 de junio de 2017 (Paginas 1 A 9 y anexos No.1 A No.9, la subdirectora de Dotación argumenta las acciones tomadas y aporta los siguientes documentos: Acta de compensación (Convenio 284 de 2003; 142-143 de 2006; 4800000579 de 2004 y 515 de 2007). Acta de Compensación (Convenio Interadministrativo No.515 de 2007. Acta proceso de Cierre ( Convenio 4800000579 de 2004) Acta de ejecución (Convenio interadministrativo No.142-143 de 2006) Acta de liquidación definitiva (contrato 213-2009). Acta de liquidación Bilateral (Contrato 605-2008). Acta de liquidación (contrato interadministrativo No.46000035085 de 2011- otrosi 4600038437 de 2012). Comunicación remitida al Gerente de la EDU radicado S8069 del 16 de junio de 2017. Acta de reunión del 16 de mayo de 2017. La información aportada fue validada contra la certificación expedida por el contador del Isvimed el 12 de julio de 2017, de lo cual se pudo establecer que: A 31 de diciembre de 2012, los saldos de los libros de contabilidad de los convenios asociados al Hallazgo de la contraloría identificados en la Auditoría Especial Evaluación Fiscal y Financiera, pendientes por liquidar a esa fecha, ascendía a $8,464,623,946, representados en un total de 11 convenios. La situación a 30 de junio de 2017, muestra una disminución en el saldo de $-5,619,632,895, es decir, el -66,6%, quedando por liquidar un saldo de $2,844,991,051, saldo que está representado en 2 convenios: el 586 de 2004 (por $155,339,953); y el 002 del 2005 (por valor de $2,668,869,826). Se puede colegir un avance financiero de 66,6% y un avance en número de contratos liquidados del 81.8%, pues de los 11 convenios 9 registran en cero. Dado que esta acción no fue evaluada por la comisión de auditoría en la Auditoría Regular vigencia 2016 pero sí la retoma en Auditoria especial, no se califica, pues las evidencias se están aportando dentro de dicha auditoría | Q9: Seguimiento febrero 2018: Acta de ejecución parcial del Convenio 586 de 2004 que se firmó el 14 de noviembre del año 2017; este convenio no se puede liquidar completamente porque tiene recursos comprometidos con VIVA, sin embargo se realizó un cierre financiero para que los recursos no ejecutados fueran reintegrados al instituto por parte de la EDU lo cual efectivamente se realizó el 30 de noviembre de 2017. Se ha comunicado con la EDU para finiquitar los cierres financieros de los convenios 587 de 2004, 017 de 2005 y 138 de 2006, correo que a la fecha no ha sido contestado por parte de ellos. El convenio 002, esta en proceso de revisión para la liquidación, y se realizan cortes mensuales dentro de esta revisión, a la fecha se encuentra en un avance aproximado del 50%. Seguimiento a Marzo 2018: Dotación memorando 400-107 Se recibió respuesta a correos electrónicos enviados por parte del instituto a la EDU, donde se solicita una reunión, por tanto se programó dicha reunión para el 22 de marzo de 2018 con el contador del Instituto, la abogada de liquidaciones, el técnico de la subdireccion de dotación y el personal de la EDU con el fin de retomar los cierres financieros de los convenios 587 de 2004, 017 de 2005, 138 de 2006 y 605 de 2008. El convenio 002, esta en proceso de revisión para la liquidación, y se realizan cortes mensuales dentro de esta revisión, a la fecha se encuentra en un avance aproximado del 79,31%. Se anexa informe detallado con el estado de los convenios a la fecha. | R9: Avance a Mayo 2018: El 9 de noviembre de 2017, se suscribió con la EDU acta de ejecución parcial del convenio 586 de 2014, mediante la cual se reintegraron $155.339.953. Convenio 586 de 2004: El acta de ejecución parcial se firmó en noviembre de 2017; la EDU se encuentra depurando los saldos pendientes que reposan en la cuenta bancaria con el fin de finiquitar el cierre financiero. Convenio 138 de 2006: Pendiente de que la EDU entregue el soporte de los reintegros realizados en su momento de los recursos no ejecutados pertenecientes a este convenio; a la fecha esta información no ha sido suministrada y es indispensable para proceder con el cierre financiero. Convenio 587 de 2004: El acta de ejecución parcial donde se plantea el cierre financiero del proyecto se encuentra en revisión por parte del Contador del Isvimed. Convenio 017 de 2005: Se está a la espera de la revisión del acta de ejecución parcial (cierre financiero) del convenio por parte de la EDU. Convenio 605 de 2008: Se elaboró una aclaración al Acta de liquidación bilateral, con el fin de proceder con el reintegro de unos saldos pendientes al ISVIMED. Dicha aclaración se encuentra en proceso de firmas por ambas entidades y una vez esté firmada se procederá con el reintegro de los recursos por parte de la EDU. El convenio 002, esta en proceso de revisión para la liquidación, y se realizan cortes mensuales dentro de esta revisión, a la fecha se encuentra en un avance aproximado del 84%. Se conforma por parte de la EDU el personal encargado de la liquidación del convenio conformado por una abogada y un profesional administrativo, con el cual se intercambia información respecto al avance de la revisión financiera por parte del instituto. Se anexa informe detallado con el estado de los convenios a la fecha. Avance junio 2018: Admon y financiero: Avance según certificado del contador del 68.47%, pendiente por liquidar convenio 002 de 2005 por valor de $2.668.869.826. proceso que esta a cargo de la subdireccion de dotacion (anexo certificado contador). Se anexa informe detallado con el estado de los convenios a la fecha. | S9: 68% | T9: 68% | V9: EVALUACION FISCAL Y FINANCIERA VIGENCIA 2015 | W9: Dotación Administrativo y Financiero | X9: =+I9-H9 -> 426 | Y9: =+I9-$Y$4 -> -1,125 | Z9: 2018-12-31 | AA9: Seguimiento Diciembre de 2018: Se han realizado reuniones entre personal del ISVIMED y personal de la EDU y reuniones internas entre personal de la EDU, en las cuales se ha avanzado en la depuración de los saldos pendientes de los convenios por liquidar para proceder con el cierre financiero parcial. A la fecha los avances son los siguientes: Convenio 586 de 2004: El acta de ejecución parcial se firmó en noviembre de 2017; la EDU se encuentra depurando los saldos pendientes que reposan en la cuenta bancaria y en la ficha financiera; existe un saldo de un recurso pendiente por liberar, sin embargo se debe liquidar el contrato asociado a este recurso para proceder con su liberación y reintegrarlo al instituto; El 22 de noviembre se realizó una reunión entre personal técnico, jurídico y financiero del Isvimed y personal técnico, jurídico y financiero de la EDU y respecto a este convenio aún se continua a la espera que el contratista pendiente firme el acta de liquidación para proceder a liberar los recursos; una vez la EDU liquide los contratos que tiene pendientes, se procederá con la elaboración del acta de ejecución parcial para realizar el cierre financiero del convenio. Convenio 138 de 2006: El 22 de noviembre se realizó una reunión entre personal técnico, jurídico y financiero del Isvimed y personal técnico, jurídico y financiero de la EDU; la EDU entrega soportes que explican el reintegro de los recursos faltantes relacionados con el convenio del asunto; dicha información fue revisada por el Contador del Instituto, para proceder con la proyección del acta de ejecución parcial con el cierre financiero del proyecto; a la fecha estamos a la espera del borrador del acta por parte de la EDU para proceder con la revisión por ambas partes, firmas y facturación de los recursos pendientes por reintegrar. Convenio 587 de 2004: El acta de ejecución parcial donde se plantea el cierre financiero del proyecto fue revisada por el Isvimed y fue enviada para firmas de la EDU el 13 de noviembre de 2018; Sin embargo, en reunión sostenida el 14 de diciembre de 2018, la EDU hace devolución del acta de ejecución parcial para actualizar los cargos de los profesionales encargados de la revisión por parte de la EDU; se actualiza el acta, se firma y se envía a la EDU para firmas; pendiente de la devolución firmada para cerrar financieramente el proyecto ya que no hay recursos por reintegrar. Convenio 017 de 2005: El acta de ejecución parcial donde se plantea el cierre financiero del proyecto fue revisada por el Isvimed y fue enviada para firmas de la EDU el 21 de noviembre de 2018; Sin embargo, en reunión sostenida el 14 de diciembre de 2018, la EDU hace devolución del acta de ejecución parcial para actualizar los cargos de los profesionales encargados de la revisión por parte de la EDU; se actualiza el acta, se firma y se envía a la EDU para firmas; pendiente de la devolución firmada para cerrar financieramente el proyecto y y facturación de los recursos pendientes por reintegrar. Convenio 605 de 2008: Se elaboró una aclaración al Acta de liquidación bilateral elaborada en diciembre de 2015, con el fin de definir el balance financiero para subsanar unos saldos pendientes que se tienen en la cuenta bancaria procedentes de unos contratistas que no han sido liquidados por la EDU; El 25 de octubre de 2018 la EDU envía para revisión del Isvimed la aclaración del acta de liquidación; la misma fue revisada y firmada por el personal del Isvimed y se envía a la EDU para firmas; Sin embargo en reunión sostenida el 14 de diciembre de 2018, la EDU presenta observaciones a la aclaración, las cuales se atienden y se envía nuevamente para firmas; pendiente de la devolución firmada para cerrar financieramente el proyecto y y facturación de los recursos pendientes por reintegrar. Convenio 002 de 2005: Según mesa de trabajo realizada el pasado 22 de noviembre entre el equipo del Isvimed y el equipo de la EDU que se encuentra a cargo de la liquidación de este convenio, se acordó revisar con base en el valor real ejecutado avalado hasta el momento por parte del Isvimed, la posible liquidación de honorarios que se tienen pendientes por cobrar por parte de la EDU; se envió oficio con el consolidado de la revisión financiera realizada en el instituto, de tal manera que la EDU con base en este consolidado aprobado envíe informe con la liquidación de los honorarios a cobrar para proceder con la revisión y aprobación de los mismos. En la próxima mesa de trabajo se debe resolver el tema del reinicio del contrato, una vez reiniciado el mismo cuenta con 2 días para su vencimiento; Una vez vencido, se procederá con el proceso de liquidación técnica, administrativa y financiera y se cuenta con 6 meses para la liquidación bilateral. Se anexa informe detallado con el estado de los convenios a la fecha. | AB9: Correo 27/12/2018, Asunto: Avances a Diciembre Plan de Mejoramiento CGM | AC9: 1. INFORME CONVENIOS EDU AL 28 DE DICIEMBRE DE 2018 PARA SEGUIMIENTO CONTRALORIA 2. Acta de Reunion Isvimed_EDU 01 octubre_2018 3. Acta de Reunion Isvimed_EDU_14 diciembre_2018 4. Acta de reunión Isvimed_EDU_22 noviembre_2018 5. Actas Reunión Isvimed_EDU_25 octubre_2018 6. Certificado de saldos contables de convenios. | AD9: 60% | AE9: Seguimiento 04.01.2019: Este hallazgo continúa abierta de acuerdo al informe realizado por la Contraloría con radicado E15503 con fecha de 20.12.2018. Califican el cumplimiento de la acción y de la efectividad en 68%, el decir, un cumplimiento parcial. | AF9: 70% | AG9: 70% | AH9: CM | AI9: Seguimiento 04.01.2019: Continuar realizando las gestiones de conciliación técnicas, jurídicas y financieras. La acción debe estar direccionada en liquidar todos los convenios celebrados con la EDU que se encuentran en etapa de cierre.
H10: 2016-04-30 | I10: 2017-06-30 | K10: 2017-06-30 | L10: Subdireccion de dotación de vivienda y habitat. Subdireccion Juridica, Subdireccion Administrativa y Finnaciera | M10: Claudia Patricia Cuartas Pescador. Isbel Cristina Aramburo Jaramillo, Francisco Javier Tabares Calderon | P10: Con relación a la DIAN: Según recibo de caja No.7201 del 29 de noviembre de 2016, se recuperaron $6,493,010 por concepto de reintegro parcial de sancion interpuesta por la DIAN que inicialmente se había fijado en $29,580,000. Mediante radicado S14981 del 10 de octubre de 2017, la Subdirectora Jurídica remitió toda la documentacion actuada en torno a la situacion fáctica analizada con relacion al pago de $29,580,000 que realizó la entidad, para conocimiento y fines pertinentes. Dado que esta acción no fue evaluada por la comisión de auditoría en la Auditoría Regular vigencia 2016, no se califica y quedará pendiente del cierra conjunto con el organismo de control. Avance mayo 2018: Dado que la información ya fue remitida a las respectivas autoridades competentes, ya no quedan mas acciones a llevar a cabo por parte del Instituto. | S10: 100% | T10: 100% | W10: Administrativo y Financiero | AE10: Seguimiento 04.01.2019: Este hallazgo fue cerrada de acuerdo al informe realizado por la Contraloría con radicado E15503 con fecha de 20.12.2018. Califican el cumplimiento de la acción y de la efectividad en 100%. | AF10: 100% | AG10: 100% | AH10: Cerrado | AI10: No aplica.
A11: Auditoría Regular Vigencia 2015 | B11: 2016-09-27 | C11: 5 | D11: Hallazgo administrativo 5 con presunta incidencia disciplinaria. Incumplimiento del Objeto Contractual. En la ejecución del convenio 339 de 2014 celebrado entre Isvimed y Asomedellín, se presentó una baja ejecución en la realización de hasta 300 diagnósticos y ejecuciones de subsidios de mejoramiento a viviendas ubicadas en diferentes comunas de la ciudad de Medellín. A 30 de junio de 2016 se han entregado un total de ochenta y cinco (85) mejoramientos, en un tiempo de ejecución inicial de cinco (5) meses y tres ampliaciones para un total de 21 meses y 26 días. Finalizado el plazo inicial y sus respectivas adiciones, se evidencia que sólo se ha recibido a satisfacción un 29% de los mejoramientos pactados. Así mismo, con fecha de corte al 30 de junio de 2016, la asociación sin ánimo de lucro Asomedellín, ha recibido de la administración recursos por valor de $2.172.940.000 correspondiente al 69% del valor de los mejoramientos pactados en el convenio y los mejoramientos efectivamente realizados ascienden solamente a un valor de $1.133.372.685, es decir una diferencia de $1.039.567.315. Estas condiciones de pago pactadas en el convenio, ponen en riesgo los recursos públicos al entregar al contratista más del 65% del valor total pactado, cuando apenas iniciaba la ejecución de los mejoramientos diagnosticados. La condición en comento, da surgimiento a un Hallazgo administrativo con presunta incidencia disciplinaria, la cual deriva de una deficiencia en los controles establecidos por parte de la supervisión asignada por la administración, ya que el operador actualmente dispone de estos recursos y no se está prestando la ayuda social a las familias beneficiarias; recursos éstos, que de no ser devueltos unilateral y voluntariamente por parte del contratista o subsidiariamente recuperados a través del trámite de cobertura de riesgos de las Garantías exigidas por parte del Isvimed, podría abrirse paso a un detrimento patrimonial desencadenante de un hallazgo con incidencia fiscal. Dicha situación causó afectaciones a los beneficiarios que no lograron mejorar sus viviendas debido al incumplimiento por parte del operador, y refleja graves falencias en el control y la supervisión por parte del Isvimed. Las posibles causas que determinan la condición encontrada se reflejan en: debilidades en la planeación contractual, el incumplimiento por parte del contratista Asomedellín en la entrega de los mejoramientos e incumplimiento de lo establecido en la cláusula Octava del convenio “Compromisos del asociado”. | F11: Administrativo con presunta incidencia disciplinaria. | G11: En la etapa precontractual, es decir durante los estudios que realizamos, se modificó la forma de pago en los convenios, es decir que el supervisor pague de acuerdo a un avance significativo tanto en los diagnósticos como en la ejecución de acuerdo a lo pactado y asi garantizar que se entregan solo los recursos al operador de acuerdo con la ejecución. Se modificó en los estudios la forma de pago de la siguiente manera: En la etapa de diagnóstico: * Desembolso N° 1: Cuarenta por ciento (40%) del valor total de los diagnósticos a realizar, a título de anticipo. Previo cumplimiento de los requisitos en el convenio. * Desembolso N° 2: Valor total del diagnóstico, contra ejecución del ciento por ciento (100%) del mismo, recibido a entera satisfacción por parte del Supervisor del Convenio. Se cancela con la respectiva amortización del anticipo. En la etapa de Ejecucion: * Desembolso N° 3: Cuarenta por ciento (40%) del valor total de la resolución que asigna el subsidio, a título de anticipo. * Desembolso N° 4: Valor total del subsidio de mejoramiento, contra ejecución del ciento por ciento (100%) del mismo, recibido a entera satisfacción por parte del Supervisor del Convenio. Se cancela con la respectiva amortización del anticipo. Mantener en el plan de capacitación del instituto para el tema de Manual de Supervisión e interventoría del ISVIMED y realizar una nueva capacitación frente al tema para reforzarlo. Para los contratos que se suscriban a partir del año 2017, se contratarán las correspondientes interventorías externas. Liquidar el convenio 339 de 2013, celebrado con el operador ASOMEDELLIN y recuperar los recursos entregados y no ejecutados, mediante varios mecanismos como la liquidación bilateral, unilateral o acciones legales según el marco de ley. Reasignar las supervisiones que actualmente se asignaron, de manera proporcional a la carga laboral del funcionario encargado. | H11: 2016-09-27 | I11: 2017-06-30 | J11: * Ejercer una efectiva supervisión y garantizar que los desembolsos correspondan a la real ejecución de los contratos y/o convenios. *Entregar recursos al operador de una forma adecuada y con los respectivos recibos por parte de la supervision. *Garantizar una adecuada designación de los supervisores para los contratos o convenios. | K11: 2017-06-30 | L11: Dirección Generales, Subdireccion de Apoyo Juridico y Subdireccion de Dotación de vivienda y Habitat | M11: Humberto Iglesias, Isabel Aramburo y Bibiana Castaño. | N11: 50% | O11: 50% | P11: Se aportaron las evidencias al equipo auditor, quienes la calificaron con cumplimiento parcial y la dejaron vigente en el informe definitivo de auditoría regular vigencia 2016, con la siguiente anotación: "En cuanto al Convenio suscrito con ASOMEDELLÍN, si bien el Instituto ha emprendido acciones tendientes a lograr el objetivo de recuperar los recursos entregados y no ejecutados por el operador por valor de $957.517.749 (datos y valores actualizados según informe final de supervisión del 30 de mayo de 2017), a la fecha no se ha logrado la efectiva recuperación de estos recursos, por lo tanto una vez se remita el informe definitivo se procederá a dar traslado a la Contraloría Auxiliar de Responsabilidad Fiscal para lo de su competencia". No obstante, El ISVIMED mediante Resolución 1365 de 2017 recuperó $318´360.000, como resultado de gestion de cobro de la póliza de cumplimiento ante SURAMERICANA, los cuales fueron ingresados a la caja del Isvimed el 23 de octubre de 2017. La administración pretende recuperar los otros recursos mediante el proceso Jurídico de cobro coactivo. Mientras esto sucede, se mantiene la calificación dada por la Contraloría del 50%. Avance febrero 2018: Se envia comunicado a ASOMEDELLIN con asunto citación para notificación personal del mandamiento de pago N° 1 del 15/12/2017, con radicado S21487. Soporte: Auto N°1 Por le cual se libra mandamiento de pago en contra de ASOMEDELLIN con ocasion del convenio 339 de 2014. Referencia de cobro coactivo. En el programa cierre de brechas con vigencia 2018, se le dará solución a las familias liderado desde la subdirección de dotación. (Presentación informe de la subdirección) Avance mayo 2018: A la fecha se encuentran embargados 4 inmuebles de propiedad del representante legal y mediante auto N° 3 se ordenó seguir adelante con la ejecución. Avance a junio: Informe de cierre de brechas. | S11: 50% | T11: 50% | V11: Auditoría Regular Vigencia 2015 | W11: Jurídica | X11: =+I11-H11 -> 276 | Y11: =+I11-$Y$4 -> -1,125 | Z11: 2019-01-24 | AA11: Mediante contrato N° 657 de 2018, se realizaron los avaluos comerciales de los inmuebles embargados. Se pasara traslados de los avalúos al ejecutado y posteriormente se procederá con el secuestro. | AC11: Cuatro avaluos Comerciales. | AD11: 70% | AE11: Seguimiento 04.01.2019: Este hallazgo continúa abierta de acuerdo al informe realizado por la Contraloría con radicado E15503 con fecha de 20.12.2018. Califican el cumplimiento de la acción y de la efectividad en 50%, el decir, un cumplimiento parcial. | AF11: 50% | AG11: 50% | AH11: CM | AI11: Seguimiento 04.01.2019: Continuar con el proceso jurídico de tal manera que se haga efectivo los embargos y se recupere el recurso.
A12: Auditoría Regular Vigencia 2015 | B12: 2016-09-27 | C12: 6 | D12: Hallazgo administrativo 6 con presunta incidencia disciplinaria. Falencias en la Supervisión del Convenio 339 de 2014. Al verificar el cumplimiento de las labores de supervisión respecto al convenio 339 de 2014, el cual tiene por objeto “Aunar esfuerzos sociales, jurídicos, administrativos y financieros para realizar diagnósticos y ejecuciones de subsidio municipal para mejoramiento de viviendas ubicadas en el municipio de Medellín”, se encontraron debilidades en dicha labor, tales como: justificación para el otorgamiento de ampliaciones del plazo con poco avance de las obras, desembolso de recursos en una mayor proporción a lo efectivamente ejecutado y omisión de la obligación de poner en conocimiento tanto de la aseguradora como del gestor contractual el alto riesgo de incumplimiento del objeto contractual, con el fin de solicitar la declaratoria de la caducidad del convenio ya que se hacía evidente el bajo avance físico de las obras. La condición anotada contraria lo estipulado en la Ley 1474 de 2011, Artículo 83, que reza: “Supervisión e interventoría contractual. Con el fin de proteger la moralidad administrativa, de prevenir la ocurrencia de actos de corrupción y de tutelar la transparencia de la actividad contractual, las entidades públicas están obligadas a vigilar permanentemente la correcta ejecución del objeto contratado a través de un supervisor o un interventor, según corresponda. La supervisión consistirá en el seguimiento técnico, administrativo, financiero, contable, y jurídico que sobre el cumplimiento del objeto del contrato, es ejercida por la misma entidad estatal cuando no requieren conocimientos especializados. Para la supervisión, la Entidad estatal podrá contratar personal de apoyo, a través de los contratos de prestación de servicios que sean requeridos” Y, por su parte el artículo 85 de esta misma codificación, señala: “Facultades y deberes de los supervisores y los interventores. La supervisión e interventoría contractual implica el seguimiento al ejercicio del cumplimiento obligacional por la entidad contratante sobre las obligaciones a cargo del contratista. Los interventores y supervisores están facultados para solicitar informes, aclaraciones y explicaciones sobre el desarrollo de la ejecución contractual, y serán responsables por mantener informada a la entidad contratante de los hechos o circunstancias que puedan constituir actos de corrupción tipificados como conductas punibles, o que puedan poner o pongan en riesgo el cumplimiento del contrato, o cuando tal incumplimiento se presente”. Por todo lo anterior, se genera un hallazgo administrativo con presunta incidencia disciplinaria, como quiera que el hecho evidencia graves fallas en el control y en la supervisión ejercida por el Instituto, respecto al cumplimiento del objeto contractual por parte del operador, el cual a 30 de junio de 2016, fecha de terminación del contrato, no logró ejecutar los 291 mejoramientos diagnosticados y aprobados por el Isvimed, afectando los beneficiaros de dicho subsidio, quienes a la fecha no gozan de dicho beneficio por parte del Municipio de Medellín. Dentro de las posibles causas que determinan la condición encontrada se pueden citar: la falta de conocimiento sobre las funciones, responsabilidades y deberes de la supervisión: la existencia de procedimientos o normas inadecuadas, obsoletas o poco prácticas para el ejercicio de la labor y la sobrecarga de trabajo y responsabilidades de supervisión. | F12: Administrativo con presunta incidencia disciplinaria. | G12: Mantener en el plan de capacitación del instituto para el tema de Manual de Supervisión e interventoría del ISVIMED y realizar una nueva capacitación frente al tema para reforzarlo. Para los contratos que se suscriban a partir del año 2017, se contratarán las correspondientes interventorías externas. Liquidar el convenio 339 de 2013, celebrado con el operador ASOMEDELLIN y recuperar los recursos entregados y no ejecutados, mediante varios mecanismos como la liquidación bilateral, unilateral o acciones legales según el marco de ley. Reasignar las supervisiones que actualmente se asignaron, de manera proporcional a la carga laboral del funcionario encargado. | H12: 2016-09-27 | I12: 2017-06-30 | J12: * Ejercer una efectiva supervisión y garantizar que los desembolsos correspondan a la real ejecución de los contratos y/o convenios. *Entregar recursos al operador de una forma adecuada y con los respectivos recibos por parte de la supervision. *Garantizar una adecuada designación de los supervisores para los contratos o convenios. | K12: 2017-06-30 | L12: Direccion General, Subdireccion de Apoyo Juridico y Subdireccion de Dotación de vivienda y Habitat | M12: Humberto Iglesias; Isabel Aramburo y Bibiana Castaño. | N12: 50% | O12: 50% | P12: Se aportaron las evidencias al equipo auditor, quienes la calificaron con cumplimiento parcial y la dejaron vigente en el informe definitivo de auditoría regular vigencia 2016, con la siguiente anotación: "En cuanto al Convenio suscrito con ASOMEDELLÍN, si bien el Instituto ha emprendido acciones tendientes a lograr el objetivo de recuperar los recursos entregados y no ejecutados por el operador por valor de $957.517.749 (datos y valores actualizados según informe final de supervisión del 30 de mayo de 2017), a la fecha no se ha logrado la efectiva recuperación de estos recursos, por lo tanto una vez se remita el informe definitivo se procederá a dar traslado a la Contraloría Auxiliar de Responsabilidad Fiscal para lo de su competencia". No obstante, El ISVIMED mediante Resolución 1365 de 2017 recuperó $318´360.000, como resultado de gestion de cobro de la póliza de cumplimiento ante SURAMERICANA, los cuales fueron ingresados a la caja del Isvimed el 23 de octubre de 2017. La adminsitración pretende recuperar los otros recursos mediante el proceso Jurídico de cobro coactivo. Mientras esto sucede, se mantiene la calificación dada por la Contraloría del 50%. Seguimiento febrero 2018: Se envia comunicado a ASOMEDELLIN con asunto citación para notificaión personal del mandamiento de pago N° 1 del 15/12/2017, con radicado S21487. Soporte: Auto N°1 Por le cual se libra mandamiento de pago en contra de ASOMEDELLIN con ocasion del convenio 339 de 2014. Referencia de cobro coactivo. En el programa cierre de brechas con vigencia 2018, se le dará solucion a las familias. Avance mayo 2018: A la fecha se encuentran embargados 4 inmuebles de propiedad del representante legal y mediante auto N° 3 se ordenó seguir adelante con la ejecución. | S12: 50% | T12: 50% | V12: Auditoría Regular Vigencia 2015 | W12: Jurídica | X12: =+I12-H12 -> 276 | Y12: =+I12-$Y$4 -> -1,125 | Z12: 2019-01-24 | AA12: Mediante contrato N° 657 de 2018, se realizaron los avaluos comerciales de los inmuebles embargados. Se pasara traslados de los avalúos al ejecutado y posteriormente se procederá con el secuestro. | AC12: Cuatro avaluos Comerciales. | AD12: 70% | AE12: Seguimiento 04.01.2019: Este hallazgo continúa abierta de acuerdo al informe realizado por la Contraloría con radicado E15503 con fecha de 20.12.2018. Califican el cumplimiento de la acción y de la efectividad en 50%, el decir, un cumplimiento parcial. | AF12: 0.5 | AG12: 50% | AH12: CM | AI12: Seguimiento 04.01.2019: Continuar con el proceso jurídico de tal manera que se haga efectivo los embargos y se recupere el recurso.
A13: Auditoría Regular Vigencia 2015 | B13: 2016-09-27 | C13: 10 | D13: Hallazgo administrativo 10 con presunta incidencia disciplinaria. Incumplimiento de las obligaciones contractuales. El Instituto Social de Vivienda y Hábitat de Medellín –Isvimed expidió la Resolución No. 271 del 11 de abril de 2013, por medio de la cual asignó subsidios municipales en dinero a 158 grupos familiares beneficiarios de la Organización Popular de Vivienda Funcodent, para la adquisición de vivienda nueva en el proyecto de interés prioritario Torres del Este II. El 30 de agosto de 2013, Isvimed aprobó y autorizó a través de la Fiduciaria, Alianza Fiduciaria S.A., garante de estos recursos, el pago del primer desembolso por valor de $391.192.200 a la OPV Funcodent sin haberse constituido para la fecha las pólizas que ampararan estos recursos. Esta situación constituye una presunta vulneración a los principios de Responsabilidad contenido en el artículo 26º de la Ley 80 de 1993, y el principio de eficacia de que trata el artículo 8º de la ley 42 de 1993, sin perjuicio del incumplimiento respecto a la finalidad del procedimiento establecido en la Resolución Interna No. 271 de 2013 artículo tercero donde establece que: “Esta entidad autorizará el pago de los subsidios asignados, en proporción al desarrollo del proyecto y con la presentación de las pólizas de garantía, constituidas por parte del Constructor en favor de la Organización Popular de Vivienda Funcodent y del Isvimed, así como contra entrega del informe de avance de obra certificado por la interventoría y la Subdirección Técnica del Instituto”. La falta de controles en los procesos de contratación puede generar riesgos en los recursos entregados. Lo anterior, configura un hallazgo administrativo con posible incidencia disciplinaria. | F13: Administrativo con presunta incidencia Disciplinaria | G13: En vista de la situación encontrada, desde noviembre de 2014 se suspendieron los desembolsos y por ahora se mantendrá esa postura, hasta tanto no se dé cumplimiento al requisito de las pólizas y/o garantías y a los demás que complementan los procedimientos y normas vigentes. Se implementará y aplicará en lo sucesivo para la autorización de los desembolsos a las OPV, un instructivo para pagos, el cual contendrá todos los requisitos necesarios, incluyendo las pólizas y/o garantías a que hubiere lugar, para autorizar el desembolso inicial, los desembolsos parciales y el pago final. | H13: 2016-09-27 | I13: 2018-06-30 | J13: Establecer las medidas necesarias para la protección efectiva delos recursos públicos. | K13: 2018-06-30 | L13: Subdireccion de Dotación de vivienda y Habitat | M13: Bibiana Castaño y Guiller Alvarez | N13: 50% | O13: 50% | P13: Las evidencias aportadas sobre el cumplimiento de esta acción, fueron calificadas por la CGM, con una eficacia parcial de 50%, en el Informe Definitivo de Auditoría Regular vigencia 2016, de noviembre 9 de 2017, consignó lo siguiente: "Teniendo en cuenta que el plazo de realización de la acción de mejora está establecido hasta el 30 de junio de 2018, y al compromiso que adquiere el Instituto Social de Vivienda y Hábitat de Medellín ISVIMED de recuperar dicho proyecto, se mantiene el hallazgo administrativo; pero que de no ser recuperado, acarreará el traslado del presunto hallazgo fiscal a la dependencia respectiva, en los términos definidos en el artículo 8 de la Ley 42 de 1993, tasado en $3.529.729.800." Por tanto, esta acción tampoco se califica en este informe. Avance febrero 2018: Actas de reunión de informe de Torres del Este. de fecha de octubre y noviembre 2017. (Memorando 600-057) Se cuenta con INSTRUCTIVO PARA REALIZAR DESEMBOLSOS A LAS OPV montado en la plataforma SIFI con código : I-GAF-11 y vigencia 08/03/2017, el cual es aplicado por el área responsable. Avance mayo 2018, dotación: Equipo técnico - social realiza seguimiento del proyecto torres del Este y FUNCODENT. Los desembolsos estan suspendidos desde diciembre de 2014. Se anexa copia: Informe técnico Torres del Este I y II. Acta de la Mesa Interinstitucional OPV, Ruta de trabajo Torres del Este y comunicado al Ministerio de Vivienda ruta de Torres del Este. Copia de la Porroga de Licencia de Construcción C2- 0039 del 17/02/2018 con vigencia hasta el 05/02/2019, ademas de 2 capacitaciones Propiedad Horizontal de Torres del Este. mesa interinstitucional de OPV. Avance junio: informe técnico de Torres del Este a la fecha. | S13: 100% | T13: 100% | V13: Auditoría Regular Vigencia 2015 | W13: Dotación | AE13: Seguimiento 04.01.2019: Este hallazgo fue cerrada de acuerdo al informe realizado por la Contraloría con radicado E15503 con fecha de 20.12.2018. Califican el cumplimiento de la acción y de la efectividad en 100%. | AF13: 100% | AG13: 100% | AH13: Cerrado | AI13: No aplica.
A14: Auditoría Regular Vigencia 2015 | B14: 2016-09-27 | C14: 11 | D14: Hallazgo administrativo 11. Incumplimiento de las obligaciones contractuales. El Instituto Social de Vivienda y Hábitat de Medellín –Isvimed expidió la Resolución No. 271 del 11 de abril de 2013 por medio de la cual asignó subsidios municipales en dinero a 158 grupos familiares beneficiarios de la Organización Popular de Vivienda Funcodent, para la adquisición de vivienda nueva en el proyecto de interés prioritario Torres del este II. El -Isvimed aprobó y autorizó a través de la Fiduciaria, Alianza Fiduciaria S.A., garante de estos recursos, el pago de $2.086.358.400 a la OPV Funcodent, valor equivalente al 64% de los recursos con un avance físico real de obra que se encontraba solo en un 18,8%, situación que no cumple con lo establecido en el artículo tercero de la Resolución interna No. 271 de 2013 que establece: “Esta entidad autorizará el pago de los subsidios asignados, en proporción al desarrollo del proyecto…. así como contra entrega del informe de avance de obra certificado por la interventoría y la Subdirección Técnica del Instituto”. La falta de controles en los procesos de contratación puede generar riesgos en los recursos entregados a terceros, situación que de no corregirse se podría configurar en un hallazgo con presunta incidencia fiscal. | F14: Administrativo con presunta incidencia Fiscal. | G14: Para subsanar el riesgo de pagar sin el avance real de las obras, se mantendrán suspendidos los desembolsos a la OPV FUNCODENT, hasta tanto no se evidencie el equilibrio entre el avance físico y el financiero. | H14: 2016-09-27 | I14: 2018-06-30 | J14: Establecer las medidas necesarias para la protección efectiva delos recursos públicos. | K14: 2018-06-30 | L14: Subdireccion de Dotación de vivienda y Habitat | M14: Bibiana Castaño y Guiller Alvarez | N14: 50% | O14: 50% | P14: Las evidencias aportadas sobre el cumplimiento de esta acción, fueron calificadas por la CGM, con una eficacia parcial de 50%, en el Informe Definitivo de Auditoría Regular vigencia 2016, de noviembre 9 de 2017, consignó lo siguiente: "Teniendo en cuenta que el plazo de realización de la acción de mejora está establecido hasta el 30 de junio de 2018, y al compromiso que adquiere el Instituto Social de Vivienda y Hábitat de Medellín ISVIMED de recuperar dicho proyecto, se mantiene el hallazgo administrativo; pero que de no ser recuperado, acarreará el traslado del presunto hallazgo fiscal a la dependencia respectiva, en los términos definidos en el artículo 8 de la Ley 42 de 1993, tasado en $3.529.729.800." Por tanto, esta acción tampoco se califica en este informe. Avance febrero 2018: Se evidencia memorando 500-289 de fecha de nov 20 de 2017, donde certifican no desembolsos. Avance mayo 2018, dotación: El ISVIMED, no ha realizado desembolsos de subsidios en dinero desde diciembre de 2014. El equipo de profesionales técnico - social vienen realizando visitas de seguimiento, También se realiza la Mesa de OPV - Torres del Este, donde se contextualiza la situación del proyecto y FUNCODENT, además se esta construyendo una Ruta de Trabajo para buscar alternativas de solución al proyecto. | S14: 100% | T14: 100% | V14: Auditoría Regular Vigencia 2015 | W14: Dotación | AE14: Seguimiento 04.01.2019: Este hallazgo fue cerrada de acuerdo al informe realizado por la Contraloría con radicado E15503 con fecha de 20.12.2018. Califican el cumplimiento de la acción y de la efectividad en 100%. | AF14: 100% | AG14: 100% | AH14: Cerrado | AI14: No aplica.
A15: Auditoria Regular- Evaluacion Componente Control Finaciero 2016- | B15: Mayo de 2017 | C15: 2 | D15: Saldos pendientes en la cuenta 151003 INVENTARIO DE MERCANCÍAS, correspondientes a proyectos habitacionales terminados, liquidados y totalmente adjudicados. El Instituto Social de Vivienda y Hábitat de Medellín – ISVIMED presenta en sus estados financieros a diciembre 31 de 2016, en la cuenta 1510 inventarios de mercancía en existencia, saldos pendientes de legalizar por valor de $7.405.844.419 tal circunstancia se evidenció en las pruebas de auditoría realizadas a la cuenta de inventarios, específicamente en los proyectos habitacionales Renaceres, Cantares IV y Cantares V, donde se constató que estos proyectos se encuentran terminados, que han sido asignados todos los subsidios de vivienda y que el fideicomiso está liquidado, incumpliendo los procedimientos establecidos en la resolución No 354 de 2007 por la cual se adopta el régimen de contabilidad pública, en lo referente al reconocimiento de los hechos económicos y sociales, así como lo dispuesto en la resolución No. 357 del 23 de julio de 2008 emanada en la Contaduría General de la Nación, por la cual se adopta el procedimiento de control interno contable, la cual en su instructivo indica que las entidades públicas deben adelantar las gestiones administrativas para depurar las cifras y demás datos contenidos en los estados, informes y reportes contables, de tal forma que estos cumplan las características cualitativas de confiabilidad, relevancia y comprensibilidad de que trata el marco conceptual del Plan General de Contabilidad Pública. | F15: Administrativa | G15: Actualizar mensualmente los saldos de la cuenta 151003 de acuerdo a las resoluciones de asignación de subsidios y circularizar con las demas áreas que intervienen en el proceso de fiducias e interventoria de proyectos constructivos ,sobre los contratos de fiducia y de construcción liquidados. | J15: Revelar en los estados contables , en la cuenta 151003-Construcciones- saldos actualizados, | K15: 2017-12-31 | L15: Subdireccion Administrativa y Financiera Subdirección Jurídica, Subdireccion de Dotacion de vivienda y habitat | M15: Cesar augusto Castaño jaramillo (subdirector Administrativo y Financiero), Laura Mesa Jaramillo (Subdirectora Juridica), Luz Bibiana Castaño Jaramillo (subdirectora de dotacion de vivienda y habitat), Fabian Dario Arango Lopez (asesor) | N15: N/A | O15: N/A | P15: En cumplimiento de esta acción el Contador aporta las actas No. 27; 28; 29; 30; 31; 32 y 33 del comité de Sostenibilidad contable en el que se evidencian las actividades llevadas a cabo para depurar y sanear la información contable. En el acta de reunión No.33 del 7 de diciembre de 2017, se observa que el porcentaje de avance del valor amortizado en la cuenta 151003, asciende al 51,85%, mientras que en el acta No.27 del 14 de julio de 2017 era de 25,23%, lo cual refleja un cumplimiento ´progresivo de la acción durante los meses de Junio a Noviembre de 2017; acciones que estan encaminadas a lograr una presentación del Balance General que refleja la realidad financiera del Instituto. Esta acción se califica con el porcentaje obtenido con corte al 30 de noviembre de 2017, sujeto a ajuste con el que se refleje con corte al 30 de diciembre de 2017, Seguimiento febrero 2018: Durante la vigencia 2017 se realizo la depuracion y saneamiento contable de la cuenta 151003-construcciones, de los proyectos Renaceres, Cantares IV y V que conformaban la cuantia de $7.405.844.419 , que sobrevaloraron los activos en la vigencia 2016 y se realizaron los respectivos registros contables (Anexo Ficha Tecnica # 13 de 2017, Aj # 8440-8568-8458 de 2017). En la vigencia 2017 se actualizó la cuenta 151003-construcciones, atendiendo el procedimiento contable establecido y soportado en las resoluciones de asignacion de subsidios, esta actividad se puede evidenciar en el INFORME CUENTA INVENTARIOS (151003 construcciones) con corte al 31/12/2017 y en el INFORME DE AVANCE DEL PROCESO DE DEPURACION CONTABLE con corte al 31/12/2017, en el cual se puede evidenciar un saldo de los proyectos de acuerdo al numero de unidades pendientes de asignacion de subsidios (anexo informes). Avance junio 2018, admon y financiero: al 31/12/2017 se sanearon los cuatro proyectos que generaron la incidencia de tipo administrativo, información que se puede evidenciar plenamente en el acta # 34 del CTSC de fecha 28/12/2017, explicitamente en la fica técnica # 13-2017 (anexo acta # 34 CTSC, ficha tecnica # 13-2017) | S15: 100% | T15: 100% | V15: Auditoria Regular- Evaluacion Componente Control Finaciero 2016- | W15: Administrativo y Financiero | AE15: Seguimiento 04.01.2019: Este hallazgo fue cerrada de acuerdo al informe realizado por la Contraloría con radicado E15503 con fecha de 20.12.2018. Califican el cumplimiento de la acción y de la efectividad en 100%. | AF15: 100% | AG15: 100% | AH15: Cerrado | AI15: No aplica.
A16: Auditoria Regular- Evaluacion Componente Control Finaciero 2016- | B16: Mayo de 2017 | C16: 3 | D16: Ausencia de control en cuentas de orden deudoras de control, de las viviendas con subsidios ya otorgados por resolución del ISVIMED pero no escrituradas. En la cuenta contable 8390 “Otras Cuentas Deudoras de Control” se determinó que no se han contabilizado las unidades habitacionales que corresponden a subsidios otorgados por ISVIMED de los proyectos habitacionales: Renaceres, Cantares IV, Cantares V, tal como se detalla a continuación; saldos que a diciembre 31 de 2016 están pendientes por legalizar en la cuenta 151003 “Inventario de Mercancías Construcciones” y que correspondientes a proyectos habitacionales terminados con fideicomisos liquidados y que han sido entregados en su totalidad a los beneficiarios. En estas condiciones y consultada la cuenta contable 8390 “Otras Cuentas Deudoras de Control” se observó, que en la cuenta de orden citada no se incluyen las dos (2) unidades de vivienda del proyecto Renaceres, las tres (3) del proyecto Cantares IV a nombre de ISVIMED, que están incluidos en el saldo del proyecto y las tres (3) pendientes por entregar en este último proyecto debido a que los beneficiarios no cumplen requisitos y no quieren renunciar al subsidio otorgado; de manera extensiva, por los mismos motivos encontrados en Cantares IV, las cuatro (4) unidades de Cantares V a nombre de ISVIMED y que están incluidos en el saldo del proyecto, y las cuatro (4) pendientes por entregar en este último proyecto, pero incluida en el saldo final del proyecto; hechos declarados por el Instituto en su comunicación con radicado de ISVIMED S-4267 de abril 4 de 2017, y que no son acordes con el concepto de la CGN 20117 – 156304 de agosto 23 de 2011, el cual prescribe en el párrafo segundo de la conclusión No. 3 lo siguiente: “En relación con las viviendas ya entregadas pero no escrituradas, es necesario controlarlas en cuentas de orden deudoras de control, registrando un débito en la subcuenta 839090-Otras cuentas deudoras de control, de la cuenta 8390-OTRAS CUENTAS DEUDORAS DE CONTROL, con crédito en la subcuenta 891590-Otras cuentas deudoras de control, de la cuenta 8915-DEUDORAS DE CONTROL POR EL CONTRA (Cr).” | F16: Administrativa | G16: Actualizar y estructurar la politica contable en el manual de politicas y lineamientos contables del ISVIMED, atendiendo las directrices de la CGN. Actualizar antes del cierre de cada vigencia la informacion respectiva en las cuentas de orden. Conciliar la informacion de bienes inmuebles propiedad del ISVIMED, apartamentos entregados y no escriturados, que se registrada al cierre de cada vigencia con las demas areas implicadas en el proceso que nos permita registar en las cuentas de orden la inegralidad de los bienes inmuebles. | J16: Revelar en los estados contables los bienes inmuebles de acuerdo a las politicas y lineamientos contables del ISVIMED. | K16: 2017-12-31 | L16: Subdireccion Administrativa y Financiera, subdireccion juridica | M16: Cesar Augusto Castaño Jaramillo (subdirector administrativo y financiero) Sandra Milena Escudero Yepes (profesional Especializad) Fabian Dario Arango Lopez (asesor) | N16: N/A | O16: NA | P16: Para esta acción, se validó los soportes allegados a la comunicación radicada S13302 de 20 de septiembre de 2017. Del informe de gestión, se pudo establecer que: Se actualizó el Manual de políticas y lineamientos contables del ISVIMED; En el contrato 397 de 2017, se contrató un tecnólogo para realizar el levantamiento de los bienes inmuebles propiedad del Isvimed y realizar su clasificación de acuerdo a los parámetros requeridos para el registro en los libros contables; Se solicitó a la oficina de catastro municipal la relación de bienes inmuebles propiedad del Isvimed, como insumo para el desarrollo del contrato 397 de 2017. Información que fue reportada el 18 de septiembre de 2017. De acuerdo con estas evidencias la acción se califica con cumplimiento parcial del 60%, sujeto al ajuste derivado de la Conciliación de la información de bienes inmuebles propiedad del ISVIMED, con corte al 30 de diciembre de 2017, y que se revele de manera directa en los estados contables de acuerdo a las políticas y lineamientos del ISVIMED. Seguimiento febrero 2018: Se actualizÓ el MANUAL DE POLITICAS Y LENEAMIENTOS CONTABLES DEL ISVIMED (V2) , aprobado en el comite Tecnico de Sostenibilidad Contable # 29 del 08/09/2017 (acta # 29) incluyendo la politica del registro de los apartamentos entregados y no escriturados y los NO entregados. Al cierre de la vigencia 2017 y de acuerdo a la informacion suministrada por las demas areas se realizo la inclusion en cuentas de orden deudoras de control las viviendas entregadas y no escrituradas y las no entregadas; esta informacion se puede evidenciar mediante el Ajuste contable # 10239 del 31/12/2017 con sus respectivos anexos Avance junio 2018, admon y financiero: cumplimiento 100% Al 31/12/2017 se realizaron en su totalidad las acciones de mejoramiento propuestas. Anexo las Notas a los Estados contables con corte al 31/12/2017 en el numeral 4-Efectos y cambios significativos en la información contable-, de las notas de caracter general. | S16: 100% | T16: 100% | V16: Auditoria Regular- Evaluacion Componente Control Finaciero 2016- | W16: Administrativo y Financiero | AE16: Seguimiento 04.01.2019: Este hallazgo fue cerrada de acuerdo al informe realizado por la Contraloría con radicado E15503 con fecha de 20.12.2018. Califican el cumplimiento de la acción y de la efectividad en 100%. | AF16: 100% | AG16: 100% | AH16: Cerrado | AI16: No aplica.
A17: Auditoria Regular- Evaluacion Componente Control Finaciero 2016- | B17: Mayo de 2017 | C17: 4 | D17: Saneamiento cuenta 151003- Construcciones (Proyectos adelantados por la EDU) con saldos sujetos a depuración contable, se evidenció que el ISVIMED incumplió con el deber de adelantar el proceso de depuración contable prescrito en el artículo 59 de la Ley 1739 de diciembre 23 de 2014, según el cual las entidades públicas, debían adelantar, en un plazo de cuatro (4) años contados a partir de la vigencia de la ley, las gestiones administrativas necesarias para depurar la información contable de las obligaciones, de manera que en los estados financieros se revelara en forma fidedigna la realidad económica, financiera y patrimonial de la entidad. Posteriormente el artículo 59 de la Ley 1739 de 2014, fue modificado por el artículo 261 de la Ley 1753 de 2015, indicando que el término para adelantar dicho proceso sería de dos (2) años contados a partir de la vigencia de dicha ley, norma que estableció que el cumplimiento de esta obligación debía ser verificado por las contralorías territoriales. Sin embargo, en el artículo 355 de la ley 1819 del 29 de diciembre de 2016, se dispone lo siguiente: “ARTÍCULO 355. SANEAMIENTO CONTABLE. Las entidades territoriales deberán adelantar el proceso de depuración contable a que se refiere el artículo 59 de la Ley 1739 de 2014, modificado por el artículo 261 de la Ley 1753 de 2015. El término para adelantar dicho proceso será de dos (2) años contados a partir de la vigencia de la presente ley. El cumplimiento de esta obligación deberá ser verificado por las contralorías territoriales.” Así mismo, es relevante reseñar que la Circular Conjunta del 20 de febrero de 2017 dirigida a los Contralores Territoriales, en su párrafo cuarto indica: “Es importante señalar que los servidores públicos responsables del proceso de saneamiento contable en las entidades territoriales, que no den cumplimiento a lo establecido en la Ley 1819 de 2016 y a los términos previstos en los numerales 3.1 “Depuración Contable permanente y sostenibilidad”, de la Resolución 357 de 2008, y 3.2.15 “Depuración Contable permanente y sostenible”, de la Resolución 193 de 2016, de la Contaduría General de la nación – CGN, conllevará a sanciones que el Código Disciplinario único califica como falta gravísima, al tenor de los dispuesto en el numeral 52, del artículo 48 de la Ley 734 de 2002”. | F17: Administrativa | G17: Continuar con el proceso de sostenibilidad contable y realizar informes mensuales y socializarlos en el Comité Tecnico de Sostenibilidda Contable, organo asesor de la Dirección, | H17: 30-05-2017 | I17: 31-12-2018 | J17: Depurar y sanear la informacion contable permitiendo una presentacion del Balance General que refleje la realidad financiera del Instituto, | K17: 2018-12-31 | L17: Subdireccion Administrativa y Financiera Subdirección Jurídica, Subdireccion de Dotacion de vivienda y habitat | M17: Cesar augusto Castaño jaramillo (subdirector Administrativo y Financiero), Laura Mesa JaramilloFabian (Subdirectora Juridica), Luz Bibiana Castaño jaramillo (subdirectora de dotacion de vivienda y habitat), Fabian Dario Arango Lopez (asesor) | N17: N/A | O17: NA | P17: En cumplimiento de esta acción el Contador aporta las actas No. 27; 28; 29; 30; 31; 32 y 33 del comité de Sostenibilidad contable en el que se evidencian las actividades llevadas a cabo para depurar y sanear la informacion contable. En el acta de reunión No.33 del 7 de diciembre de 2017, se observa que el porcentaje de avance del valor amortizado en la cuenta 151003, asciende al 51,85%, mientras que en el acta No.27 del 14 de julio de 2017 era de 25,23%, lo cual refleja un cumplimiento ´progresivo de la acción durante los meses de Junio a Noviembre de 2017; acciones que estan encaminadas a lograr una presentacion del Balance General que refleja la realidad financiera del Instituto. Aunque se observa un avance del 52%, esta acción no se califica pues la fecha de obtención de resultados va hasta el 31 de diciembre de 2018. Seguimiento febrero 2018: Durante la vigencia se realizaron todas las gestiones administrativas para depurar la información contable, de manera que en los estados financieros se revele en forma fidedigna la realidad económica, financiera y patrimonial de la entidad, dando con ello cumplimiento a lo establecido en el artículo 355 de la Ley 1819 de 2016 donde se establece que “Las entidades territoriales deberán adelantar el proceso de depuración contable a que se refiere el artículo 59 de la Ley 1739 de 2014, modificado por el artículo 261 de la Ley 1753 de 2015. El término para adelantar dicho proceso será de dos (2) años contados a partir de la vigencia de la presente ley. El avance obtenido al cierre del periodo contable 2017 es de 76.63%, informacion que se puede evidenciar en el INFORME PROCESO DEPURACION CONTABLE con corte al 31/12/2017 Avance junio 2018, admon y financiero. cumplimiento 76.63% Al 31/12/2017 se realizaron en su totalidad las acciones de mejoramiento propuestas. Anexo Informe de depuracion contable. | V17: Auditoria Regular- Evaluacion Componente Control Finaciero 2016- | W17: Administrativo y Financiero | X17: =+I17-H17 -> 580 | Y17: =+I17-$Y$4 -> -576 | AA17: En el comité tecnico de sostenibilidad contable acta N. 38 de enero de 23 de 2019, se presentó el informe de avance del proceso de depuración contable corte al 31 de diciembre de 2018, donde se evidencia el cumplimiento el saneamiento de las cuentas contables del balance, que fueron objeto de depuración. Durante el periodo 2018 se realizaron 4 comites técnicos CTSC (N. 35, 36, 37, 38) | AB17: Copia USB | AC17: 1. Anexo acta 38. informe de avance del proceso de depuración contable corte al 31 de diciembre de 2018 2. Actas (4) 3. Fichas técnicas (5) 4, Resolución 1404 de 28 de diciembre 2018 | AD17: 100% | AE17: Se evidencia los soportes entregados y validados. | AF17: 100% | AG17: 90% | AH17: CA
A18: Auditoría Regular vigencia 2016 | B18: 2017-11-09 | C18: 1 | D18: Incumplimiento de obligaciones y Debilidades de supervisión de los Convenios Nos. 070 y 323 de 2016. En la revisión de los Convenios No. 070 y 323 de 2016 celebrados por -ISVIMED con la Corporación Ayuda Humanitaria, los cuales tienen por objeto “Aunar esfuerzos y acciones para desarrollar de manera conjunta la atención, asesoría y acompañamiento social, jurídico, técnico y financiero a familias con evacuación definitiva y/o temporal afectadas por desastres naturales o emergencias e intervenidas por obra pública en la ciudad de Medellín, con pago de subsidio municipal de arrendamiento temporal”, y en los cuales el Equipo Auditor evidenció lo siguiente: • En la verificación de las “Obligaciones del Asociado” establecidas en el Convenio Artículo noveno, numeral 5.7 que señala la obligación de Suministrar, organizar, filtrar y presentar la información y las bases de datos requeridas oportunamente, que sirvan de soporte para la generación permanente de informes y reportes; al revisar las bases de datos suministradas, se identificaron beneficiarios dobles, identificaciones erradas, menores de edad identificados con la cédula de los padres, identificaciones que contienen caracteres especiales tales como: guiones, puntos, comas, espacios en blanco, letras e identificaciones no válidas como son los FOLIOS de registro civil de nacimiento. Así como también la existencia en la base de datos de beneficiario fallecidos de acuerdo con la verificación realizada con el Fondo de Solidaridad y garantía –FOSYGA y la Registraduría Nacional del Estado Civil. • En la verificación realizada con el FOSYGA. (Fondo de Solidaridad y garantía) que administra La Base de Datos Única de Afiliados – la cual contiene la información de los afiliados de los distintos regímenes del Sistema General de Seguridad Social en Salud, donde se reporta que 774 grupos familiares devengan ingresos superiores a dos (2) SMLMV y que han recibido subsidios en el año 2016 por valor de $2.838.260.697, incumpliendo al parecer con las condiciones que motivan el pago del subsidio de arrendamiento temporal. Además, en la verificación con la Cámara de Comercio de Medellín a la cual se le solicitó certificar cuales personas tienen matrícula mercantil vigente, establecimientos de comercio o registran actividades comerciales, se encontraron 108 beneficiarios del subsidio de arrendamiento temporal que tienen tal condición, sin encontrarse evidencia de la verificación de su nivel de ingresos. Es de anotar que el subsidio Municipal de Arrendamiento Temporal, atiende a las familias en condiciones de vulnerabilidad social y económica, con un subsidio de arrendamiento temporal como alternativa de solución habitacional para que puedan continuar con su desarrollo familiar, mientras acceden a soluciones habitacionales definitivas o regresan a sus hogares una vez mitigado el riesgo. El proyecto se encuentra reglamentado por el Decreto municipal No. 2339 de 2013 el cual establece en su Artículo No. 69 los requisitos especiales y en el literal a) señala que la atención está ocasionada por un desastre natural, ubicación en zona de alto riesgo o intervención ordenada por el ente municipal con ocasión de una obra pública, adicionalmente para poder acceder al subsidio deberán cumplir con las condiciones establecidas en el Artículo No. 15 del mismo decreto, el cual señala entre otros requisitos que el grupo familiar deberá acreditar ingresos familiares iguales o inferiores a dos (2) SMLMV. Las situaciones descritas que afectan y ponen en riesgo el cabal cumplimiento del objetivo perseguido con el proyecto, evidencian debilidades en el cumplimiento de las funciones de la supervisión ejercida por el Instituto, respecto al cumplimiento del objeto contractual. La condición anotada contraría lo estipulado en la Ley 1474 de 2011, artículo 84, que señala: Facultades y deberes de los supervisores y los interventores. La supervisión e interventoría contractual implica el seguimiento al ejercicio del cumplimiento obligacional por la Entidad contratante sobre las obligaciones a cargo del contratista... Por lo que es del caso radicar un hallazgo administrativo con presunta incidencia disciplinaria, por el incumplimiento de las labores de supervisión respecto del control y manejo de las bases de datos y de la verificación de requisitos lo que ocasionó, que fueran asignados y pagados subsidios de arrendamiento temporal durante el año 2016 por valor de $2.838.260.697 a grupos familiares sin el cumplimiento de requisitos establecidos. Dentro de las causas que determinan la condición encontrada se pueden citar: la asignación ineficiente de los recursos y el desconocimiento de las funciones, responsabilidades y deberes de la supervisión. Como efectos adversos de lo anteriormente observado se tiene que las identificaciones incorrectas dificultan e imposibilitan realizar los cruces de información y la verificación del cumplimiento de los requisitos para la asignación del Subsidio municipal de arrendamiento temporal, además, el no cumplimiento de los fines esenciales del Estado para los cuales se dispone el recurso público, consagrado en el Artículo 2 de la Constitución Política de Colombia. | F18: Disciplinaria | G18: 1. Realizar Mesa de Trabajo con el Operador para establecer variables de atención de los hogares historicos del Programa de Arrendamiento Temporal, que permita generar informes claros y que estén acorde al diseño e implementación del Módulo de Arrendamiento Temporal en el sistema de información del ISVIMED. | H18: 2017-11-30 | I18: 2018-02-15 | J18: Garantizar una adecuada supevisión a la Operación del Programa de Arrendamiento Temporal, a través del cual se aplique en debida forma, la asignación del subsidio municipal de arrendamiento temporal. | K18: 2018-02-15 | L18: Subdirección Poblacional Subdirección Administrativa y Financiera | M18: Subdirectora Poblacional Natalia Andrea Restrepo López Profesional Universitario Claudia María Rodriguez Contratistas: Jesús Guillermo Hernández - Sonia María Cardona Subdirector Administrativo y Financiero Cesar Augusto Castaño Jaramillo | P18: Avance febrero 2018: Mesas de trabajo Periódicas con los Jefes de Sistemas del Isvimed y del Operador del Proyecto de Arrendamiento temporal Corporación Ayuda Humanitaria en las cuales se han analizado las variables a tener en cuenta en la implementación del Módulo de Arrendamiento temporal en el SIFI y posterior migración de la Información. Soportes: Actas de Reuniones correspondientes a los días: 13-12-17, 26-12-17, 03-01-18, 11-01-18, 01-02-18, llevadas a cabo con el Jefe de Sistemas del Isvimed, Profesionales del Proyecto de Arrendamiento temporal y Profesionales de la Corporación Ayuda Humanitaria. La Corporación realizará una clasificación en las bases de datos, en las que figuran los Hogares activos en el Programa de arrendamiento temporal, de acuerdo al cumplimiento de lo contemplado en los Artículos 15, 16 y 69 del Decreto 2339 de 2013. Esta información será migrada al Sistema de Información de la Coporación mediante una mejora consistente en la implementación de un aplicativo de cruces en los cuales figura: Cruces por cada miembro del grupo familiar, Fecha de notificación del cruce, Plazo de aclaración, Levanto cruce, Fecha de levantamiento. Soportes: Soporte de Mejora implementada durante el mes de febrero, en el Sistema de Información de la Coporación Ayuda Humanitaria en la cual es posible consultar el tipo de cruces, cruces por cada miembro del grupo familiar, Fecha de notificación del cruce, Plazo de aclaración, Levanta o No levanta cruce, Fecha de levantamiento. Avance mayo 2018: memorando 500-172 CD. Base con información cruces y variables Avance junio 2018: Información Grupos familiares Migrados al Módulo de Cruces 20-06-2018 | S18: 100% | T18: 100% | V18: Auditoría Regular vigencia 2016 | W18: Poblacional | Z18: 2018-12-31 | AA18: Informe con la relación de Tres mil seiscientos once (3611) grupos familiares consultados en el módulo de información de cruces denominado Base de Datos Única de afiliados al Sistema de Seguridad Social en Salud BDUA, implementado como mejora en el Sistema de Información de la Corporación Ayuda Humanitaria. Dos (2) actas de reunión con sus respectivos listados de asistencia con el contratista que avanzará en las actividades para el desarrollo del módulo de Arrendamiento Temporal. | AB18: 500-553 | AC18: Informe con la relación de Tres mil seiscientos once (3611) grupos familiares consultados en el módulo de información de cruces denominado Base de Datos Única de afiliados al Sistema de Seguridad Social en Salud BDUA, implementado como mejora en el Sistema de Información de la Corporación Ayuda Humanitaria. Dos (2) actas de reunión con sus respectivos listados de asistencia con el contratista que avanzará en las actividades para el desarrollo del módulo de Arrendamiento Temporal. | AE18: Seguimiento 04.01.2019: Esta acción fue cerrada de acuerdo al informe realizado por la Contraloría con radicado E15503 con fecha de 20.12.2018. Califican el cumplimiento de la acción y de la efectividad en 100%. | AF18: 100% | AG18: 100% | AH18: Cerrado | AI18: Seguimiento 8.01.2019: Continuar realizando el seguimiento y control.
G19: 2. Enviarle oficio a la Secretaria de inclusión Social y familia, espeficiamente a la comisión Social, informando que como implementación de un plan de mejoramiento para el buen manejo de las bases de datos y verificación de requisitos no se recibiran fichas incompletas para el ingreso al proyecto de arrendamiento. | H19: 2017-12-18 | I19: 2017-12-30 | K19: 2017-12-30 | L19: Subdirección Poblacional | M19: Natalia Andrea Restrepo López; Profesional Universitario Claudia María Rodriguez | P19: Avance febrero 2018: Se envió oficio con Radicado S 1163 del 06-02-2018. Soporte: Radicado S 1163 del 06-02-2018 El día 23-01-2018 Se llevó a cabo reunión con la Comisión de Protección Social, en la cual se resolvieron inquietudes procedimentales respecto a la remisión de hogares por parte de la Comisión al Isvimed. Se realizaron precisiones respecto al Plan de Mejoramiento en curso al interior del Isvimed, anotando al respecto que sólo se recibirán fichas que cumplan con el lleno de los requisitos del Decreto 2339 de 2013. Soportes: Acta de Reunión - Listado de Asistencia del 23-01-2018 | S19: 100% | T19: 100% | W19: Poblacional | AE19: Seguimiento 04.01.2019: Esta acción fue cerrada de acuerdo al informe realizado por la Contraloría con radicado E15503 con fecha de 20.12.2018. Califican el cumplimiento de la acción y de la efectividad en 100%. | AF19: 100% | AG19: 100% | AH19: Cerrado | AI19: Seguimiento 8.01.2019: Continuar retroalimentando a la secretaria de inclusion social sobre el deber ser del procedimiento cada que se requiera.
G20: 3. Realizar la devolución de las fichas sociales de los hogares remitidos por la Comisión Social, cuando estén incompletas o con errores de digitación relacionadas con los documentos de identidad de las personas con recomendación de evacuación temporal o definitiva. | H20: 2017-11-30 | I20: 2018-12-30 | K20: 2018-12-30 | L20: Subdirección Poblacional | M20: Subdirectora Poblacional Natalia Andrea Restrepo López Profesional Universitario Claudia María Rodriguez | P20: Avance febrero 2018: Esta actividad se viene realizando de manera periódica, la última devolución que se realizó correspondíó a las fichas recepcionadas entre el 27-10-2017 y el 27-11-2017. Respecto de lo cual se realizó la devolución a la Comisión Social de Nueve (9) fichas, las cuales presentaron incumplimento de algunos de los requisitos contemplados en los Artículos 15 y 69 del Decreto 2339 de 2013. Soporte: Radicado S 19966 del 07-12-17, contentivo de devolución de Nueve (9) fichas incompletas a la Comisión de Protección Social Avance mayo 2018: memorando 500-172 CD. Radicado S 3345 del 23-03-18 Devolución de fichas Comisión Social Avance junio 2018: Radicado S 7942 del 06-06-18, Radicado S 7317 del 25-05-18, Radicado S 7317 del 25-05-18, Radicado S 6840 del 22-05-18, Radicado S 5323 del 30-04-18. Soportes que evidencian aplicación sistemática de la actividad. | W20: Poblacional | X20: =+I20-H20 -> 395 | Y20: =+I20-$Y$4 -> -577 | Z20: 2018-12-31 | AA20: pertinente señalar que ésta actividad debe realizarse periodicamente durante toda la ejecución del contrato que se celebre para apoyar la asignación y aplicación del subsidio municipal de arrendamiento. En consecuencia, el desarrollo de ésta actividad hace parte de los informes mensuales de ejecución que debe presentar el operador del proyecto de arrendamiento temporal, y por ende es objeto de revisión permanente por parte de la supervisión del contrato. El porcentaje de cumplimiento a la fecha es del 100% ya que a medida que se presentan fichas incompletas o con errores de elaboración se devuelven a la Comisión social, es decir, no hay una cifra o porcentaje estandar que deba cumplirse | AB20: 500-553 Correo: 18/01/2019 | AC20: Copia de los siguientes radicados por medio de los cuales se han devuelto fichas censales a la Comisión social por presentarse inconsistencias o por no ser procedente su atención: 1- Oficio radicado S 7942 del 06-16-18 Devolución 3 fichas. 2- Oficio radicado S 8050 del 08-06-18 Devolución 1 Ficha. 3- Oficio radicado S 8865 del 22-06-18 Devolución 42 Fichas. 4- Oficio radicado S 8900 del 25-06-18 Devolución 7 Fichas. 5- Oficio radicado S 10684 del 30-07-18 Devolución 15 Fichas. 6- Oficio radicado S 12681 del 31-08-18 Devolución 27 Fichas. 7- Oficio radicado 201810289155 del 17-09-18 Devolución 7 Fichas. 8- Oficio radicado S 14482 del 01-10-18 Devolución de 1 Ficha. 9- Oficio radicado S 16141 del 12-10-18 Devolución 2 Fichas. 10- Oficio radicado S 17184 del 25-10-18 Devolución 2 Fichas. 11- Oficio radicado S 17469 del 29-10-18 Devolución 2 Fichas. 12- Oficio radicado S 19075 del 30-11-18 Devolución 4 Fichas. 13- Oficio radicado S 19076 del 30-11-18 Devolución 1 Ficha. | AD20: 100% | AE20: Durante la vigencia 2018 se realizaron las respectivas devoluciones, demostrando que se mantiene la acción propuesta. | AF20: 100% | AG20: 90% | AH20: CA | AI20: Seguimiento 8.01.2019: Continuar aplicando el procedimiento.
G21: 4. Realizar y analizar cruce de informacion de los hogares activos en el Programa de Arrendamiento Temporal, para determinar el número de personas que deben actualizar los documentos de identidad. | H21: 2017-12-30 | I21: 2018-03-01 | K21: 2018-03-01 | L21: Subdirección Poblacional | M21: Natalia Andrea Restrepo López; Profesional Universitario Claudia María Rodriguez Subdirectora Jurídica Laura del Socorro Mesa Jaramillo | P21: Avance febrero 2018: Se está analizando la base de datos; la Corporación Ayuda Humanitaria cuenta con el número de integrantes de los grupos familiares que deben actualizar documentación. Soporte: Informe de la Corporación Ayuda Humanitaria con las Familias que tienen documentos por actualizar Avance mayo 2018: memorando 500-172 CD. Soporte Actividad Nro. 4 Informe 42 Hogares Activos con documentación incompleta, y oficios de cuatro (4) cancelaciones. Soportes que evidencian aplicación sistemática de la actividad. | S21: 100% | T21: 100% | W21: Poblacional | Z21: 2018-12-31 | AA21: Desde la última entrega de soportes no se han realizado cancelaciones por la no actualización de documentos, toda vez que las familias los han aportado dentro del término que tienen establecido. | AB21: 500-553 | AC21: N.A. | AE21: Seguimiento 04.01.2019: Esta acción fue cerrada de acuerdo al informe realizado por la Contraloría con radicado E15503 con fecha de 20.12.2018. Califican el cumplimiento de la acción y de la efectividad en 100%. | AF21: 100% | AG21: 100% | AH21: Cerrado | AI21: Seguimiento 8.01.2019: Continuar aplicando el procedimiento.
G22: 5. Notificar y realizar seguimiento a las personas activas en el Programa de Arrendamiento Temporal, acerca de la entrega de la actualizacion de los documentos de identidad. La notificacion la realizará el Operador donde quede establecido que se le darán 2 meses para entrega de documentos al grupo familiar; si no cumple con el requerimiento salen del programa de arrendameinto temporal. | H22: 2018-01-01 | I22: 2018-03-30 | K22: 2018-03-30 | L22: Subdirección Poblacional Subdirección Jurídica | M22: Subdirectora Poblacional, Natalia Andrea Restrepo López; Profesional Universitario Claudia María Rodriguez. Subdirectora Jurídica, Laura del Socorro Mesa Jaramillo | P22: Avance febrero 2018: La Corporación Ayuda Humanitaria está realizando actualmente la notificación a los hogares con el fin de que estos realicen las gestiones pertinenentes en función de actualizar los documentos de identidad. Adicionalmente la Coporación cuenta con el listado de las personas que tienen el documento de identidad listo para reclamar en la Registraduría Nacional del Estado civil, con el fin de darle celeridad al trámite de notificación y posterior actualización. Soporte: Copia de Cuarenta y ocho (48) Notificaciones realizadas por la Corporación a los Grupos Familiares que tienen documentos de identidad por actualizar. Dichas notificaciones fueron realizadas en los meses de febrero y Febrero, en las cuales se les informó a las familias que disponían de ocho (8) días para actualizar sus documentos, so pena de la cancelación de la asignación del Subsidio. Avance mayo 2018: memorando 500-172 CD. Oficios de ocho (8) notificaciones de solicitud de documentos. Avance junio 2018: NOTIFICACION PEND X DOCUMENTOS DE IDENTIDAD. Soportes que evidencian aplicación sistemática de la actividad. | S22: 100% | T22: 100% | W22: Poblacional | Z22: 2018-12-31 | AA22: Copia de Nueve (9) notificaciones a grupos familiares para que actualicen sus documentos de identidad. | AB22: 500-553 | AC22: Copia de Nueve (9) notificaciones a grupos familiares para que actualicen sus documentos de identidad. | AE22: Seguimiento 04.01.2019: Esta acción fue cerrada de acuerdo al informe realizado por la Contraloría con radicado E15503 con fecha de 20.12.2018. Califican el cumplimiento de la acción y de la efectividad en 100%. | AF22: 100% | AG22: 100% | AH22: Cerrado | AI22: Seguimiento 8.01.2019: Continuar aplicando el procedimiento.
G23: 6. Implementacion del módulo de arrendamiento temporal en el sistema de informacion ISVIMED. | H23: 2017-12-01 | I23: 2019-06-30 | K23: 2019-06-30 | L23: Subdirección Administrativa y Financiera | M23: Subdirector Administrativo y Financiero Cesar Augusto Castaño Jaramillo | P23: Seguimiento febrero 2018: El Jefe de Sistemas del Isvimed presentó avances respecto al Módulo de arrendamiento temporal en el Sistema de Información del Isvimed (SIFI), lo anterior como producto de las mesas de trabajo descritas en la Actividad Número 1.. Soporte: Correo electrónico del 31-01-2018, del Jefe de Sistemas del ISVIMED, con la Especificación de requerimientos de Software V.1.0 y con la Presentación General del Módulo Arrendamiento temporal 2.0. Ambos documentos son el producto de lo analizado a partir de las mesas de trabjo descritas en la Acción de mejora Número 1. Avance mayo 2018: memeorando 500-172 CD. Soportes del modelo del módulo. Avance junio 2018: Se solicta ampliación de plazo hasta 30 de julio de 2019 mediante oficio S9338 de 29 de junio de 2018 y fue aceptada por la Contraloría General de Medellin mediante oficio E7734 de julioi 10 de 2018. | W23: Poblacional Administrativo y Financiero | X23: =+I23-H23 -> 576 | Y23: =+I23-$Y$4 -> -395 | Z23: 2018-12-31 | AA23: El cumplimiento de éstas actividades es de corresponsabilidad con la Subdirección Administrativa y financiera. Desde la supervisión del contrato se realiza acompañamiento a las reuniones de seguimiento de la implementación del módulo de arrendamiento temporal por parte del contratista encargado, a fin de suministrar la información requerida, articular con el operador en los casos que se requiera, realizar seguimiento al cronograma de cumplimiento, y dar los lineamientos necesarios con el fin de que el módulo de arrendamiento cuente con todas las herramientas y la información necesarias para que la información migre de manera integral y opere efectivamente. | AB23: 500-553 Correo: 18/01/2019 | AC23: Dos (2) actas de reunión con sus respectivos listados de asistencia con el contratista que avanzará en las actividades para el desarrollo del módulo de Arrendamiento Temporal. Sistemas: Contrato de Sygma-Tech N. 661, informe del contratoo. | AE23: Se evidencia ejecución del módulo. | AF23: 50% | AG23: 50% | AH23: CM | AI23: Retomar contratación con el tercero y continuar con el desarrollo.
G24: 7. Elaborar un instructivo acerca del manejo de la base de datos del sistema de información del programa de arrendamientio temporal, en donde quede claro el manejo de las variables de atención y los mecanismos de ingreso de la información de los integrantes de los hogares adscritos al programa. | H24: 2018-02-28 | I24: 2019-12-30 | K24: 2019-12-30 | L24: Subdirección Poblacional Subdirección Jurídica Subdirección Administrativa y Financiera | M24: Subdirectora Poblacional Natalia Andrea Restrepo López Profesional Universitario Claudia María Rodriguez Subdirectora Jurídica Laura del Socorro Mesa Jaramillo Subdirector Administrativo y Financiero Cesar Augusto Castaño Jaramillo | P24: Avance febrero 2018: Esta acción depende de la puesta en marcha del módulo de arrendamiento temporal en el SIFI - Ver Acción No. 1 Avance junio 2018: Se solicta ampliación de plazo hasta 30 de julio de 2019 mediante oficio S9338 de 29 de junio de 2018 y fue aceptada por la Contraloría General de Medellin mediante oficio E7734 de julioi 10 de 2018. | W24: Poblacional | X24: =+I24-H24 -> 670 | Y24: =+I24-$Y$4 -> -212 | Z24: 2018-12-31 | AA24: En cuanto a las acciones 6: “Implementación del modulo de arrendamiento temporal en el sistema de información ISVIMED” y 7: “Elaborar un instructivo acerca del manejo de la base de datos del sistema de información del programa de arrendamiento temporal, en donde quede claro el manejo de las variables de atención y los mecanismos de ingreso de la información de los integrantes de los hogares adscritos al programa”, es de recordar, que el plazo para su terminación fue ampliado por la Contraloría hasta el mes de junio de 2019, mediante oficio con radicado E 7734 del 9 de julio de 2018; no obstante, ya se han realizado varias reuniones para adelantar las actividades de su desarrollo y así garantizar el cumplimiento en el tiempo estipulado. | AD24: 0% | AE24: Actividad no iniciada depende del desarrollo del módulo. | AF24: 0% | AG24: 0% | AH24: CB | AI24: Retomar contratación con el tercero y continuar con el desarrollo y realizar en pararlelo el instructivo.
G25: 8. Gestionar el acceso a los sistemas de información de FOSYGA con el fin de cruzar e identificar las condiciones económicas de los hogares activos en el Programa de Arrendamiento Temporal. | H25: 2017-12-01 | I25: 2018-04-01 | K25: 2018-04-01 | L25: Subdirección Poblacional Subdirección Jurídica Subdirección Administrativa y Financiera | M25: Subdirectora Poblacional Natalia Andrea Restrepo López Profesional Universitario Claudia María Rodriguez Subdirectora Jurídica Laura del Socorro Mesa Jaramillo Subdirector Administrativo y Financiero Cesar Augusto Castaño Jaramillo | P25: Avance febrero 2018: El día 01-12-2017 se envió desde el Isvimed oficio a la Administradora de los recursos del Sistema General de Seguridad Social en Salud (ADRES) con número de radicado S 19001 del 01-12-2017, con la solicitud de acceso a la base de datos de información del FOSYGA. El día 02-02-2018 se envió solicitud nuevamente mediante Radicado S 1008, toda vez que no se ha obtenido respuesta de dicha entidad. Esto con el objetivo de consultar la base salarial de los grupos familiares que están activos y por ingresar al Programa de Arrendamiento temporal, y de ésta forma validar el cumplimiento de los requisitos contemplados en los artículos 15 y 69 del Decreto 2339 de 2013. Soporte: Copias de radicados S 19001 del 01-12-2017 y S 1008 del 02-02-2018. Avance mayo 2018: memorando 500-172 CD. Respuesta dada por Oficio ADRES Radicado E 1719 del 19-02-18 Avance Junio 2018 Memorando 500-250 y CD: La supervisión técnica del Convenio de Asociación solicitó de manera formal a la Corporación Ayuda Humanitaria la verificación periódica de los integrantes de los grupos familiares que se postulan y que son beneficiarios del subsidio de arrendamiento temporal en el Sistema de Consulta de la Base de Datos Única de Afiliados BDUA del Sistema General de Seguridad Social en Salud (Link FOSYGA) . Posterior a la anterior indicación, la Corporación Ayuda Humanitaria ha venido ejecutando un Procedimiento de consulta en dicho sistema, correspondiente al 10% de los integrantes activos en el Proyecto de Arrendamiento Temporal con edades iguales y superiores a 18 años, a fin de determinar y registrar el tipo de afiliación. La Corporación Ayuda Humanitaria elaboró un procedimiento de consulta en el Sistema de Consulta de la Base de Datos Única de Afiliados BDUA del Sistema General de Seguridad Social en Salud, como insumo para proceder con las respectivas consultas. En ese sentido elaboró dos informes de integrantes de grupos familiares a consultar en el Sistema, durante los meses de Mayo y Junio. Soportes: 1- Copia oficio Radicado S 5373 del 30-04-18. 2-Procedimiento de consulta del 10% de los integrantes activos en el Proyecto de Arrendamiento Temporal con integrantes con edades iguales y superiores a 18 años. 3- Base de datos para revisión en la página del Fosyga en el Mes de Mayo. 4- Base de datos para revisión en la página del Fosyga en el Mes de Junio. | S25: 100% | T25: 100% | W25: Poblacional | AE25: Seguimiento 04.01.2019: Esta acción fue cerrada de acuerdo al informe realizado por la Contraloría con radicado E15503 con fecha de 20.12.2018. Califican el cumplimiento de la acción y de la efectividad en 100%. | AF25: 100% | AG25: 100% | AH25: Cerrado | AI25: Seguimiento 8.01.2019: Continuar aplicando cruces con los diferentes sistemas de información de acuerdo a los procedimientos internos.
G26: 9.Contratar un profesional jurídico para análisis y verificación de los cruces de los hogares reportados por el Operador, así como para la verificación de los requisitos para la postulación y asignación del subsidio de arrendamiento temporal. | H26: 2017-12-01 | I26: 2017-12-30 | K26: 2017-12-30 | L26: Subdirección Poblacional | M26: Subdirectora Natalia Andrea Restrepo Lopez | P26: Avance febrero 2018: Se realizó la contratación de Profesional Jurídico, mediante los contratos con Números: 523 del 1 al 31 de Diciembre de 2017 y el 177 del 17 de febrero de 2018 hasta el 30 de Junio de 2018. Soporte: Copia de contratos Nro. 523 de 2017 y 177 de 2018, como objeto apoyar desde el componente jurídico, la ejecución del plan de desarrollo 2016-2019 "medellín cuenta con vos", desde el programa “reasentamiento integral de población” en los proyectos arrendamiento temporal y una solución definitiva para la población en arrendamiento temporal. Julio2018: Contrato No. 448 con fecha de inicio 03.07.2018 hasta 31.12.2018 con objeto apoyar desde el componente jurídico, la ejecución del plan de desarrollo 2016-2019 "medellín cuenta con vos", desde el programa “reasentamiento integral de población” en los proyectos arrendamiento temporal y una solución definitiva para la población en arrendamiento temporal. | S26: 100% | T26: 100% | W26: Poblacional | AE26: Seguimiento 04.01.2019: Esta acción fue cerrada de acuerdo al informe realizado por la Contraloría con radicado E15503 con fecha de 20.12.2018. Califican el cumplimiento de la acción y de la efectividad en 100%. | AF26: 100% | AG26: 100% | AH26: Cerrado | AI26: Seguimiento 8.01.2019: Continuar realizando los controles al procedimiento.
G27: 10. Modificar los Manuales, Procedimientos, Formatos y Registros de Aplicación del Subsidio Municipal de Vivienda para hogares sujeto de reasentamiento por riesgo y obra pública (específicamente respecto a la verificación y cumplimiento de requisitos para la postulación y asignación del subsidio de arrendamiento y vivienda definitiva). | H27: 2017-12-01 | I27: 2018-06-01 | K27: 2018-06-01 | L27: Subdirección Poblacional Subdirección de Planeación Subdirección Jurídica | M27: Subdirectora Poblacional Natalia Andrea Restrepo López Profesional Universitario Claudia María Rodriguez Subdirectora de Planeación Luz Adriana Campuzano Subdirectora Jurídica Laura del Socorro Mesa | P27: Avance febrero 2018: Se han revisado los Formatos: Procedencia de Levantamiento de cruce, Remisión de fichas al Operador, Notificación solicitud documentos de identidad de los hogares. Adicionalmente se esta analizando, ajustando y actualizando el Manual de Arrendamineto Temporal Soporte: Correos electrónico 19-01-18 Revisión formato Levantamiento de cruce, Correo electrónico 22-01-18 Revisión formato Remisión de fichas al Operador, Correo electrónico 05-02-18 Revisión Formato Notificación solicitud documentos de identidad de los hogares Avance mayo 2018: memorando 500-172 CD. Modelo de acta. Avance a junio: Manual de Aplicación del Subsidio de Arrendamiento Temporal ajustado. Los formatos utilizados por el operador para la ejecución del Proyecto Arrendamiento Temporal, estos fueron ya ajustados en contenido por la supervisión técnica y jurídica con el apoyo del equipo y el operador. | S27: 100% | T27: 100% | W27: Poblacional | Z27: 2018-12-31 | AA27: Listado de formatos Arrendamiento Temporal. Cuarenta y seis (46) Formatos validados por el proceso de calidad y cargados en el módulo de calidad del SIFI. Manual para la aplicación del subsidio de arrendamiento temporal cargado al Módulo del SIFI. | AB27: 500-553 | AE27: Seguimiento 04.01.2019: Esta acción fue cerrada de acuerdo al informe realizado por la Contraloría con radicado E15503 con fecha de 20.12.2018. Califican el cumplimiento de la acción y de la efectividad en 100%. | AF27: 100% | AG27: 100% | AH27: Cerrado | AI27: Seguimiento 8.01.2019: Continuar realizando los controles al procedimiento.
G28: 11. Establecer una supervisión colegiada del Convenio de Operación del Programa de Arrendamiento Temporal desde los componentes técnico-administrativo, jurídico y financiero | H28: 2017-12-01 | I28: 2018-01-15 | K28: 2018-01-15 | L28: Subdireccion Poblacional Subdirección Jurídica Direccion General ISVIMED. | M28: Subdirectora Poblacional Natalia Andrea Restrepo Lopez Profesional Universirtario Claudia Maria Rodriguez Subdirectora Jurídica Laura del Socorro Mesa | P28: Avance febrero 2018: En la ampliación y modificación Número 1 del 28-12-2017 al Convenio de Asociación número 232 del 2017 en la claúsula cuarta se modificó la Supervisión del Convenio, la cual quedó de manera conjunta por un profesional de la Subdirección Jurídica, Un profesional de la Subdirección Administrativa y Financiera, Un profesional de la Subdirección Poblacional; cuya designación formal se realizó el día 16-01-2018. Soporte: Copia Minuta de Ampliación 1 y Modificación 1 Al Convenio de Asociación Nro. 232 de 2017, Celebrado entre el Isvimed y la Corporación Ayuda Humanitaria. Julio 2018: Se actualiza contrato firmado el 3 e julio con No 488 y va hasta el 31 de diciembre de 2018. | S28: 100% | T28: 100% | W28: Poblacional | AE28: Seguimiento 04.01.2019: Esta acción fue cerrada de acuerdo al informe realizado por la Contraloría con radicado E15503 con fecha de 20.12.2018. Califican el cumplimiento de la acción y de la efectividad en 100%. | AF28: 100% | AG28: 100% | AH28: Cerrado | AI28: Seguimiento 8.01.2019: Continuar realizando los controles al procedimiento.
G29: 12. Realizar una mesa de trabajo mensual de seguimiento para la supervisión del contrato y segumiento a las obligaciones contractuales. | H29: 2017-11-30 | I29: 2018-12-30 | K29: 2018-12-30 | L29: Subdireccion poblacional , Subdirección administrativa y financiera y subdirección Juridica | M29: Subdirectora Poblacional Natalia Andrea Restrepo López Profesional Universitario Claudia María Rodriguez Subdirector Administrativo y Financiero Cesar Augusto Castaño Jaramillo | P29: Avance febrero 2018: En cumplimiento de ésta obligación se dio inicio a la realización de las Mesas de trabajo para el seguimiento al Convenio, habiendose realizado los días 20-12-2017 y el día 22-01-2018. En dichas reuniones se han dado lineamientos por parte de la Supervisión del Convenio, en función de atender al Plan de Mejoramiento. Se estableció que éstas mesas se realizarán de manera permanente la tercera semana de cada mes, los días miércoles. Soporte: Actas de reuniones correspondientes a los días: 20-12-2017 y 22-01-2018. Avance mayo 2018: memorando 500-172 CD. Actas de mesas de trabajo. Avance junio: 11-04-18 Acta Reunión mesa técnica Operador. Avance Junio 2018 Memorando 500-250 y CD: Se han realizado Mesas de trabajo con La Corporación Ayuda Humanitaria, en las cuales se ha desarrollado el Comité técnico de seguimiento al convenio de asociación,en éste se revisan las devoluciones realizadas por la Supervisión del Convenio de Asociación al Informe de ejecución Mensual. Además se resuelven asuntos correspondientes a procedimientos consecuentes a las verificación de los requisitos legales aplicables en la postulación y asignación del subsidio de arrendamiento temporal. Soportes: 1- Acta de reunión llevada a cabo el día 11-04-18 Mesa de trabajo análisis devoluciones Informe de ejecución Mes de Marzo. | W29: Poblacional | X29: =+I29-H29 -> 395 | Y29: =+I29-$Y$4 -> -577 | Z29: 2018-12-31 | AA29: Ésta actividad se realiza de manera periódica, a lo largo de la ejecución del contrato que se celebre para apoyar la asignación y aplicación del subsidio de arrendamiento temporal. De tal manera que puede cerrarse ya que el desarrollo de la misma es permanente y hace parte de las obligaciones contractuales. | AB29: 500-553 Correo: 18/01/2019 | AC29: Acta Auditoría por parte de la supervisión a la Sede Corporación Ayuda Humanitaria (Revisión de documentación) Fecha: 14-09-18. Acta y listado de asistencia Mesa técnica de seguimiento informe de ejecución Agosto Fecha: 20-09-18. Auditoría por parte de la supervisión a la Sede Corporación Ayuda Humanitaria Fecha: 24-09-18 (Revisión cronograma) Acta y listado de asistencia Mesa técnica de seguimiento informe de ejecución Septiembre Fecha: 22-10-18. Acta auditoría por parte de la supervisión a la Sede Corporación Ayuda Humanitaria Fecha: 29-10-18 (Verificación de soportes). Acta Auditoría por parte de la supervisión a la Sede Corporación Ayuda Humanitaria (Verificación de soportes) Fecha: 16-11-18. Acta y listado de asistencia Mesa técnica de seguimiento informe de ejecución Octubre Fecha: 21-11-18. | AD29: 100% | AE29: Seguimiento 08.01.2019: Se evidencia durante la vigencia 2018 varias reuniones con el operador de arrendamiento temporal con el objetivo de seguimiento y control de las obligaciones del contrato. | AF29: 100% | AG29: 90% | AH29: CA | AI29: Seguimiento 8.01.2019: Continuar aplicando el procedimiento de supervisión.
G30: 13. Realizar el cruce de los hogares que son remitidos por el Operador para asignación del subsidio de arrendamiento temporal, con los sistemas de información del Ministerio de Vivienda, cada vez que se vaya a asignar el subsidio municipal de arrendamiento temporal. | H30: 2018-01-01 | I30: 2018-12-30 | K30: 2018-12-30 | L30: Subdirección Poblacional Subdirección Jurídica Subdirección Administrativa y Financiera | M30: Subdirectora Poblacional Natalia Andrea Restrepo López Profesional Universitario Claudia María Rodriguez Contratistas: Jesús Guillermo Hernández - Sonia María Cardona Subdirector Administrativo y Financiero Cesar Augusto Castaño Jaramillo | P30: Seguimiento febrero 2018: El día 22-12-2017 desde el ISVIMED se realizó el cruce de los 3.609 Hogares a los cuales se les asignó subsidio correspondiente a los meses de Noviembre y Diciembre de 2017; después de su clasificación, estos cruces fueron enviados a la Corporación Ayuda Humanitaria, con el fin de que realizaran las verificaciones correspondientes. A la fecha 06-02-2018 se recibió vía correo electrónico el informe final de dicho análisis por parte del operador para iniciar la respectiva revisión del Isvimed y posterior cancelación de los subsidios de arrendamiento temporal para los hogares cruzados.Soporte: Correo electrónico del 06-02-2018 contentivo del análisis y clasificación de los hogares cruzados por parte de la Coporación Ayuda Humanitaria. Base de Datos con la revisión de 3.609 Hogares Avance mayo 2018: memeorando 500-172 CD. Consolidado Análisis de cruces 06-04-18 Avance junio 2018: Informe Proceso de Cruces Segunda Base de Datos del 6-04-2018. Soportes que evidencian aplicación sistemática de la actividad. Avance Junio 2018 Memorando 500-250 y CD: El informe correspondiente a la Consulta en las Bases de datos de los 3.609 Hogares activos a los cuales se les asignó subsidio para los meses de Abril, Mayo y Junio del presente año, ha sido el último insumo a partir del cual se verificó el cumplimiento de los requisitos legales correspondientes (Artículos 15 y 16 del Decreto 2339 de 2013), de tal manera que fuese procedente la asignación del subsidio de arrendamiento temporal. De acuerdo con lo anterior, la Corporación ha enviado un informe periódico que da cuenta de la verificación y posterior notificación de los hogares que están incursos en causal de impedimento o de incumplimiento de requisitos; con el fin de que las familias subsanen la novedad encontrada o en su defecto sean retirados del Proyecto de Arrendamiento Temporal. Sopotes: 1- Base de Datos con la revisión de 3.609 Hogares. 2-Informe Proceso de Cruces Segunda Base de Datos del 6-04-2018. | W30: Poblacional | X30: 363 | Y30: -577 | Z30: 2018-12-31 | AA30: Se solicita su cierre toda vez que se cumplió dentro del plazo señalado. Ésta actividad debe realizarse periodicamente durante toda la ejecución del contrato que se celebre para apoyar la asignacióny aplicación del subsidio de arrendamiento temporal. En consecuencia, el desarrollo de la misma hace parte de los informes mensuales de ejecución que debe presentar el operador del proyecto de arrendamiento temporal, y por ende es objeto de revisión permanente por parte de la supervisión del contrato. El porcentaje de cumplimiento a la fecha es del 100% ya que previa asignación del subsidio de arrendamiento se procede con el cruce de todos los hogares activos en el Proyecto, y de manera posterior con las notificaciones a que haya lugar. | AB30: 500-553 Correo: 18/01/2019 | AC30: Informe con el consolidado de la consulta de impedimentos realizada a 3.412 Hogares | AD30: 100% | AE30: Seguimiento 8.01.2019: Durante el periodo 2018 la corporación a realizado los respectivos controles de cruces de hogares. | AF30: 100% | AG30: 90% | AH30: CA | AI30: Seguimiento 8.01.2019: Continuar solicitando el informe del control de cruces con una frecuencia definida.
G31: 14. Remitir al Operador, los hogares postulados al subsidio de arrendamiento temporal, que presentan impedimentos para la asignación del subsidio, para su respectiva notificación y orientación | H31: 2018-01-01 | I31: 2018-12-30 | K31: 2018-12-30 | L31: Subdirección Poblacional | M31: Subdirectora Poblacional Natalia Andrea Restrepo López Profesional Universitario Claudia María Rodriguez | P31: Avance enero 2018: La remisión de los hogares cruzados se realiza de manera periódica, de Diciembre de 2017 a Febrero de 2018, se han evidenciado tres hogares postulados con impedimentos para ingresar al Programa de Arrendamiento temporal, en los términos de los Artículos 15, 16 y 69 del Decreto 2339 de 2013. Soportes: Radicado S 198 del 12-01-2018 Remisión al Operador de Una Ficha con impedimentos. Radicado S 1079 del 05-02-2018 Remisión al Operador de dos Fichas con impedimentos Avance mayo 2018: memorando 500-172 CD. Tres (3) Ficha con orden de no atención por impedimentos. Avance junio 2018: Remisión fichas con impedimento. Soportes que evidencian aplicación sistemática de la actividad. Avance Junio 2018 Memorando 500-250 y CD: Se continúa realizando ésta actividad de manera permanente, a partir de lo cual se remite a la Corporación Ayuda Humanitaria los hogares que incumplen requisitos o están incursos en las cauales de impedimento legales aplicables (15,16 y 69 del Decreto 2339 de 2013) para acceder al subsidio de arrendamiento temporal. Esto, con el fin de que los hogares sean notificados y procedan a acreditar el cumplimiento de lo requerido en los términos legales consecuentes. Soportes: 1- Radicado S 2388 del 02-03-18 - Cinco Fichas con orden de no atención por impedimentos. 2- Radicado S 3133 del 02-03-18 - Seis Fichas con orden de no atención por impedimentos. 3- Radicado S 3769 del 06-04-18 - Tres Fichas con orden de no atención por impedimentos.4- Radicado 4496 del 17-04-18 - Trece fichas con orden de no atención por impedimentos. 5- Radicado S 4566 del 18-04-18 - Cuatro fichas con orden de no atención por impedimentos. 6- Radicado S 6807 del 21-05-18 - Nueve fichas con orden de no atención por impedimentos.7- Radicado S 6818 del 21-05-18 - Veinticuatro fichas con orden de no atención por impedimentos. 8- Radicado S 6955 del 22-05-18 - Dos fichas con orden de no atención por impedimentos. 9- Radicado S 7315 del 22-05-18 - Cinco fichas con orden de no atención por impedimentos.10- Radicado S 7409 del 28-05-18 - Ocho fichas con orden de no atención por impedimentos. | W31: Poblacional | X31: 363 | Y31: -577 | Z31: 2018-12-31 | AA31: ésta actividad debe realizarse periodicamente durante toda la ejecución del contrato que se celebre para operar la asignación del subsidio de arrendamiento temporal. En consecuencia, el desarrollo de la misma hace parte de los informes mensuales de ejecución que debe presentar el operador del proyecto de arrendamiento temporal, y por ende es objeto de revisión permanente por parte de la supervisión del contrato. El porcentaje de cumplimiento a la fecha es del 100% ya que a medida que son remitidos hogares que presentan impedimentos para la asignación del subsidio de arrendamiento, son informados al operador, es decir, no hay una cifra o porcentaje estandar que deba cumplirse. | AB31: 500-553 Correo: 18/01/2019 | AC31: Copia de los siguientes radicados por medio de los cuales se han remitido fichas censales a la Corporación Ayuga Humanitaria con la relación de los impedimentos evidenciados, a fin de que notifiquen a los hogares en función de subsanar dicho impedimento y así determinar la efectividad del ingreso de estos al Proyecto de arrendamiento temporal: 1- Oficio radicado S 9884 del 13-07-18 Remisión 2 Hogares con impedimentos. 2- Oficio radicado S 9981 del 16-07-18 Remisión 31 Hogares con impedimentos. 3- Oficio radicado S 10176 del 18-07-18 Remisión 9 Hogares con impedimentos. 4- Oficio radicado S 10467 del 24-07-18 Remisión 12 Hogares con impedimentos. 5- Oficio radicado S 10584 del 26-07-18 Remisión 7 Hogares con impedimentos. 6- Oficio radicado S 10662 del 30-07-18 Remisión 8 Hogares con impedimentos. 7- Oficio radicado S 11209 del 08-08-18 Remisión 2 Hogares con impedimentos. 8- Oficio radicado S 11640 del 15-09-18 Remisión 2 Hogares con impedimentos. 9- Oficio radicado S 12377 del 27-08-18 Remisión 4 Hogares con impedimentos. 10- Oficio radicado S 12675 del 31-08-18 Remisión 7 Hogares con impedimentos. 11- Oficio radicado S 12676 del 31-08-18 Remisión 1 Hogar con impedimento. 12- Oficio radicado S 13201 del 07-09-18 Remisión 3 Hogares con impedimentos. 13- Oficio radicado S 13700 del 17-09-18 Remisión 7 Hogares con impedimentos. 14- Oficio radicado S 14086 del 24-09-18 Remisión 2 Hogares con impedimentos. 15- Oficio radicado S 14483 del 01-10-18 Remisión 8 Hogares con impedimentos. 16- Oficio radicado S 16139 del 12-10-18 Remisión 5 Hogares con impedimentos. 17- Oficio radicado S 16140 del 22-10-18 Remisión 4 Hogares con impedimentos. 18- Oficio radicado S 17185 del 25-10-18 Remisión 5 Hogares con impedimentos. 19- Oficio radicado S 17470 del 29-10-18 Remisión 10 Hogares con impedimentos. 20- Oficio radicado S 18421 del 17-11-18 Remisión 11 Hogares con impedimentos. 21- Oficio radicado S 18665 del 22-11-18 Remisión 3 Hogares con impedimentos. 22- Oficio radicado S 19074 del 30-11-18 Remisión 1 Hogar con impedimentos | AD31: 100% | AE31: Seguimiento 8.01.2019: Durante el periodo 2018 se aplicado el procedimiento de notificaciones. | AF31: 100% | AG31: 90% | AH31: CA | AI31: Seguimiento 8.01.2019: Continuar aplicando el procedimiento.
G32: 15. Notificar y orientar acerca de los impedimentos que presentan los hogares postulados para la asignación del subsidio de arrendamiento temporal. | H32: 2018-01-01 | I32: 2018-12-30 | K32: 2018-12-30 | L32: Subdireccion Poblacional | M32: Subdirectora Poblacional Natalia Andrea Restrepo López Profesional Universitario Claudia María Rodriguez | P32: Avance febrero 2018: La Corporación Ayuda Humanitaria realiza la notificación escrita a cada uno de los hogares postulados, de los requisitos e impedimentos contemplados en los artículos 15, 16 y 69 del Decreto 2339 de 2013. Soporte: Copia de veintítres (23) notificaciones realizadas desde el mes de febrero a la fecha a grupos familiares que no cumplen requisitos para ingresar al Programa de Arrendamiento Temporal Avance mayo 2018: memorando 500-172 CD. Soportes notificación escrita a cada uno de los hogares postulados Avance junio 2018: Soportes notificación escrita a cada uno de los hogares postulados Avance Junio 2018 Memorando 500-250 y CD: Ésta actividad se realiza de manera permamente, de tal forma que la Corporación notifica de manera personal a los grupos familiares que presentan impedimentos o incumplen los requisitos del Decreto 2339 de 2013, para que de ser posible y conducente éstos subsanen dichas restricciones en un término no superior a sesenta días, so pena de ser retirados del Proyecto de Arrendamiento Temporal. Soportes: 1- Copia de veintídos (38) Notificaciones personales a grupos familiares que presentan impedimentos para ingresar al Proyecto de Arrendamiento Temporal (Cruces con catastro).2-Copia de Diez (10) Notificaciones personales a grupos familiares que presentan impedimentos para ingresar al Proyecto de Arrendamiento Temporal (Cruces con subsidios). 3- Copia de veintiocho (28) Notificaciones personales a grupos familiares que presentan impedimentos para ingresar al Proyecto de Arrendamiento Temporal (Cruces por Salarios superiores a los Dos SMLMV. 4- Diez y siete (17) Cancelaciones de asignación de subsidio por incumplimiento de requisitos. | W32: Poblacional | X32: 363 | Y32: -577 | Z32: 2018-12-31 | AA32: ésta actividad debe realizarse periodicamente durante toda la ejecución del contrato que se celebre para operar la asignación del subsidio de arrendamiento temporal. En consecuencia, el desarrollo de la misma hace parte de los informes mensuales de ejecución que debe presentar el operador del proyecto de arrendamiento temporal, y por ende es objeto de revisión permanente por parte de la supervisión del contrato. El porcentaje de cumplimiento a la fecha es del 100% ya que a medida que se presentan hogares con impedimentos para la asignación del subsidio de arrendamiento temporal, son notificados del mismo y del procedimiento a seguir, es decir, no hay una cifra o porcentaje estandar que deba cumplirse. | AB32: 500-553 Correo: 18/01/2019 | AC32: Copia de nueve (9) notificaciones a grupos familiares que presentan impedimentos para ingresar al Proyecto de Arrendamiento Temporal (No acreditan el mínimo de permanencia en la ciudad). Copia de diez (10) notificaciones a grupos familiares que presentan impedimentos para ingresar al Proyecto de Arrendamiento Temporal (Ingresos superiores a dos SMMLV). opia de veinticinco (25) notificaciones a grupos familiares que presentan impedimentos para ingresar al Proyecto de Arrendamiento Temporal (Beneficiarios de subsidios de vivienda). Copia ciento once (141) notificaciones a grupos familiares que presentan impedimentos para ingresar al Proyecto de Arrendamiento Temporal (Cruces con catastro Medellín, propietarios o poseedores de viviendas diferentes a las evacuadas). Copia de doscientos nueve (209) Cancelaciones de asignación de subsidio de arrendamiento temporal por incumplimiento de requisitos. Copia doscientos once (211) Terminaciones de asignación del subsidio de arrendamiento por incumplimiento de requisitos. Informe Relación remitidos con impedimento (Catastro, Fonvivienda y otros) | AD32: 100% | AE32: Seguimiento 8.01.2019: Durante el periodo 2018 se aplicado el procedimiento de notificaciones. | AF32: 100% | AG32: 90% | AH32: CA | AI32: Seguimiento 8.01.2019: Continuar aplicando el procedimiento.
G33: 16. Modificar y aplicar en el Formato de Certificación de los contratos de arrendamiento, en donde quede claramente expresado que el pago del canón de arrendamiento estará sujeto a la verifciación del cumplimiento de los requisitos establecidos en el Decreto 2339 de 2013 o las normas que regulen la materia. | H33: 2018-01-01 | I33: 2018-12-30 | K33: 2018-12-30 | L33: Subdireccion Poblacional Sudirección Jurídica | M33: Subdirectora Poblacional Natalia Andrea Restrepo López Profesional Universitario Claudia María Rodriguez Subdirectora Jurídica Laura del Socorro Mesa | P33: Avance enero 2018: Actualmente se están revisando los Formatos de Certificación de contratos y Carta de compromisos, con el fin de adecuarlo a los todos los requisitos que deben cumplir los beneficiarios de subsidio de Arrendamiento Temporal. Soporte: Formatos de Certificación de contratos y Carta de Compromisos Avance mayo 2018: memorando 500-172 CD. Modelo de certificación y de carta de compromiso. | W33: Poblacional | X33: 363 | Y33: -577 | Z33: 2018-12-31 | AA33: desde el mes de marzo de 2018 se procedió con la revisión y ajuste de los Formatos de Carta de compromisos y Certificación de contratos. Los cuales a su vez fueron cargados al módulo de calidad. | AB33: 500-553 Correo: 18/01/2019 | AC33: la acción No 16: “Modificar y aplicar en el Formato de Certificación de los contratos de arrendamiento, en donde quede claramente expresado que el pago del canon de arrendamiento estará sujeto a la verificación del cumplimiento de los requisitos establecidos en el Decreto 2339 de 2013 o las normas que regulen la materia”, si bien, el tiempo de terminación fue estipulado hasta el 31 de diciembre, se reportó su cumplimiento en el mes de marzo de 2018 junto los soportes entregados mediante memorando No 500-172. | AD33: 100% | AE33: Seguimiento 8.01.2019: Durante el periodo 2018 se aplicación de los formatos ajustados.. | AF33: 100% | AG33: 90% | AH33: CA
G34: 17. Notifcar a los propietarios de las viviendas donde se paga el canón de arrendamiento respecto al incumplimiento de los requisitos para la asignación del subsidio de arrendamiento temporal, por parte de los hogares activos en el programa. | H34: 2018-01-01 | I34: 2018-12-30 | K34: 2018-12-30 | L34: Subdirección Poblacional Subdirección Jurídica | M34: Subdirectora Poblacional Natalia Andrea Restrepo López Profesional Universitario Claudia María Rodriguez Subdirectora Jurídica Laura del Socorro Mesa | P34: Seguimiento febrero 2018: Los Formatos de Certificación de Contratos de arrendamiento van acompañados de una Carta de compromisos con los requisitos del Decreto 2339 de 2013. El propietario es notificado de la cancelación del contrato de arrendamiento, en caso de incumplimiento de los requisitos establecidos en el Decreto 2339 de 2013 al momento de suscribir el Contrato. Soporte: Copia de ochenta y dos (82) certificaciones de contrato y Cartas de compromisos suscritas con arrendadores y arrendatarios, en las cuales se hace mención al cumplimiento de requisitos contemplados en el Decreto 2339 de 2013 Avance mayo 2018: memorando 500-172 CD. Copia de (58) certificaciones de contrato y Cartas de compromisos suscritas con arrendadores y arrendatarios, en las cuales se hace mención al cumplimiento de requisitos contemplados en el Decreto 2339 de 2013 Avance junio 2018: Copia de (75) certificaciones de contrato y Cartas de compromisos suscritas con arrendadores y arrendatarios, en las cuales se hace mención al cumplimiento de requisitos contemplados en el Decreto 2339 de 2013 Soportes que evidencian aplicación sistemática de la actividad. | W34: Poblacional | X34: 363 | Y34: -577 | Z34: 2018-12-31 | AA34: Se realiza de manera permamente, de tal manera que el operador suscribe certificaciones de contrato y carta de compromisos entre el arrendador y el grupo familiar beneficiario del subsidio de arrendamiento temporal, en los cuales se relacionan los requisitos e impedimentos del Decreto 2339 de 2013 a ser tenidos en cuenta por las familias, so pena de la cancelación del subsidio. Adicionalmente en el Manual de Arrendamiento de la siguiente forma: "10. PROCESO DE APROBACION. 10.4.2. LECTURA DE CONTRATO: Se comenzara la atención dando claridad frente a la posición que juega el Instituto respecto del contrato suscrito entre las partes, ya que en ningún caso podrá entenderse que este haga parte del mismo, debido a que su función se limitara a validar la existencia del contrato y a verificar el cumplimiento de requisitos para garantizar el desembolso de los subsidios de arrendamiento Posteriormente se realizara la lectura del contrato de arrendamiento para explicar a las partes sus derechos y obligaciones y dejar claros los siguientes temas: 10.4.2.7. Finalmente se dará lectura a la carta de compromisos adquiridos por el beneficiario al ingresar al proyecto, así mismo se informaran las consecuencias de su incumplimiento y se brindará asesoría respecto a las dudas que se generen en el proceso. 1.4.3. VALIDACIÓN DEL CONTRATO: El proceso de validación del subsidio de arrendamiento estará acompañada de los siguientes documentos: 10.4.3.5. Carta de compromisos del proyecto." Dado lo anterior, ésta actividad debe cerrarse. | AB34: 500-553 Correo: 18/01/2019 | AC34: Copia de mil cuatrocientos sesenta (1460) certificaciones de contrato y Cartas de compromisos suscritas con arrendadores y arrendatarios, en los que se hace mención a las obligaciones de las partes, enmarcadas en el Decreto 2339 de 2013. | AD34: 100% | AF34: 100% | AG34: 90% | AH34: CA
G35: 18. Establecer una ruta de trabajo para analizar fiscal, social, juridica, economica del impacto que tendria el otorgamiento del subsidio de arrendamiento temporal hasta máximo un (1) año sin entrega de solución definitiva, a hogares remitidos por calamidad, desastre natural o desalojo por estar ubicados en zona de alto riesgo | H35: 2018-01-01 | I35: 2018-08-30 | K35: 2018-08-30 | L35: Subdirección Jurídica Dirección Isvimed | M35: Subdirectora Jurídica Laura del Socorro Mesa | P35: Avance Junio 2018: Desde la Subdirección Poblacional se realizó un diangóstico del costeo por unidad de los subsidios de arrendamiento temporal desde el año 2009, que es insumo para analizar el impacto fiscal, jurídico, social y económico. Se envía correo electrónico con el archivo del diagnóstico realizado (4/07/2018). El 24 de julio se estable una reunión con las subdirecciones jurídica, administrativa y financiera donde se acuerda realizar un analisis de los componentes fiscal, económico, socila y jurídico. (Acta) | S35: 100% | T35: 100% | W35: Poblacional | AE35: Seguimiento 04.01.2019: Esta acción fue cerrada de acuerdo al informe realizado por la Contraloría con radicado E15503 con fecha de 20.12.2018. Califican el cumplimiento de la acción y de la efectividad en 100%. | AF35: 100% | AG35: 100% | AH35: Cerrado | AI35: No aplica.
G36: 19. Entregar solución de vivienda a hogares activos en el Programa de Arrendamiento Temporal, a través de la asignacion de 1.000 subsidios de vivienda | H36: 2018-01-30 | I36: 2019-12-30 | K36: 2019-12-30 | L36: Subdirección de Planeación Subdirección Administrativa y Financiera Subdirección de Dotación de Vivienda y Hábitat Subdirección Jurídica | M36: Subdirectora de Planeación Luz Adriana Campuzano Subdirector Administrativo y Financiero Cesar Augusto Castaño Jaramillo Subdirector de Dotación de Vivienda y Hábitat Rodrigo Alberto Rendón Cortés Subdirectora Jurídica Laura del Socorro Mesa | P36: Avance marzo 2018: Desde la Subdirección de Planeación del Isvimed se indicaron los proyectos habitacionales donde se asignaran 1037 viviendas para la atención con vivienda definitiva a población activa en el Proyecto de Arrendamiento temporal. Soporte: Correo electrónico 25-01-18 Subdirección de Planeación con informe de proyectos habitacionales - Informe de Proyectos habitacionales con la disponibilidad de viviendas para las familias activas en e Proyecto de arrendamiento temporal. RIESGO - REASENTAMIENTO DE POBLACIÓN CON SOLUCIONES DE VIVIENDA DEFINITIVA: La playita, el triunfo, ciudad del este D, vivienda usada. UNA SOLUCIÓN DEFINITIVA PARA POBLACIÓN DE ARRENDAMIENTO TEMPORAL: Madre Laura, La playita, Colinas de occidente, Ciudad del este D, Castilla-Girardot, Bosque verde, La cruz torre 4, vivienda usada. (tabla anexa) | W36: Poblacional Planeación Dotación | X36: =+I36-H36 -> 699 | Y36: =+I36-$Y$4 -> -212 | Z36: 2019-12-03 | AA36: Informe de vivienda nueva y usada. Teniendo en cuenta el reporte realizado desde la Subdirección de Planeación en el año pasado, con respecto a los proyectos con los cuales se pretendia reasentar las familias que se encuentran en arrendamiento temporal, se adjunta las razones por las cuales no son susceptibles de atención teniendo en cuenta el estado de los proyectos que en su momento fueron propuestos | AB36: 500-026 | AC36: Archivo de excel informe de vivienda neuva y usada- Se adjunta documento en word donde se indica las razones tecnicas del porque no se realizarán dichos proyectos | AD36: 100% | AE36: Se evidencia documento donde informan las soluciones entregadas durante 2017 y 2018 (memorando 500-026). | AF36: 80% | AG36: 80% | AH36: CA | AI36: Continuar planeando y entregando vivienda.
A37: Auditoría Regular vigencia 2016 | B37: 2017-11-09 | C37: 2 | D37: Omisión en las prerrogativas o potestades sancionatorias por parte del Municipio de Medellín En el análisis realizado a los Proyectos de Vivienda Nueva, ejecutados por las Organizaciones Populares de Vivienda OPV relacionadas en el siguiente cuadro y de acuerdo con la información solicitada al Municipio de Medellín en cumplimiento del artículo 10 “De las Sanciones” del Decreto Nacional 2391 de 1989 “Por el cual se reglamentan el artículo 62 de la Ley 9 de 1989 y el artículo 3 del Decreto Ley 78 de 1987, en desarrollo de las actividades de las Organizaciones Populares de Vivienda”. (Ver Cuadro 8. Proyectos de Autoconstrucción ejecutados por las OPV´s, en el informe). y teniendo en cuenta que los subsidios de vivienda para dicho Proyecto fueron otorgados desde el año 2012, además de que algunos de los proyectos a la fecha de presentación de este informe preliminar se encuentra suspendidos de acuerdo con la información remitida por el Municipio de Medellín mediante oficio 201730151277 del 07 de julio de 2017, radicado de la Contraloría General de Medellín R201700001840 del 10 de julio de 2017, en el que manifiesta lo siguiente: (ver transcripción en el informe). Bajo la normativa antes transcrita, observa el equipo auditor que el Municipio de Medellín no dio aplicación a los correctivos, ni las sanciones contempladas en las normas señaladas, toda vez, que fue muy permisiva con el actuar de las Organizaciones Populares de Vivienda antes referenciadas, en virtud de que los Proyectos de Vivienda Nueva vienen presentando reiteradas irregularidades tanto administrativas, financieras y técnicas, las cuales han conllevado a que algunos de estos proyectos no cumplieran con los fines esenciales del Estado y en la actualidad las familias a las cuales se les otorgó el subsidio de vivienda no puedan disfrutar de una solución de vivienda para el fin con que fueron previstos los recursos públicos. En consideración a lo antes señalado, se presenta un incumplimiento de las disposiciones generales y un inadecuado control y seguimiento de los recursos y actividades que son propias de la Entidad, lo que afecta y pone en riesgo el cabal cumplimiento del objetivo perseguido con el otorgamiento de los subsidios y que redunda en los grupos familiares afectados, constituyéndose en una vulneración a los principios de la gestión fiscal de la eficiencia y economía consagrados en el artículo 8 de la Ley 42 de 1993, por lo que es del caso radicar un hallazgo administrativo. | F37: Administrativa | G37: Se reitera lo que quedó consignado en el informe final: "En la reunión de Mesa de trabajo realizada por el equipo directivo del ISVIMED y la Contraloría, el día 20 de septiembre de 2017 se aclaró por parte del Instituto que esta observación corresponde al Municipio de Medellín, aclaración que fue de recibo por parte del señor Contralor Auxiliar. Una vez estuvo de acuerdo, se comprometió en dar traslado a los responsables, para que desde allí se atienda y/o se formule la acción de mejoramiento correspondiente. " No obstante lo anterior, el ISVIMED, mediante el radicado S19838 del 06 de diciembre de 2017, ofició a la Secretaría General con la finalidad de alertarla de este hallazgo. Dicha alerta fue acompañada de una transcripción del hallazgo numero dos para que el Municipio diera respuesta al informe preliminar, y un concepto jurídico elaborado por abogados de la Subdirecciónj Jurídica del ISVIMED en relación con el regimen de vigilancia y control de las organizaciones populares de vivienda. | H37: 2017-12-01 | I37: 2017-12-07 | J37: Notificar a la Secretaría General de la Alcaldía de Medellín, el contenido del hallazgo para que desde esa dependencia, se implementen las acciones de mejoramiento. | K37: 2017-12-07 | L37: Subdirección Jurídica | M37: Laura Mesa Jaramillo Subdirector Jurídica | P37: Seguimiento febrero 2018: Entrega de memorando 600-035 con asunto: Entrega de comprobantes de traslado hallazgo N°2 de la Contraloría General de Medellín, por ser competencia de la Alcaldía Municipal. Donde Anexa Radicado S19838 y Radicado archivo general: 201710320336. Como acción El Municipio expidió el decreto 0341 de 2016 "por el cual se reglamente la inscripción, registro como enajenador, el permio de recepción anticipada de dineros, la radiación de documentos para ventas y el permiso de escrituración, con destino a desarrollo de programas de vivienda para los afiliados de las Organizaciones Populares de Vivienda -OPV- y se asignan otras funciones (ente ellas la funcion sancionatoria a la subsecretaría de control urbanistico de la Secretaría de Gestión y Control Territorial en el artículo 2.4)" No obstante, a la fecha ni la Alcaldía de Medellín ni la subsecretaría de control urbanistico han emitido sanción alguna contra OPVs que es a lo que el hallazgo hace referencia. | S37: 100% | T37: 100% | V37: Auditoría Regular vigencia 2016 | W37: Jurídica | AE37: Seguimiento 04.01.2019: Este hallazgo fue cerrada de acuerdo al informe realizado por la Contraloría con radicado E15503 con fecha de 20.12.2018. Califican el cumplimiento de la acción y de la efectividad en 100%. | AF37: 100% | AG37: 100% | AH37: Cerrado | AI37: No aplica.
A38: Auditoría Regular vigencia 2016 | B38: 2017-11-09 | C38: 3 | D38: Inadecuada contratación de la interventoría con cargo a la OPV. Durante la evaluación de los proyectos de vivienda de interés prioritario ejecutados por las Organizaciones Populares OPV´s: Altos del Jardín – Villa Jesusita II, Villa Canela etapa 2, Torres del Este etapas 1 y 2, Sierra Campestre, Villa María y Los Almendros realizados por las siguientes Organizaciones Populares de Vivienda –OPVs–: Asociación de Madres Cabeza de Familia para el Desarrollo Empresarial y la Vivienda –AMCF–, Cooperativa de Desarrollo Comunitario –COODESCOM–, Fundación Colombiana de Desplazados, Vulnerables y Etnias –FUNCODENT–, Asociación de Vivienda Comunitaria Sierra Campestre, Corporación Viviendas Unidas –CORVIDAS– y la Asociación de Vivienda Comunitaria Nuevo Amanecer, respectivamente; la interventoría fue contratada con recursos de las OPVs, se evidenció, que éstas son las que hacen el proceso de selección y suscripción del contrato de Interventoría teniendo en cuenta que los recursos provienen del mismo proyecto de vivienda, contraviniendo lo establecido en el artículo 42 del Decreto Municipal 2339 de 2013 “Por el cual se reglamenta la Administración, Postulación y Asignación del Subsidio Municipal de Vivienda del Municipio de Medellín”, en el que se hace referencia a lo siguiente: “ARTÍCULO 42. DE LA CONDICIÓN CONTRACTUAL. El oferente elegido deberá acreditar la suscripción de contratos individuales con cada uno de los grupos familiares beneficiarios del subsidio municipal. En el contrato se establecerá que el Administrador del subsidio–ISVIMED- ejercerá el control y seguimiento de la aplicación de los subsidios, directamente o a través de una persona contratada para el efecto. El costo de la interventoría será asumido por el Instituto Social de Vivienda y Hábitat de Medellín –ISVIMED-, sin afectar el subsidio municipal de construcción en sitio propio asignado a cada grupo familiar.” (subrayado por fuera de texto). Al respecto del contrato de interventoría, la Corte Constitucional en reiteradas ocasiones ha manifestado lo siguiente: (Ver en informe). Por lo antes indicado, era deber del Instituto Social de Vivienda y Hábitat de Medellín – ISVIMED contratar la interventoría para garantizar el seguimiento, control y cumplimiento de los fines esenciales del Estado con los recursos otorgados por éste para los Proyectos de Vivienda ejecutados y administrados por las Organizaciones Populares de Vivienda – OPV. Esta deficiencia conllevó a que se incrementaran los costos económicos de los proyectos, puesto que existen proyectos a los cuales se les entregó subsidios desde el año 2012, así mismo, a que estos proyectos no fueran ejecutados en su totalidad, a que los grupos familiares que hacen parte de las OPV no estén a la fecha disfrutando del bien material, a que se presentaran suspensiones de los mismos proyectos, al no cumplimiento de los fines esenciales del estado de que trata el artículo 2 de la Constitución Política de Colombia y al incumplimiento de los principios de la gestión fiscal de economía, eficiencia y eficacia consagrados en el artículo 8 de la Ley 42 de 1993, por lo que se configura en un hallazgo administrativo con presunta incidencia disciplinaria. | F38: Disciplinaria | G38: Se fortalecerá el equipo interdisciplinario de OPV, con el fin de supervisar la contratación de la obra, los avances y la interventoria que deben hacer estas. El ISVIMED ha determinado que el curso de acción que mejor respeta la Ley y la Constitución es el fortalecimiento del equipo de OPV existente que permita una dedicación exclusiva para las supervisiones, generando más eficiencia, transparente y de más utilidad para los fines esenciales del estado que la atomización de la supervisión en interventorías. Tramitar la modificación a la redacción del artículo 42 del decreto 2339 de 2013, para dar claridad al alcance del Isvimed con relación a la intervención y seguimeinto a los proyectos construidos a través de las OPVs, en los que se asignan subsidios municipales, la cual se hará a través de una supervisión interna contratada por el Instituto y no una interventoría externa. | H38: 2017-12-01 | I38: 2018-12-30 | J38: Garantizar la supervisión de las obras ejecutadas por OPV, en las que el Isvimed otorga subsidios a las familias que la conforman, fortaleciendo el control de los recursos asignados en el proyecto. | K38: 2018-12-30 | L38: Subdirección de dotacion y Subdirección Jurídica | M38: Rodrigo Alberto Rendón Cortés. Guiller Alvarez, lider de proyecto; Laura del Socorro Mesa. Paulina Rengifo, profesional especializada | P38: Avance febrero 2018: Entrega de memorando 600-033 con asunto: entrega de copia de oficio de desembargo OPV Villa Jesusita Altos del Jardín. Anexo oficio N° 983 del Juzgado veintidos civil del circuito de Medellin. Se crea mesa de trabajo con las diferentes areas de interes para la revisión del Decrero 2339 y aplicar modificaciones. Soporte: Proyección del decreto 2339. Avance mayo 2018 : Entrega memorando 600-107: descripción de las actividades realizadas→ Contratación de un tecnólogo en construcciones civiles, mediante el contrato de prestación de servicios número 261 del 25 de febrero de 2018 cuyo objeto es apoyar el seguimiento a la ejecución de los proyectos de vivienda nueva en el marco del programa nuevos desarrollos habitacionales fomento a la autoconstrucción e iniciativas comunitarias (OPV) desde el área o componente técnico. También se realizó la contratación de un profesional en derecho para fortalecer el equipo que atiende las OPV, vinculando mediante contrato de prestación de servicios a una abogada mediante el contrato de prestación de servicios número 98 del 09 de enero de 2018. Teniendo así dos contratistas más para apoyar y brindar un mejor acompañamiento a las OPV, en sus tres etapas, formulación, ejecución y recibo a satisfacción de obra, en la ciudad de Medellín y sus cinco corregimientos. Subdirección dotación: Avance Mayo 2018: El equipo Tecnico, social, juridico y financiero realiza seguimiento a los proyecto liderados por las OPV, asi: Altos del Jardín, Villa Canela, Villa Jesusita, Torres del Este, Sierra Campestre, Villa María, los Almendros, donde se deja constancia en las actas e informes de seguimiento dadas las diferentes circunstancias de cada uno de los proyectos. Avance junio 2018: Informe técnico de OPV. Altos de Jardín, Villa Jesucita, Villa canela. informe de gestión organizaciones populares de vivienda – opv julio 15 de 2018. Avance julio 2018: Se realizaron nuevos contratos con estos objetos, los números de contratos son para el apoyo jurídico 502 de 2018 y el técnico es el número 542 de 201 | V38: Auditoría Regular vigencia 2016 | W38: Dotación Jurídica | X38: =+I38-H38 -> 394 | Y38: =+I38-$Y$4 -> -577 | Z38: 2018-12-31 | AA38: Dotación: Seguimiento Diciembre 2018: Para los proyectos de las OPV, se cuenta con el seguimiento técnico de dos profesionales por parte del Instituto mediante contrato de prestación de servicios No. 541 del 10 de julio de 2018 y No. 542 del 10 de julio de 2018. Se hace entrega de las diferentes actas e informes de los seguimientos que se realizan de forma semanal. Jurídica: Seguimiento 24 de enero de 2019: En razón a las competencias con las que cuenta el ISVIMED frente a la asignación y vigilancia a la aplicación del SMV, se mantuvo y fortaleció el equipo profesional interdisciplinario para poder realizar un seguimiento a la aplicación dentro de los recursos dentro del proyecto y realizar las recomendaciones a que haya lugar a las organizaciones y sus contratistas constructores con el objetivo de que los proyectos habitacionales se ejecuten de una manera técnica y jurídica adecuada. | AB38: Correo 27/12/2018, Asunto: Avances a Diciembre Plan de Mejoramiento CGM | AC38: Dotación: 1. _ACTA_DE_REUNION INTRA 05-10-2018 2. ACTA VISITAS CONTRALORIA 4-10-2018 3. Asesorías Representantes Legales 4. Reuniones Interinstitucionales 5. Seguimiento Antes 6. VISITAS SEGUIMIENTO 7. Visitas Jurídica: 8. Contratos de prestacion de servicios 52, 73, 94 de 2019 9. Soportes (31..1.2019) | AD38: 50% | AE38: Se esta ejecutando las mesas de trabajo. El decreto 2339 se encuentra en proceso de revisión y aprobación por parte de la secretaria general. | AF38: 50% | AG38: 50% | AH38: CM | AI38: Seguimiento 8.01.2019: 1. Continuar con el equipo interdiscciplinario de OPV, y que este continúe realizando seguimiento al estado de avance de OPV. 2. Aplicar los cambios del Decreto 2339 para éste primer semestre del 2019. 3. Realizar el proceso jurídico necesario para la recuperación del recurso.
A39: Auditoría Regular vigencia 2016 | B39: 2017-11-09 | C39: 4 | D39: Indebido otorgamiento de la licencia de construcción para el proyecto Villa Canela etapa II. En el proyecto de vivienda Villa Canela etapa 2 efectuado por la Organización Popular de Vivienda –OPV– Cooperativa para el desarrollo comunitario – COODESCOM – , la Licencia de Construcción se otorgó mediante la Resolución C4-1058 del 15 de octubre 2015, y en ella se concedió modificación a la licencia de urbanización y de construcción simultánea de la etapa 1 del proyecto Villa Canela concedida mediante Resolución C4-4294 de noviembre 22 de 2011, además, de licencia de construcción en la modalidad de obra nueva para la etapa 2 y aprobación de planos para propiedad horizontal para ambas etapas del proyecto. No obstante, la asignación de los subsidios municipales en dinero se efectuó el 25 de septiembre de 2013 mediante la Resolución 881 para ciento cincuenta (150) grupos familiares afiliados de la OPV – COODESCOM –, con la finalidad de adquirir vivienda nueva en el proyecto habitacional de vivienda de interés prioritario Urbanización Villa Canela Etapa 2. Ahora bien, en los considerandos de la Resolución 881 de 2013” se afirma lo siguiente: “(…) o) El proyecto mencionado tiene licencia de construcción, aprobada por la Curaduría Urbana Cuarta del Municipio de Medellín mediante Resolución C4- 4294 del 22 de noviembre de 2011, trámite 05001-1-11-3079; con una vigencia de 36 meses prorrogables por 12 meses más. En todo caso, será responsabilidad de la OPV -COODESCOM, constructora del proyecto estar atentos a las vigencias y renovaciones a que haya lugar. s) La Subdirección poblacional del ISVIMED por comunicación interna N°597 del 02 de septiembre de 2013, solicita se asignen los subsidios municipales de los grupos familiares incluidos en el presente acto administrativo, e informa que cumplen con los requisitos legales establecidos para ser beneficiarios del subsidio de vivienda y no presentan cruces con otras entidades. Así mismo, que el proyecto de vivienda “urbanización Villa Canela etapa 2”, cuenta con viabilidad técnica financiera y social necesaria para aplicar los subsidios asignados de acuerdo a los requisitos de ley y del manual de asesoría y acompañamiento para las Organizaciones Populares de Vivienda…”. Es decir, para la etapa 1, el proyecto tenía la licencia de construcción vigente pero en el momento de asignación de los subsidios no contaba con la licencia de construcción para la etapa 2. Este hecho incumple con lo definido en el Decreto 2339 de 21 de noviembre de 2013 –por el cual se reglamenta la administración, postulación y asignación del subsidio municipal de vivienda del municipio de Medellín–. Articulo 37 Condiciones de construcción en sitio propio “Previo a la asignación de subsidio, se deberá contar con licencia de construcción y disponibilidad inmediata, mediante la conexión a redes matrices de los servicios públicos domiciliarios de acueducto, alcantarillado y energía eléctrica, según certificados expedidos por las respectivas empresas de servicios públicos. En todo caso el lote deberá estar ubicado en un desarrollo legal o legalizado”. Como consecuencia de lo anteriormente descrito, la Resolución C4-1058 del 15 de octubre de 2015 aprobó la modificación de la Licencia de Construcción vigente de la etapa 1, otorgada mediante Resolución C4- 4294 de noviembre 22 de 2011. Para la etapa 2 la citada resolución autorizó la construcción de 14 pisos con 103 apartamentos que es un número inferior a los 150 subsidios asignados en el año 2013 equivalentes a $13.558.500 por cada grupo familiar y como la licencia de construcción se aprobó en 2015 el valor del subsidio para cada grupo familiar correspondería a $14.820.500, lo que representa una diferencia de $1.261.500 por cada grupo familiar, que no fue otorgado a los beneficiarios en el momento de asignación del Subsidio municipal de vivienda en dinero. Al mismo tiempo, el encargo fiduciario efectuado con Alianza Fiduciaria SA se formalizó para 250 grupos familiares, 47 de ellos aún no tienen solución de vivienda a pesar de beneficiarse de la asignación del subsidio de vivienda, lo que representa un valor pagado de más a Alianza Fiduciaria SA, equivalente a $637.249.500 . Los hechos anteriormente referidos configuran un hallazgo administrativo con presunta incidencia disciplinaria. | F39: Disciplinaria | G39: Realizar jornada de sensibilización con los 47 hogares que fueron afectados por la densidad del proyecto como consecuencia de la actualización de la licencia de construcción, para identificar sÍ pueden acceder a otra oferta institucional, previo el cumplimiento de los requisitos del decreto 2339 de 2013. | H39: 2017-12-01 | I39: 2018-12-31 | J39: Buscar alternativas de solución de vivienda habitacional para las 47 familias que fueron afectadas por la reducción de la densidad en el proyecto Villa Canela. | K39: 2018-12-31 | L39: Subdirección Poblacional; Subdirección de dotación y Subdirección Jurídica. | M39: Rodrigo Alberto Rendón Cortés; Laura del Socorro Mesa y Natalia Andrea Restrepo. | P39: Avance febrero 2018: la subdirección Poblacional envía el oficio con radicado N° 975 del 2 de febrero de 2018, con el fin de que la OPV Coodescom nos pueda definir cuáles son los 47 hogares que deben renunciar al subsidio de vivienda municipal. Avance mayo 2018: Entrega memorando 600-107: Se envió desde la subdirección poblacional el oficio con radicado N°975 del 2 de febrero de 2018 con el fin de que la OPV nos informara cuales familias que componen el proyecto no desean seguir integrándolo de manera tal que se liberen los cupos necesarios para las 47 familias. Esto tomando en consideración que a la fecha el ISVIMED ha retenido el desembolso de 55 subsidios para la Torre II, lo cual da lugar a que se pueda negociar entre las 47 familias que no tienen cupo su permanencia sin que esto implique la devolución de los subsidios. Obtuvimos respuesta al oficio por parte de la OPV COODESCOM mediante radicado E1624 del 16 de febrero de 2018, definiendo así los cuarenta y siete (47) hogares que no continúan en el proyecto habitacional Villa Canela etapa II, para una mejor clasificación de estas familias al interior del ISVIMED. Poblacional: Se realiza una jornada de sensibilización con los 47 hogares que fueron afectados por la densidad del proyecto como consecuencia de la actualización de la licencia de construcción, para identificar si pueden acceder a otra oferta institucional, previo el cumplimiento de los requisitos del Decreto 2339 de 2013, la cual asistieron solo 8, por lo cual se acordó con los representantes legales de la organización, que éstos socializaran tal información vía telefónica con las personas que no asistieron y nos aportara para el 30 de mayo del año en curso un consolidado final con la situación definida de la 47 familias y las respectivas renuncias, si es el caso. Soporte acta de mayo 16 de 2018 El 3 de julio de 2018 COODESCOM envía oficio con radicado E7434 informando sobre renuncias de 19 familias. | S39: 100% | T39: 100% | V39: Auditoría Regular vigencia 2016 | W39: Poblacional | AE39: Seguimiento 04.01.2019: Este hallazgo fue cerrada de acuerdo al informe realizado por la Contraloría con radicado E15503 con fecha de 20.12.2018. Califican el cumplimiento de la acción y de la efectividad en 100%. | AF39: 100% | AG39: 100% | AH39: Cerrado | AI39: No aplica.
A40: Auditoría Regular vigencia 2016 | B40: 2017-11-09 | C40: 5 | D40: No conclusión efectiva en El proyecto de vivienda Altos del Jardín Villa Jesusita II. El proyecto de vivienda Altos del Jardín-Villa Jesusita II desarrollado por la Organización Popular de Vivienda –OPV– Asociación de madres cabeza de familia para el desarrollo empresarial y la vivienda;–AMCF– está suspendido desde diciembre de 2014, porque la Licencia de construcción concedida mediante la Resolución C4-0175 de 25/01/2010 y prorrogada por la Resolución C4-0656 de 2013 se encuentra vencida, conjuntamente el lote en el cual se asienta el proyecto se encuentra embargado, debido a la insolvencia financiera del proyecto Villa Jesusita I, localizado en el barrio La Milagrosa, a cargo de la misma OPV. El proyecto comprende la ejecución 7 torres con 24 apartamentos cada una, según el 5° informe de interventoría estaban en ejecución a diciembre de 2014 las tres primeras torres con 28 aptos terminados, los cuales han sido ocupados y adecuados por miembros de esta OPV, sin embargo, no todos los tomadores son beneficiarios de los subsidios municipales de vivienda otorgados por El Instituto social de vivienda y hábitat de Medellín –ISVIMED–. A través de Alianza Fiduciaria SA., el ISVIMED ha pagado a la OPV –AMCF– $644.812.874 que corresponden con el avance de las tres primeras torres hasta diciembre de 2014; estos recursos provienen de los subsidios asignados por el Isvimed a 67 grupos familiares a través de los siguientes actos administrativos: Resoluciones N°1509/2012, 989/2013, 989/2013, 827/2013, 788/2013, 1181/2013, 0167/2014; como se aprecia en el cuadro N°9. Sin embargo, en la fecha de elaboración de este informe, el equipo auditor no vislumbra la posibilidad de avance del proyecto por parte del OPV; toda vez, que para continuar con la ejecución de este proyecto AMCAF debe ejecutar el urbanismo aprobado en la licencia de construcción otorgada mediante las resoluciones citadas el cual consiste en la ejecución de una vía urbana cuyo costo no está a su alcance. Es decir, AMCAF, además de cumplir con lo anteriormente descrito debe someter el proyecto a la consecución de una nueva Licencia de construcción acorde con la normatividad planteada en el Plan de Ordenamiento Territorial –Acuerdo 48 de 2014– Estos hechos evidencian una omisión en el control que debe ser ejercido por el Isvimed de acuerdo con el decreto 2339 de 21 de noviembre de 2013, el cual en el Artículo 42 establece que “el oferente elegido deberá acreditar la suscripción de contratos individuales con cada uno de los grupos familiares beneficiarios del subsidio municipal. En el contrato se establecerá que el administrador del subsidio-ISVIMED- ejercerá el control y seguimiento de la aplicación de los subsidios, directamente o a través de una persona contratada para el efecto. El costo de la interventoría será asumido por el Instituto Social de Vivienda y Hábitat de Medellín-ISVIMED-, sin afectar el subsidio municipal de construcción en sitio propio asignado a cada grupo familiar”. Con los recursos pagados, el ISVIMED no logró oportunamente el objetivo propuesto de brindar una solución de vivienda digna a 67 grupos familiares beneficiados por el subsidio municipal de vivienda, por consiguiente, El Instituto está incumpliendo con los principios de la gestión fiscal de Eficiencia y Eficacia definidos en la Ley 42 de 1993 –Artículo 8– en el sentido de "que la asignación de recursos sea la más conveniente para maximizar los resultados, que los resultados se logren de manera oportuna y guarden relación con los objetivos y metas", dado el compromiso que adquiere el Instituto Social de Vivienda y Hábitat de Medellín ISVIMED de recuperar el proyecto de vivienda para ser entregado a los beneficiarios del mismo, se levanta la incidencia fiscal y se deja como hallazgo administrativo, condicionado a que dicha recuperación se haga efectiva, pero que de no ser recuperado, acarreará el respectivo hallazgo fiscal, en los términos definidos en el artículo antes señalado, tasado en $644.812.874. (Ver Cuadro 9. Proyecto Altos del Jardín, del informe). | F40: Administrativa | G40: Realización de una jornada de sensibilización por parte del ISVIMED con todas las familais de la OPV AMCAF y las 28 familias que estan ocupando el proyecto, Mediante una jornada de sensibilización se puede informar a esa comunidad comprendida por esas 28 familias que estan residiendo en el proyecto sobre la necesidad de continuar con la ejecución de los edificios de manera tal que la totalidad de los integrantes de la OPV puedan beneficiarse. Mediante esta jornada se buscara mostrarle a las familias invasoras, sobre todo las que ostentan subsidio de ISVIMED, sobre las formulas de viabilidad que se tienen para el proyecto, de tal manera que pueda persuadirse a las familias para que dejen temporalmente sus apartamentos mientras se termina de ejecutar la obra. También será una joranda pedagogica en el cual se atenderán las dudas de toda la comunidad, se exlicará cual es la oferta institucional del ISVIMED y se permitirá que las familias que estan ocupando el proyecto se puedan acercar al ISVIMED para ver si existen alternativas que les permitan acceder a una vivienda. El ISVIMED está especialmente presto a socializar a las familias sobre los beneficios de los ahorros programados o sobre la posibilida de que las familias accedieran al programa de demanda libre siempre y cuando cumplan con los requisitos. | H40: 2017-12-01 | I40: 2018-06-30 | J40: Promover dialogo en la comunidad y buscar fórmulas de arreglo entre los grupos familiares que han ocupado la obra y el resto de la comunidad, de manera tal que se pueda resumir el proyecto sin que la OPV tenga que recurrir a mecanismos coercitivos a través de la querella que ha instaurado en la inspección tercera de policía. | K40: 2018-06-30 | L40: Subdirección poblacional | M40: Natalia Andrea Restrepo Lopez. | P40: Avance mayo 2018: Entrega memorando 600-107: Se realizó una jornada de sensibilización por parte del ISVIMED con todas las familias de la OPV AMCAF y las 28 familias que están ocupando el proyecto, la subdirección poblacional ha realizado dos reuniones de seguimiento de las cuales se anexan las actas de reunión y se realizó el 17 de febrero de 2018 la notificación puerta a puerta y se hizo la joranda de sensibilización el 24 de febrero de 2018, para lo cual se anexa la notificación. El equipo interdisciplinario de OPV del ISVIMED, realizó visitas domiciliarias el 24 de febrero y 5 de marzo de 2018, donde a los 28 hogares se les socializó la información sobre cómo se accedía a las diferentes modalidades de subsidio, haciendo énfasis en los requisitos que deben tener las personas que se postulan al programa de arrendamiento temporal y al subsidio de vivienda nueva como afiliados a una OPV, entre otros, con la finalidad de tener claro los alcances y límites del ISVMED en el proceso constructivo de la OPV y el proceso de denuncia en la inspección por parte de la representante legal de esta, como evidencia se anexa las actas generadas en las jornadas. El equipo interdisciplinario de OPV del ISVIEMD, llevo a cabo la reunión con los hogares acodados a la OPV AMCAF del proyecto habitacional Altos del Jardín el 13 de Marzo de 2018, donde se les socializó las acciones que ha realizado el ISVIMED en el proceso de invasión del proyectó, dando claridades de nuestro alcance y competencia, adicionalmente se informo como se accedía al subsidio de vivienda nueva como afiliadas a una OPV, en que ocasiones se aceptaba la renuncia del hogar al subsidio municipal, como se evidencia se anexa el acta de reunión, quedando con esta cumplidas las actividades del plan de mejoramiento de esta acción. | S40: 100% | T40: 100% | V40: Auditoría Regular vigencia 2016 | W40: Poblacional | AE40: Seguimiento 04.01.2019: Esta acción fue cerrada de acuerdo al informe realizado por la Contraloría con radicado E15503 con fecha de 20.12.2018. Califican el cumplimiento de la acción y de la efectividad en 100%. | AF40: 100% | AG40: 100% | AH40: Cerrado | AI40: No aplica.
G41: Conformar mesa de trabajo interna: Operará dentro del ISVIMED de manera institucional y su único objetivo será explorar la problemática de Altos del Jardín. Dentro de esta mesa participaran los subdirectores y el director del ISVIMED lo cual garantizará el poder decisorio de dicho mecanismo. Se busca que mediante la periodicidad de la mesa y el carácter gerencial de la misma, se puedan impulsar todas las acciones necesarias para salvaguardar los recursos públicos. La mesa tendrá como prioridad buscar soluciones, siempre dentro de la normatividad, para darle viabilidad del proyecto. La mesa también se encargará de hacer seguimiento continuo a la viabilidad del proyecto y a formular estrategias o planes de acciones contingentes que busquen garantizar la protección de los recursos públicos en caso de que el proyecto no pueda viabilizarse. | H41: 2017-12-01 | I41: 2019-12-31 | J41: Formular estrategias y planes de acción mediante los cuales el ISVIMED evaluará la viabilidad del proyecto y emitirá recomendaciones y requerimientos para la OPV según sea el caso, o en su defecto, formular la política del ISVIMED en caso de que el proyecto sea declarado inviable. | K41: 2019-12-31 | L41: Subdirección Poblacional; Subdirección de dotación y Subdirección Jurídica. | M41: Rodrigo Alberto Rendón Cortés; Laura del Socorro Mesa y Natalia Andrea Restrepo. | P41: Avance Mayo 2018, dotación: Se realiza la Mesa Interinstitucional de OPV, donde se contextualiza el estado de los proyectos liderados por las Organizaciones Populares de Vivienda - OPV, donde se busca soluciones a las diferentes situaciones que se presentan en cada una de ellas. Soporte: Acta de febrero, marzo, junio. | W41: Dotación Jurídica | X41: =+I41-H41 -> 760 | Y41: =+I41-$Y$4 -> -211 | Z41: 2019-01-24 | AA41: Jurídica: Para el dia 29 de enero de 2019 se tiene programada una reunión con los representantes de la organización AMCAF, con el objetivo de tratar los temas de la mesa interna, la mesa externa y la reobtención de la licencia de construcción del proyecto, todo esto en compañia de la SGCT, el Concejal Jesús Aníbal Gaviria, y los demas actores institucionales involucarados en el desarrollo del proyecto. | AC41: Soportes (31..1.2019) | AD41: 20% | AE41: Se realizan las mesas pero no se definen acciones que logre la continuidad de la obra. | AF41: 20% | AG41: 20% | AH41: CB | AI41: La acción debe estar encaminada a recuperar el recurso.
G42: Integrar mesa de trabajo externa: mediante la mesa de trabajo externa el ISVIMED citará a las demás autoridades, y representantes de la OPV y de la comunidad con el fin de coadyuvar en aquellos procesos que dependan de la Alcaldía e Isvimed e involucrar a la administración Municipal para que actúe de manera conjunta y concertada para que el Municipio puede hacer pleno uso de toda sus atribuciones, a través de las diferentes dependencias, para poder efectivamente supervisar el avance de las obras y para poder mantener informado a los entes de control, representante legal y beneficiarios del proyecto Altos del Jaridín. | H42: 2017-12-01 | I42: 2018-12-31 | K42: 2018-12-31 | L42: Subdirección Poblacional; Subdirección de dotación y Subdirección Jurídica. | M42: Rodrigo Alberto Rendón Cortés; Laura del Socorro Mesa y Natalia Andrea Restrepo. | P42: Avance mayo 2018 Jurídica: El miércoles 25 de abril de 2018 a las 2 pm se dio inicio a la mesa intrainstitucional donde se trataron las posibles soluciones, teniendo en cuenta que el fallo de segunda instancia dictamina el desalojo de los hogares que se encuentran invadiendo el proyecto habitacional Villa Jesusita- Altos del Jardín. Soporte: Acta de marzo y de junio. | W42: Dotación Jurídica | X42: 395 | Y42: -576 | Z42: 2018-12-31 | AA42: Seguimiento Diciembre 2018: Para estos casos se entan realizando mesas de trabajo con diferentes entidades como la Secretaria de Gestión y Control Territorial, Secretaria de Seguridad, Concejo Municipal, un posible constructor, representantes de la OPV, donde se busca la salida a los asuntos pendientes con la OPV Amcaf y al proyecto Altos del Jardin. | AC42: Soportes (31..1.2019) | AD42: 20% | AE42: Se realizan las mesas pero no se definen acciones que logre la continuidad de la obra. | AF42: 20% | AG42: 20% | AH42: CB | AI42: La acción debe estar encaminada a recuperar el recurso.
G43: Asesoría técnica al proceso para la obtención de una nueva licencia de construcción. El ISVIMED citará de manera periódica a los representantes de la OPV para ayudarlos a formular los documentos técnicos necesarios para obtener una nueva licencia de construcción. Situación necesaria para adelantar la construcción del proyecto. Aunque el ISVIMED no puede tramitar ni intervenir directamente en la formulación del proyecto dado el carácter privado y autónomo de la OPV, dado el hecho de que los subsidios ya fueron asignados y que es deber del ISVIMED velar por la aplicación de los subsidios, la subdirección de dotación dispondrá de personal técnico quienes evaluaran y diagnosticaran la obra, y ayudaran a los ingenieros contratados por la OPV para realizar la formulación técnica de un proyecto constructivo par a la obtención de la licencia en la respectiva curaduría. | H43: 2017-12-01 | I43: 2018-12-31 | J43: Supervisar la ejecución del proyecto, monitorear la viabilidad del mismo, y formular propuestas para que la OPV adopte las líneas de acción necesarias para solicitar una nueva licencia de construcción. | K43: 2018-12-31 | L43: Subdirección de dotación | M43: Rodrigo Alberto Rendón Cortés. | P43: Avance Mayo 2018, dotación: se realiza reunión extramural de seguimiento al proyecto Altos del Jardin donde se tratan temas sobre los cambios y renuncias de los beneficiarios del proyecto ya que fueron aprobados en la mesa Interinstitucional por lo que se requiere ingresar al ISVIMED la papeleria correspondiente. Se informa que hasta que no se falle la tutela no se continuara con la Mesa, pero se hara seguimiento al proyecto con visitas técnico- social. Se informa que las tutelas han sido falladas a favor de AMCAF. También la representante legal de AMCAF informa que ya viene adelantando conversaciones con un nuevo constructor que viene adelantando estudios de prefactibilidad. Se viene prestando asesoria a nuevos proyectos habitacionales liderandos por OPV, "Quintas de la Acuarela", se le informa al Director del Proyecto que el ISVIMED ha brindado asesoria y acompañamiento a la representante legal de Quintas de la Acuarela a quien se le ha entregado los requisitos para la postulacion del los proyectos y subsidios de vivienda nueva. | W43: Dotación Jurídica | X43: 395 | Y43: -576 | AA43: Seguimiento Diciembre 2018: Se realiza a compañamiento técnico - social a la OPV AMCAF, frente al proyecto Altos del Jardin, que tiene Licencia de construcción mediante la Resolución C4-0175 de 25/01/2010 y prorrogada por la Resolución C4-0656 de 2013 a la fecha vencida, la OPV no cuenta con recursos financieros para la construcción de las obras de urbanismo obligadas para solicitar una nueva licencia. Con 28 apartamentos invadidos con un proceso (tutela) pendientes por fallar. Se realiza seguimiento al proyecto y acompañamiento a la OPV Amcaf, se solicita el certificado de cumplimiento de normatividad de las OPV a la dirección de Asesoria Legal de Control de la Gobernación que manifiestan que estan adelantando una indagación preliminar ademas que no ha dado cumplimiento a la normatividad. | AC43: Soportes (31..1.2019) | AD43: 20% | AE43: Se realizan las mesas pero no se definen acciones que logre la continuidad de la obra. | AF43: 20% | AG43: 20% | AH43: CB | AI43: La acción debe estar encaminada a recuperar el recurso.
A44: Auditoría Regular vigencia 2016 | B44: 2017-11-09 | C44: 6 | D44: En la revisión de los proyectos de vivienda nueva referenciados en el siguiente cuadro, se evidenció que a la fecha se encuentran 850 viviendas sin entregar, teniendo en cuenta que los proyectos están terminados completamente, algunos de ellos desde el año 2013, hecho este que fue corroborado luego de las visitas realizadas a dichos proyectos los días 12 y 13 de junio de 2017, por lo tanto, se ha estado invirtiendo gran cantidad de recursos en lo que respecta a vigilancia, gastos de servicios públicos y adicional a ello mantenimiento del inmueble al momento de su entrega.(ver cuadro 10 Proyectos de Vivienda Nueva evaluados, del informe). Es de anotar, que estos proyectos se encuentran enmarcados dentro del Programa de vivienda gratuita del gobierno nacional y del cual le fue adjudicado al Municipio de Medellín 10.000 viviendas nuevas, no obstante, si bien el Instituto Social de Vivienda y Hábitat de Medellín – ISVIMED ha enviado oficios de solicitud reiterativa con respecto a la modificación del contrato de compraventa suscrito entre ISVIMED y Fidubogotá, en los siguientes términos: “…La modificación de las respectivas promesas de compraventa consistirían en el valor y la forma de pago, pues en la misma se hace mención que FIDUCIARIA BOGOTÁ pagará por el valor de las viviendas 60 SMLMV y el ISVIMED aportará 10 SMLMV, razón por la cual al no aportar recursos el ISVIMED FIDUBOGOTÁ pagaría 70 SMLMV por el valor de las viviendas…”. Esto enmarcado para los siguientes proyectos de vivienda nueva, así: (Ver Cuadro 11. Proyectos de vivienda nueva). Sin embargo, cada oficio remitido tiene un periodo de seis meses de diferencia y a la fecha del proceso auditor no se tiene un pronunciamiento por parte del Gobierno Nacional, por lo que no es una gestión óptima para el fin que se busca, toda vez, que el artículo 14 de la Ley 1755 de 2015, el cual establece que: “Artículo 14. Términos para resolver las distintas modalidades de peticiones. Salvo norma legal especial y so pena de sanción disciplinaria, toda petición deberá resolverse dentro de los quince (15) días siguientes a su recepción. Estará sometida a término especial la resolución de las siguientes peticiones: 1. Las peticiones de documentos y de información deberán resolverse dentro de los diez (10) días siguientes a su recepción. Si en ese lapso no se ha dado respuesta al peticionario, se entenderá, para todos los efectos legales, que la respectiva solicitud ha sido aceptada y, por consiguiente, la administración ya no podrá negar la entrega de dichos documentos al peticionario, y como consecuencia las copias se entregarán dentro de los tres (3) días siguientes. 2. Las peticiones mediante las cuales se eleva una consulta a las autoridades en relación con las materias a su cargo deberán resolverse dentro de los treinta (30) días siguientes a su recepción…”. Por lo que, el ISVIMED está incurriendo en mayores costos del valor real de la vivienda, sin tener la autonomía para la entrega y asignación de estos bienes inmuebles, por lo que se vulnera el principio de la gestión fiscal de eficiencia configurándose un hallazgo administrativo. | F44: Administrativa | G44: La accion de mejora para la entrega de las 405 viviendas que aún estan pendientes, se hara considerando los siguientes aspectos asi: Técnico: Realizar mantenimiento de las viviendas que presentan producto no comforme a fin de adecuarlas para la entrega a sus beneficiarios. Jurídico: Seguimiento mensual con las notarias con acompañamiento del delegado de la Superintendencia de Notariado y Registro, en desarrollo del convenio No.130 de 2016, en donde se lleva a cabo la escrituración de las viviendas sin entregar. Social: Seguimiento y verificación mensual a los hogares que presentan novedades para que aporten los requisitos faltantes y que no permiten el proceso de asignación del subsidio municipal, escrituración y entrega. El seguimiento ayudará a identificar aquellos hogares que pasados tres meses no hayan cumplido con el total de requisitos, los mismos que serán remitidos a FONVIVIENDA para que allí, analicen la pertinencia de revocar el subsidio Nacional. Considerando que existen hogares que tienen subsidio asignado por el Gobierno nacional representado en 60 SMMLV, pero que no cumplen con los requisitos establecidos en el decreto 2339 de 2013, para otorgarles el subsidio municipal complementario equivalente a los 10 SMLMV restantes, se impulsará ante Fonvivienda y FIDUCIARIA BOGOTA, en calidad de vocera del Patrimonio Autónomo Matriz del programa Nacional de Vivienda gratuita los tramites necesarios para la asignacion de los subsdios Nacionales en un 100%. | H44: 2007-12-01 | I44: 2018-12-30 | J44: Mitigar las causas que dieron origen a la no entrega oportuna de los 405 apartamentos sin entregar de proyectos terminados identificados en la Auditoría Regular vigencia 2016 . | K44: 2018-12-30 | L44: Subdirección de Dotación de Vivienda y Hábitat Subdirección Jurídica Subdirección Poblacional | M44: Rodrigo Alberto Rendón Cortés Guiller Alvarez, lider de proyecto; Laura del Socorro Mesa. Paulina Rengifo, profesional especializada Natalia Andrea Restrepo. Jazmin Vasquez Vasquez, profesional universitaria. | P44: Avance febrero 2018: A la fecha se encuentra 299 viviendas pendientes, y se tiene identificado la subdirección responsable de dar tramite. Por parte del área técnica se inicia verificación de habitabilidad, el área jurídica ha establecido reuniones con las notarias para avanzar con estos tramites. Al Ministerio de Vivienda se le ha informado el tema de los hogares cruzados con asignación de subsidio por parte del Gob. Nacional. Avance mayo 2018 Jurídica: Mediante radicado S 6136 del 10 de mayo de 2018, se reitero al Director de FONVIVIENDA la necesidad de que por parte del Ministerio se le de asignación al 100% de los hogares que no cumplen con los requisitos para proceder con la entrega de los apartamentos, para de esta manera disminuir el número de viviendas pendientes por entregar. Se adjunta oficio. Avance mayo 2018: memorando 500-172 CD. ActaN.3, SEGUIMIENTO AUDITORIA PROYECTOS VIVIENDA NUEVA - MARZO 2018 Dotación: Del total de los apartamentos que se encuentran pendientes de entrega, actualmente 21 apartamentos estan pendientes por viabilidad técnica, para estos se programa intervención por parte del técnico contratado para realizar las reparaciones a que haya lugar en cada uno de ellos y así proceder con la entrega. memorando 400-107 | V44: Auditoría Regular vigencia 2016 | W44: Dotación Jurídica | X44: 4,047 | Y44: -577 | Z44: 2018-12-31 | AA44: Dotación: Seguimiento Diciembre 2018: Desde la subdireccion de Dotacion se viene realizando la verificacion de los apartamentos que son reportados por la Subdirecciones Juridica y Poblacional como viables para entrega, posterior a su verificacion se realizan las reparaciones requeridas, y son reportados a la Subdireccion Poblacional para que realice la entrega a los beneficiarios, para realizar estas reparaciones se contrato personal tecnico, reduciendo los tiempos de viabilizacion tecnica a maximo dos semanas; Con relación a los apartamentos que se encuantran pendiente de entrega al beneficiari final, que corresponde a 191 apartamentos, 1 de ellos está pendiente por viabildiad técnica y actualmente se está trabajando. Jurídica: Seguimiento 24/01/2019 Con relación a los apartamentos que se encuantran pendiente de entrega al beneficiari final, que corresponde a 126 apartamentos, adicionalmente fonvivienda dio respuesta al oficio con radicado S6136 de 2018, mediante la resolución 2308 de 2018, otorgandole el 100% del subsidio a 84 familiar pertenecientes al programa de vivienda gratuita. | AB44: correo 31.1.2019, asunto: Actas de reunión Aptos Vacios de: Bibiana Osorio Londoño <bibiana.osorio@isvimed.gov.co> | AC44: Jurídica: Resolucion N° 2308 de 2018 (84 subsidios de vivienda) Dotación: Informe/actas de reunión del equipo de apartamentos vacíos, correspondientes al ultimo trimestre, en las que se evidencia el numero de apartamentos entregados cada periodo. | AD44: 69% | AE44: A la fecha del seguimiento siguen pendiente 191 viviendas por entregar, pendientes por procesos jurídicos. | AF44: 50% | AG44: 50% | AH44: CM | AI44: Continuar realizando gestión hasta subsanar al 100%
A45: Auditoría Regular vigencia 2016 | B45: 2017-11-09 | C45: 7 | D45: Revisada la documentación correspondiente al proyecto de vivienda nueva denominado “Montaña B8 y Mirador de la Cascada”, se evidenció las copias de las póliza de seguro de cumplimiento particular N°21-45-101106353 Anexo 5 expedida por Seguros del Estado S.A. de fecha 09/04/2014, vigencia: desde 26/04/2014 a 25/08/2017 y Anexo 7 cuya fecha de expedición fue 12/08/2014, vigencia: desde 26/04/2014 a 30/10/2017 en las cuales el párrafo “Nota” hace referencia a lo siguiente: “La vigencia del amparo de calidad del servicio será de tres (3) años contados a partir de la fecha de recibo de Informe Final. Beneficiario: Alianza Fiduciaria S.A. – Vocera del Fideicomiso Macroproyecto Pajarito PA2 – Tirol III”. Nota que es contraria con el proyecto al cual pertenece la ampliación de las pólizas expedidas, las cuales corresponden al proyecto de vivienda nueva antes referenciado, lo que conlleva a un incumplimiento de los Artículos 116 y 127 de Decreto Nacional No. 1510 de 2013, se corre el riesgo que en una eventual reclamación ante la empresa aseguradora, ésta evada la reclamación, ya que en la póliza no se encuentra aclarado el proyecto de vivienda que se adelanta y cuyas pólizas fueron expedidas y hacen parte del mismo, generando con ello un inadecuado control y verificación por parte del instituto y en la obligación que le asiste a éste para la aprobación de dichas pólizas, y el amparo que sobre las mismas se debe tener constituido en el evento de un siniestro o incumplimiento por parte de los responsables de la ejecución del proyecto, por lo que se estaría vulnerando el principio de la gestión fiscal de la eficiencia consagrado en el artículo 8 de la Ley 42 de 1993, configurándose con ello en un hallazgo administrativo. | F45: Administrativa | G45: Como acción de mejora se viene dando aplicación al INSTRUCTIVO PARA CONTROL DE PROYECTOS POR FIDUCIA I-GDS-03 - , en el que se determina que para proceder con la suscripción del acta de inicio entre las partes se debe contar con el formato F-GJ-07 - APROBACIÓN DE GARANTÍA, generando con ello control y verificación por parte del Instituto y mitigar así el riesgo que se pueda presentar ante una eventual reclamación. | H45: 2017-04-05 | I45: 2018-12-31 | J45: Mitigar el riesgo que se pueda presentar ante una eventual reclamación ante la empresa aseguradora, teniendo claro el proyecto de vivienda para el cual fue expedida la póliza. | K45: 2018-12-31 | L45: Subdirección Jurídica | M45: Laura Mesa Jaramillo Subdirector Jurídica | P45: Avance febrero 2018: En los proyectos iniciados en este principio de año 2018 se ha estado aplicando el instructivo I-GDS-03 y el formato F-GJ-07. Se cuenta con soportes. (2018.02.12 COSEICO Aprobación 90 Mejoramientos Comuna 3, 2018.02.12 COSEICO Aprobación 250 Mejoramientos Comuna 6) | V45: Auditoría Regular vigencia 2016 | W45: Dotación Jurídica | X45: 635 | Y45: -576 | Z45: 2019-01-24 | AA45: Jurídica: Como acción de mejora se dio la aplicación al INSTRUCTIVO PARA CONTROL DE PROYECTOS POR FIDUCIA I-GDS-03 - , en el que se determina que para proceder con la suscripción del acta de inicio entre las partes se debe contar con el formato F-GJ-07 - APROBACIÓN DE GARANTÍA, enerando con ello control y verificación por parte del Instituto y mitigar así el riesgo que se pueda presentar ante una eventual reclamación. | AC45: Jurídica: Consolidado apobación de garantías | AD45: 100% | AE45: Desde la jurídica estan dando aplicación. Se evidencia respuesta a requerimiento de la Contraloría E201900000220 y E836 por medio del radicado S1129 con fecha 2019.01.31. | AF45: 50% | AG45: 50% | AH45: CM | AI45: Continuar realizando gestión al proceso de estos proyectos.
A46: Auditoría Regular vigencia 2016 | B46: 2017-11-09 | C46: 8 | D46: Una vez evaluada la documentación, que se encuentra en el archivo de la Entidad con respecto al proyecto de vivienda nueva denominado “Montaña B8 y Mirador de la Cascada”, se evidenció en el informe de programación N° 03 del 30 de diciembre de 2013 presentado por la interventoría del proyecto Gutiérrez Díaz y Cía. S.A., en la página 34, numeral 3.3 Sobrecostos del proyecto por incumplimiento de entregas de diseños definitivos y completos, donde se presenta la siguiente relación: (ver Cuadro 12. Sobrecostos del proyecto del informe). De acuerdo con el informe antes señalado, se presentan las siguientes conclusiones: • “Se puede establecer una clara responsabilidad de los atrasos a la no entrega a tiempo de los diseños o paquetes técnicos de las obras, lo que ha generado retrasos constantes en la ejecución de la misma. • Para el inicio de los trabajos programados en cualquier obra, se hace indispensable tener la información técnica (diseño, presupuesto, detalles constructivos, programación, etc.) en un 100% concluida y entregada al contratista en forma oportuna con todos los sellos y aprobación de las entidades públicas correspondientes. • Según la Cláusula Segunda, Inciso B Numeral 1 de la minuta del contrato de Fideicomiso en donde se establece que: “Suministrar en forma oportuna toda la información que sea necesaria para la ejecución de la obra (planos, especificaciones, diseños debidamente conciliados” a la fecha de este informe no se ha cumplido a cabalidad.” Por lo que esta condición ocasionó un incremento de los valores iniciales del proyecto y variaciones en el alcance físico de las obras, toda vez, que causó modificación o desplazamiento del sitio de trazado inicialmente propuesto para la formulación del proyecto, demoras en el plazo de entrega final de los diseños, al igual que generó actividades adicionales y obra extra no contempladas inicialmente, así mismo, la suspensión actual del proyecto, conllevando con ello a un mayor valor del mismo, incumpliendo con los términos establecidos en el numeral 4° del artículo 25 “Principio de Economía”, de la ley 80 de 1993, el Principio de Planeación concordante con el artículo 87 “Maduración de Proyectos” de la Ley 1474 de 2011, vulnerando con ello los principios de la gestión fiscal de economía, eficiencia y eficacia consagrados en el artículo 8 de la ley 42 de 1993, porque no se cumplió con los fines esenciales del Estado, lo que redunda en una entrega oportuna del proyecto de vivienda en beneficio de la comunidad a la cual le fueron asignados dichos subsidios, por lo tanto, se configura en un hallazgo administrativo con presunta incidencia disciplinaria y fiscal, tasado en $691.580.088. | F46: Disciplinaria y Fiscal | G46: Dentro de las acciones de mejora establecidas por el Instituto, se incorporo el M-GDS-05 - MANUAL DE ESTUDIOS Y DISEÑOS PARA PROYECTOS CONSTRUCTIVOS , el cual Establece una guía de estudios y diseños que compile los requerimientos técnicos, ambientales y sociales para garantizar el proceso de diseño de una forma mas integral, partiendo desde la planeación y estructuración de los proyectos habitacionales del programa de vivienda nueva hasta la aplicación de una metodología en la gestión del proyecto que permita su eficaz implementación y minimice reprocesos en su proceso constructivo, igualmente se determino contratar interventorías a los estudios y diseños. Se dará continuidad a la demanda que hoy se adelanta por parte del Isvimed, en contra de la firma CONSINSA RAMON H quien hizo los estudios y diseños de los proyectos Montaña B8 y Cascada. | H46: 2017-04-04 | I46: 2019-06-30 | J46: Garantizar que una vez se inicie el proceso de ejecución de los proyectos, se cuente con todos los insumos necesarios, evitando así, variaciones en los proyectos, los alcances físicos de las obras, y obras extras no contempladas inicialmente, definiendo las etapas de desarrollo para el diseño de los proyectos habitacionales, el alcance de cada estudio, identificando los productos mínimos que debe contener un proyecto habitacional desarrollado por el Instituto, e iniciar el proceso de selección y de contratación para la ejecución del la obra, una vez se cuente con las licencias de construcción. | K46: 2019-06-30 | L46: Subdirección de Dotación de Vivienda y Hábitat y Subdirección Jurídica | M46: Rodrigo Alberto Rendon Cortes; Laura del Socorro Mesa Jaramillo; Guiller Alexis Alvarez Moreno. | P46: Avance febrero 2018: La subdirección jurídica realizo dos reuniones con Coninsa Ramon H con el fin de llegar a un acuerdo para evitar llegara al Tribunal de arbitramento, pero se presentó diferencias entre los tecnicos de las partes y por tante se procedera al Tribunal. Avance mayo 2018 Jurídica: A la fecha esta en verificación por parte de ENFOQUE JURÍDICO la definición de si se realiza por un arbitramentro o por un amigable componedor. Se adjunta correo electronico Dotación: Informe estado del macroproyecto pajarito PA2 montaña B8 y mirador de la cascada. | V46: Auditoría Regular vigencia 2016 | W46: Dotación | X46: 817 | Y46: -395 | AA46: Se evidencia respuesta a requerimiento de la Contraloría E201900000220 y E836 por medio del radicado S1129 con fecha 2019.01.31. | AC46: Se evidencia respuesta a requerimiento de la Contraloría E201900000220 y E836 por medio del radicado S1129 con fecha 2019.01.31. | AE46: Se evidencia respuesta a requerimiento de la Contraloría E201900000220 y E836 por medio del radicado S1129 con fecha 2019.01.31. | AF46: 50% | AG46: 50% | AH46: CM | AI46: Continuar realizando gestión al proceso de estos proyectos.
A47: Auditoría Regular vigencia 2016 | B47: 2017-11-09 | C47: 9 | D47: El proceso de selección y la suscripción del contrato de obra se efectuaron sin disponer de los diseños, ni de la licencia de construcción correspondiente, estas omisiones en la planificación que a continuación se describen se evidenciaron en la revisión de la documentación suministrada por el ISVIMED (registros precontractuales e informes de la empresa de interventoría). En el Fideicomiso Macroproyecto Pajarito PA2 –Cucaracho posteriormente denominado Atardeceres–; suscrito el 17 de diciembre de 2012, entre el Instituto de Vivienda y Hábitat –ISVIMED-y Alianza Fiduciaria S.A, –con el objeto de que Alianza, como vocera del fideicomiso realice entre otras las siguientes actividades: a) Adelante el proceso de invitación, selección y contratación directa del diseño, la construcción y la interventoría según previa instrucción del ISVIMED” – El 17 de febrero de 2013 se suscribió con la empresa Coninsa Ramón H SA el contrato para la elaboración de los diseños , previamente, el 30 de octubre de 2012 se había efectuado el proceso de selección del contratista de obra, este contrato se firmó con la empresa Pórticos SA., el 21 de febrero de 2013; en esta misma fecha se abrió la convocatoria para la selección del contrato de interventoría, mediante la Invitación Privada 05 de 2013; en la que fue elegida la empresa Estructuras Interventoría y Proyectos–EIP Ltda. –, este contrato fue refrendado el 15 de abril de 2013. El acta de inicio tanto del contrato de obra, como el de interventoría se suscribieron el 23 de abril de 2013. Ahora bien, la licencia de construcción para el proyecto Cucaracho-Atardeceres fue concedida el 31 de mayo de 2013 mediante la Resolución C3-0234, es decir, la licencia de construcción fue otorgada en una fecha posterior a los procesos de selección y de contratación, tanto del contrato de obra, como el de interventoría. No obstante haberse establecido la fecha de inicio para el 23 de abril de 2013, los diseños definitivos fueron entregados el 29 de junio de 2013 por la empresa Coninsa Ramón H., por consiguiente, las actividades de construcción del proyecto comenzaron el 1 de julio de 2013, período durante el cual se generaron unos sobrecostos, tasados por la empresa de interventoría: Estructuras Interventoría Proyectos –EIP– Ltda., en $108.772.907. (Ver cuadro N°13) Otro aspecto, que guarda relación con lo anteriormente presentado es que el acta de cabida del proyecto levantada el 15 de julio de 2013, no fue posible firmarla, porque el proyecto en la Torre1 no cumplió con el retiro exigido en la Licencia de Construcción C3-0234; –el retiro en la obra es de 4,10m entre paramentos de la Torre1 con relación a la vía y según la Licencia debe ser de 5,0 m–, lo que obligó a efectuar variaciones al proyecto de vivienda. [ver cuardos No.13; 14 y 15 del informe]. Estas irregularidades en la planeación de este proyecto por parte de Alianza Fiduciaria, el ISVIMED y Coninsa Ramón H. se reflejaron en el desarrollo de la obra, puesto que retrasaron el logro del objetivo propuesto e incrementaron el valor del proyecto. Asimismo, evidencian una trasgresión del principio de la función administrativa de Economía en el sentido de que dicho principio “constituye una orientación para que el cumplimiento de los fines del Estado se proyecte buscando el mayor beneficio social al menor costo”. Este principio permite a su vez establecer una relación con los principios de la gestión fiscal de Eficiencia y Eficacia definidos en la Ley 42 de 1993 – Artículo 8°; La vigilancia de la gestión fiscal del Estado se fundamenta en la eficiencia, la economía, la eficacia, la equidad y la valoración de los costos ambientales, de tal manera que permita determinar en la administración, en un período determinado, que la asignación de recursos sea la más conveniente para maximizar sus resultados; que en igualdad de condiciones de calidad los bienes y servicios se obtengan al menor costo; que sus resultados se logren de manera oportuna y guarden relación con sus objetivos y metas”. Los sobrecostos en que se incurrió durante el período descrito entre el 23 de abril de 2013 y el 1 de julio de 2013 vulneran los principios de la gestión fiscal de Eficiencia y Eficacia, toda vez que el personal, tanto del contratista como de la interventoría estuvo dispuesto, sin embargo, la construcción del proyecto de vivienda Cucaracho-Atardeceres no se había iniciado por la falta de diseños definitivos. Estas acciones configuran un hallazgo administrativo con presunta incidencia fiscal por valor de $108.772.907 | F47: Disciplinaria y Fiscal | G47: Dentro de las acciones de mejora establecidas por el Instituto, se incorporo el M-GDS-05 - MANUAL DE ESTUDIOS Y DISEÑOS PARA PROYECTOS CONSTRUCTIVOS , el cual Establece una guía de estudios y diseños que compile los requerimientos técnicos, ambientales y sociales para garantizar el proceso de diseño de una forma mas integral, partiendo desde la planeación y estructuración de los proyectos habitacionales del programa de vivienda nueva hasta la aplicación de una metodología en la gestión del proyecto que permita su eficaz implementación y minimice reprocesos en su proceso constructivo, igualmente se determino contratar interventorías a los estudios y diseños. Se dará continuidad a la demanda que hoy se adelanta por parte del Isvimed, en contra de la firma CONSINSA RAMON H quien hizo los estudios y diseños del proyecto Atardeceres. | H47: 2017-04-04 | I47: 2019-06-30 | J47: Una vez se inicie el proceso de ejecución de los proyectos contar con todos los insumos necesarios, evitando así, variaciones en los proyectos, los alcances físicos de las obras, y obras extras no contempladas inicialmente, definiendo las etapas de desarrollo para el diseño de los proyectos habitacionales, el alcance de cada estudio, identificando los productos mínimos que debe contener un proyecto habitacional desarrollado por el Instituto, e iniciar el proceso de selección y de contratación para la ejecución del la obra, una vez se cuente con las licencias de construcción | K47: 2019-06-30 | L47: Subdirección de Dotación de Vivienda y Hábitat y Subdirección Jurídica | M47: Rodrigo Alberto Rendon Cortes; Laura del Socorro Mesa Jaramillo; Guiller Alexis Alvarez Moreno. | P47: Avance febrero 2018: La subdirección jurídica realizo dos reuniones con Coninsa Ramon H con el fin de llegar a un acuerdo para evitar llegara al Tribunal de arbitramento, pero se presentó diferencias entre los tecnicos de las partes y por tante se procedera al Tribunal. Avance mayo 2018 Jurídica: A la fecha esta en verificación por parte de ENFOQUE JURÍDICO la definición de si se realiza por un arbitramentro o por un amigable componedor. Se adjunta correo electronico | V47: Auditoría Regular vigencia 2016 | W47: Dotación | X47: 817 | Y47: -395 | AA47: Se evidencia respuesta a requerimiento de la Contraloría E201900000220 y E836 por medio del radicado S1129 con fecha 2019.01.31. | AC47: Se evidencia respuesta a requerimiento de la Contraloría E201900000220 y E836 por medio del radicado S1129 con fecha 2019.01.31. | AE47: Se evidencia respuesta a requerimiento de la Contraloría E201900000220 y E836 por medio del radicado S1129 con fecha 2019.01.31. | AF47: 50% | AG47: 50% | AH47: CM | AI47: Continuar realizando gestión al proceso de estos proyectos.
A48: Auditoría Regular vigencia 2016 | B48: 2017-11-09 | C48: 10 | D48: Durante la evaluación de la documentación que soporta la ejecución de los diferentes programas que atiende el Instituto Social de Vivienda y Hábitat de Medellín - ISVIMED, en los expedientes que reposan en el archivo del Instituto, se evidenció la no existencia de algunos documentos que hacen parte de la trazabilidad de los procedimientos desarrollados por el Instituto, tales como: actas de pago, certificados, constancias y demás documentos que hacen parte del expediente, lo que impide una adecuada verificación de los mismos, generando con ello que se afecte la fidelidad de los programas y proyectos desarrollados por el Instituto y la claridad en el manejo de la información, además de un atraso en la labor de revisión de la información requerida para la evaluación correspondiente, por lo que no se está dando cumplimiento con los principios generales que rigen la función archivística establecidas en el artículo 4°de la Ley 594 de 2000, lo que se genera por debilidades de control que no permiten advertir oportunamente el problema, vulnerando con ello el principio de la gestión fiscal de eficiencia consagrado en el Artículo 8 de la ley 42 de 1993, por lo que se configura un hallazgo administrativo. | F48: Administrativa | G48: Designar en cada Subdirección y oficina, un funcionario de planta o contratista para que sirva de enlace de la gestión documental, para que conjuntamente con el personal del Archivo Central, apoye el cumplimiento normativo de la gestión documental en cada dependencia. | H48: 2017-12-11 | I48: 2018-12-31 | J48: Corregir las debilidades de control observadas por la no inclución de algunos documentops en los expedientes del archivo del Isvimed y que hacen parte de la trasabilidad de los procedimientos desarrollados por el Instittuto para dar cumplimiento a los principios generales que rigen la función archivística establecidas en el artículo 4°de la Ley 594 de 2000. | K48: 2018-12-31 | L48: Subdirección Administrativa y Financiera | M48: Cesar Castaño J Subdirección Administrativa y Financiera | P48: Seguimiento febrero 2018: Se realiza capacitación al personal del Instituto, sobre las normas aplicables para la conformación de los Archivos de Gestión (Implementacicón de las Tablas de Retención Documental en los Archivos de Gestión). Anexo Capacitación tablas de retención de fecha septiembre 2017. Avance junio 2018, admon y financiero: Se solicita enlaces de Gestión Documental a cada área con el fin de bajar la información y validar que se estén cumpliendo los requerimientos establecidos para la organización de la documentación. Se programará capacitación de TRD en conjunto con gestión humana para julio de 2018. | V48: Auditoría Regular vigencia 2016 | W48: Administrativo y Financiero | X48: 385 | Y48: -576 | Z48: 2018-12-31 | AA48: Seguimiento diciembre 2018: A la fecha contamos con los siguientes enlaces de gestión documental (tabla) Se tiene programado para el 17 de enero la primera reunión de sensibilización para este equipo de manera que podamos fortalecer a través de estos enlaces todo lo concerniente al Sistema de Gestión Documental. A medida que se avance con la contratación del personal se solicitará a las áreas que faltan por designar el enlace para que el equipo pueda ser totalmente interdisciplinar. | AB48: Correo 28/12/2018, Asunto: Enlaces de gestión documental | AC48: Soporte enviado a través de correo: viviana.jaramillo@isvimed.gov.co: Evidencia Enlaces GD. Hallazgo 10. Accion 1 | AE48: Se evidencia tabla con listado de los enlaces, falta subdirecciones por definir enlace y otras con personal en licencia. Falta entrenamiento para que ésta acción cumpla su eficacia. | AF48: 60% | AG48: 60% | AH48: CM | AI48: Seguimiento 8.01.2019: 1. Confirmar los enlaces con cada subdirección por el tema de continuidad de los contratistas y retroalimentar en la responsabilidad que tienen como enlace.
G49: Realizar auditorías de seguimiento cada tres meses por parte de Archivo Central, a los Archivos de Gestión, como medida de control para verificar el cumplimiento normativo en el proceso de organización de los expedientes. | H49: 2018-03-01 | I49: 2018-12-31 | K49: 2019-12-31 | P49: Avance junio, admon y financiero: Utilizando diferentes estrategia se ha realizado acompañamiento y apoyo al personal encargado de la organización de documentación, teniendo como referente las TRD: Campaña de orden y aseo, capacitación personalizada por proceso, atención permanente a consultas diarias. Se programarán para el segundo semestre auditorías de seguimiento a la aplicación de las TRD para la organización de la documentación. | W49: Administrativo y Financiero | X49: 305 | Y49: -576 | AA49: El proceso de auditoria se estuvo llevando a cabo durante la semana nacional de los archivos del 9 al 12 de octubre donde se validó el proceso de organización de expedientes y apliación de TRD. La próxima revisión se llevará a cabo a finales de febrero cuando ya esté completa la contratación de personal. Se envía planilla de asistencia. De igual manera se viene adelantando un proceso de actualzación de trd, que se espera esté terminado a finales de marzo , con el fin de tener en cuenta todo los documentos que se producen, reciben y tramitan en la ejecución de los procesos | AB49: Correo: 22,01,2019 | AC49: Soporte enviado a través de correo: viviana.jaramillo@isvimed.gov.co: Registro asistencia seguimiento semana nacional de los archivos. Hallazgo 10. Accion 2 y carpeta comprimida de Actualizacion TRD. | AE49: Se evidencian avances en la actualización de TRD | AF49: 40% | AG49: 40% | AH49: CM | AI49: Realizar las auditorias, verificación de que los expediente se encuentre completos.
G50: Contratar personal suficiente e idoneo para intervenir el archivo pendiente, el cual debe contar con estudios como tecnólogo o técnico en archivística, gestión documental o similares, para la realización de las labores archivísticas en los documentos de Archivo Central y en los Archivos de Gestión. | H50: 2018-01-01 | I50: 2019-12-31 | K50: 2019-12-31 | P50: Avance febrero 2018: Se contrató 1 líder con experiencia de 11 años, 1 técnica y 1 auxiliar. Anexo contratos 290, 291 y 292 de fecha inicio 1-02-2018. Avance junio 2018, admon y financiero: Se fortaleció el grupo de gestión documental con capacitaciones internas y socialización de los procesos. se mantiene una permanenten comunicación a través de comités primarios y el sistema de información documental Wiki. A junio de 2018 se viene adelantando el proceso de contratación por medio del cual se atenderá la necesidad de intervención (análisis, organización y digitalización), con personal idóneo que garantice la eficacia de la actividad. Se cuenta con el estudio previo y aprobación de contratación. | W50: Administrativo y Financiero | X50: 729 | Y50: -211 | AA50: El equipo de gestión documental se encuentra en este momento con un déficit de personal dado que no contamos aún con el reemplazo de las personas que se han retirado del Instituto. Lo que es de notorio a la hora de avanzar en el proceso de organización para entregar a la tercerización. Actualmente se realiza inventario de la informacion represada y que se debe entregar a la empresa de tercerización. Por lo anterior, se espera que una vez iniciado el proceso de tercerizacion en el mes de Febrero, se pueda establecer el número de personal requerido para cubrir todos los procesos de gestión documental. | AB50: Correo: 22,01,2019 Correo: 23,01,2019 | AC50: Correo con listado de los contratistas. | AE50: Se evidencia que área de gestión documental cuenta con 12 contratistas. | AF50: 40% | AG50: 40% | AH50: CM | AI50: Proyectar los requerimientos de personal y evaluar de contar con un lider de gestión documental de planta. Y realizar las contrataciones pertinentes.
A51: Auditoría Regular vigencia 2016 | B51: 2017-11-09 | C51: 11 | D51: Hallazgo administrativo N°11 (Corresponde a la Observación No. 11 del Informe Preliminar) deficiencias en la ubicación y custodia del archivo del ISVIMED. Durante el desarrollo del proceso auditor se evidenció la ubicación del archivo general de la Entidad, el cual se encuentra desprotegido de toda custodia, toda vez, que cualquier persona puede acceder a él. Otro aspecto, que llama la atención es el sitio de destinación del archivo general del ISVIMED, ya que se encuentra en el sótano de la edificación, con el riesgo de inundación por parte de la quebrada aledaña a las instalaciones del Instituto, por otro lado, la tubería de desagüe sanitaria se encuentra expuesta y con el agravante que podría presentarse ruptura de la misma, que ocasionaría perdida de la información. Según concepto de la Corte Constitucional, en la cual se hace referencia a la custodia y conservación de los documentos públicos expone lo siguiente: (Se transcribe la norma). De acuerdo con lo antes indicado, el Instituto Social de Vivienda y Hábitat de Medellín – ISVIMED no cumple con lo establecido en el artículo 3° del Acuerdo 008 de 2014 del Archivo General de la Nación, el cual determina que: (Se transcribe la norma). En virtud de la norma antes citada y los riesgos que conlleva el inadecuado proceso de organización, conservación, uso y manejo de los documentos públicos, soporte documentario de los programas y proyectos adelantados por el Instituto Social de Vivienda, vulnerado con ello el principio de la gestión fiscal de eficiencia consagrado en artículo 8 de la 42 de 1993, por lo tanto, se configura un hallazgo administrativo. | F51: Administrativa | G51: Consecución de un espacio adecuado para ubicar el Archivo Central que cumpla con las especificaciones técnicas y de seguridad requeridas para la conservación y preservación de los documentos de la entidad. | H51: 2017-12-11 | I51: 2019-12-31 | J51: Garantizar los espacios y las instalaciones necesarias para el correcto funcionamiento del archivo del Isvimed, teniendo en cuenta las especificaciones técnicas existentes sobre áreas de archivos. | K51: 2019-12-31 | L51: Dirección, Subdirección Administrativa y Financiera | M51: Cesar Castaño J | P51: Avance junio, admon y financiero: A junio de 2018 se viene adelantando el proceso de contratación por medio del cual se atenderá la necesidad de intervención (análisis, organización y digitalización) y custodia de la documentación del archivo central. En el momento se cuenta con el estudio de mercado y aprobación por parte del comité estructurador, para en el mes de julio iniciar el proceso contractual. | V51: Auditoría Regular vigencia 2016 | W51: Administrativo y Financiero | X51: 750 | Y51: -211 | AA51: En el Comité de gestión y desempeño del 30 de octubre fue aprobada la propuesta para la tercerización de la empresa ERT, se ejecutará a través de un contrato interadministrativo donde se intervendrán 80.000 expedientes iniciando primordialmente con la documentación que se encuentra almacenada en la sede alterna. Este se encuentra proyectado para iniciar en febrero. De esta manera y mientras el Instituto cuenta con la sede definitiva, se inicia el proceso de custodia alterna con las condiciones necesarias para conservar la documentación. | AB51: Correo 22,01,2019 | AC51: Soporte enviado a través de correo: viviana.jaramillo@isvimed.gov.co: Evidencia EPT. Hallazgo 11. Accion 1 y Evidencia oferta de la ERT. Hallazgo 11. Accion 1 | AE51: Se evidencia avance en la selección de la contratación de la custodia de expedientes. | AF51: 50% | AG51: 50% | AH51: CM | AI51: Continuar con el proceso contractual y realizar una planeación del proyecto para garantizar el cumplimiento del objetivo y realizar los seguimiento en el comité institucional de gestión y desempeño.
A52: Auditoría Regular vigencia 2016 | B52: 2017-11-09 | C52: 12 | D52: Deficiencia de estudio previo para evaluar la falta de capacidad de la planta de cargos para afrontar las labores propias del instituto. Durante el desarrollo del proceso auditor se evalúo la conformación de la planta de cargos de la Entidad y se evidenció de acuerdo con la información reportada por el Instituto mediante correo electrónico del 04 de septiembre de 2017, que dispone de 50 funcionarios de planta y 234 personas vinculadas por contrato prestación de servicios. En sentencia C-614/09 Referencia: expediente D-7615 Magistrado Ponente: Dr. JORGE IGNACIO PRETELT CHALJUB del 2 de septiembre de 2009, la Sala Plena de la Corte Constitucional, señala lo siguiente: “La breve descripción de la jurisprudencia que se realizó en precedencia permite inferir dos conclusiones relevantes para el caso objeto de estudio: La primera, los jueces ordinarios y constitucionales han sido enfáticos en sostener que la realidad prima sobre la forma, de ahí que no puede suscribirse un contrato de prestación de servicios para ejecutar una relación laboral. De hecho, el verdadero sentido del principio de primacía de la realidad sobre la forma impone el reconocimiento cierto y efectivo del real derecho que surge de la actividad laboral. Por consiguiente, en caso de que los jueces competentes encuentren que se desnaturalizó la relación contractual de trabajo procederán a declarar la existencia del verdadero contrato celebrado, sin que sea relevante el nombre acordado, y ordenarán ajustar los derechos económicos a lo que corresponda en justicia y derecho. La segunda, la administración no puede suscribir contratos de prestación de servicios para desempeñar funciones de carácter permanente de la administración, pues para ese efecto debe crear los cargos requeridos en la respectiva planta de personal. De esa manera, ahora resulta relevante e indispensable establecer cómo debe entenderse el concepto de función permanente. Pasa la Sala a ocuparse de ese tema: La jurisprudencia colombiana permite establecer algunos criterios que definen el concepto de función permanente como elemento, que sumado a la prestación de servicios personales, subordinación y salario, resulta determinante para delimitar el campo de la relación laboral y el de la prestación de servicios, a saber: i) Criterio funcional: la ejecución de funciones que se refieren al ejercicio ordinario de las labores constitucional y legalmente asignadas a la entidad pública (artículo 121 de la Constitución) deben ejecutarse, por regla general, mediante el empleo público. En otras palabras, si la función contratada está referida a las que usualmente debe adelantar la entidad pública, en los términos señalados en el reglamento, la ley y la Constitución, será de aquellas que debe ejecutarse mediante vínculo laboral. En este sentido, la sentencia del 21 de agosto de 2003, de la Sección Segunda del Consejo de Estado, expresó: "…no puede existir empleo sin funciones cabalmente definidas en la ley o el reglamento, por mandato constitucional, y que el desempeño de funciones públicas de carácter permanente en ningún caso es susceptible de celebración de contratos de prestación de servicios. Para el ejercicio de funciones públicas de carácter permanente deberán crearse los empleos correspondientes" ii) Criterio de igualdad: Si las labores desarrolladas son las mismas que las de los servidores públicos vinculados en planta de personal de la entidad y, además se cumplen los tres elementos de la relación laboral, debe acudirse a la relación legal y reglamentaria o al contrato laboral y no a la contratación pública (Consejo de Estado, Sección Segunda, sentencia citada del 6 de septiembre de 2008). iii) Criterio temporal o de la habitualidad: Si las funciones contratadas se asemejan a la constancia o cotidianidad, que conlleva el cumplimiento de un horario de trabajo o la realización frecuente de la labor, surge una relación laboral y no contractual (Consejo de Estado, Sección Segunda, sentencia ya citada del 3 de julio de 2003). Dicho en otros términos, si se suscriben órdenes de trabajo sucesivas, que muestra el indiscutible ánimo de la administración por emplear de modo permanente y continuo los servicios de una misma persona, y de esa manera, se encuentra que no se trata de una relación o vinculo de tipo ocasional o esporádico, es lógico concluir que nos referimos a una verdadera relación laboral (Consejo de Estado, Sección Segunda, sentencia del 17 de abril de 2008). (…) En síntesis, una de las condiciones que permite diferenciar un contrato laboral de un contrato de prestación de servicios es el ejercicio de la labor contratada, pues sólo si no hace parte de las funciones propias de la entidad, o haciendo parte de ellas no pueden ejecutarse con empleados de planta o requieran conocimientos especializados, pueden celebrarse contratos de prestación de servicios. De lo contrario, la administración debe recurrir a la ampliación de la planta de personal para celebrar contratos laborales…” . En virtud de lo antes indicado y de acuerdo con lo evidenciado, el Instituto Social de Vivienda y Hábitat de Medellín – ISVIMED ha vinculado un mayor número de personas por contrato de prestación de servicios para realizar labores propias de las funciones y objetivos de la entidad, contraviniendo lo dispuesto en el inciso quinto del artículo 2 del Decreto Ley 2400 de 1968, conllevando con ello a que no se tenga un conocimiento y disposición permanente frente a los procesos, funciones y objetivos propias del Instituto que garanticen una adecuada gestión y continuidad de los mismos en el tiempo que determinen un mejor servicio frente a la población objeto y razón de ser de la Entidad, vulnerando con ello los principios de la gestión fiscal de eficiencia y eficacia consagrados en el artículo 8 de la Ley 42 de 1993, por lo que se configura en un hallazgo administrativo. | F52: Administrativa | G52: 1. Realizar las acciones pertinentes para establecer convenio interadministrativo con la ESAP -Escuala Superior de Administración Pública, cuyo objeto será la elaboración de un estudio técnico de rediseño institucional a través del cual se pueda identificar y organizar la planta de personal del ISVIMED. | H52: 2017-09-29 | I52: 2018-12-31 | J52: Identificar la planta ideal de Isvimed, para cubrir las necesidades estratégicas y operativas del Instituto. | K52: 2018-12-31 | L52: Subdirección Administrativa y Financiera | M52: Cesar Castaño, Lina Agudelo, profesional Universitaria | P52: Seguimiento febrero 2018: Durante el mes de febrero de 2017, se solicitaron cotizaciones a diversos proveedores para realizar el estudio técnico, que permita identificar la planta de trabajo ideal para Isvimed. Se evidenció que las cotizaciones presentadas tenían grandes diferencias en cuanto a costo y tiempo de ejecución, por lo que se hizo necesario revisar con la etapa pre contractual, los lineamientos que se deben solicitar nuevamente, para establecer el tipo de contratación a desarrollar. Posteriormente, se establece contacto con la Subsecretaria de Desarrollo Organizacional de la Alcaldía de Medellín, para que brinden orientación sobre los criterios que deben solicitarse a los proveedores para el desarrollo del estudio técnico, para unificarlos y así, poder establecer criterios claros y precisos en las cotizaciones. De otro lado, la Profesional Especializada encargada de la eta precontractual de Isvimed, obtiene orientación sobre la forma precisa cómo se debe realizar la contratación del proceso de reestructuración y modernización del Instituto, en capacitación a la cual asiste en el mes de agosto sobre contratación estatal. Allí, recomiendan que este proceso sea realizado directamente con la ESAP Escuela Superior de Administración Pública, quienes dentro de su objeto social tienen contemplado este tipo de servicios a las entidades públicas, y quienes además tienen la experticia pertinente, para ello. Siguiendo la recomendación, se establece contacto con la ESAP Regional Antioquia – Chocó, con quienes se tiene reunión el 22 de septiembre de 2017 y en donde se concluye que el Instituto debe realizar la solicitud del proceso de reestructuración y modernización a la ESAP Central, específicamente a consultoría y asesoría, quienes analizarán y responderán la solicitud de acuerdo a la capacidad técnica para el 2017 o 2018. La solicitud por parte de Isvimed, fue enviada el 26 de septiembre de 2017. A la fecha no han dado respuesta oficial a esta solicitud, por lo que se ha realizado seguimiento telefónico y via mail, sin obtener respuesta. Avance a junio de 2018: la ESAP da respuesta al Instituto sobre el requerimiento del proceso de reestructuración y modernización el 16 de febrero de 2018 a través del oficio con Radicado E 1612, en donde informan que "Teniendo en cuenta que durante el primer semestre del año en curso no es posible suscribir convenios interadministrativos para prestar la asistencia técnica requerida, la ESAP considerará su petición en el segundo semestre de 2018, previa incorporación de la misma en la programación del Proyecto de fortalecimiento de las capacidades institucionales de las entidades públicas del orden territorial y nacional y la disponibilidad de recursos para la vinculación del personal asesor y profesional para el desarrollo de proceso". A través del oficio con Radicado S 8794 del 21 de junio de 2018, se solicita nuevamente a la ESAP "considerar nuevamente nuestra solicitud para llevar a cabo el proceso de reestructuración y modernización para el segundo semestre del año en curso", frente al cual se está a la espera de respuesta. | V52: Auditoría Regular vigencia 2016 | W52: Administrativo y Financiero | X52: 458 | Y52: -576 | Z52: 2019-01-22 | AA52: Diciembre de 2018: teniendo en cuenta la respuesta negativa obtenida de la ESAP para la realización de este proceso de modernización, se solicitó cotización a las siguientes entidades: Universidad de Antioquia, Universidad Católica Luis Amigó y Tecnológico de Antioquia. Las tres universidad, dieron respuesta en que se encuentran estructurando la respuesta y será entregada la primera semana de diciembre de 2018. Una vez se tengan el estudio de mercado, se procederá a establecer el tipo de contratación a realizar y continuar con el respectivo trámite contractual para el 2019. A la fecha, no se ha recibido ninguna de las cotizaciones solicitadas. | AB52: Correo: 22.01.2019 | AC52: Se envia por correo electrónico el soporte: Rediseño institucional seguimiento. Hallazgo 12. Soporte archivo hallazgo 12 (Respuesta ESAP). | AE52: No hay avances significativos en la acción. Las solicitudes de cotizacion de las U??? | AF52: 30% | AG52: 30% | AH52: CB | AI52: El proceso de selección de contratación se debe gestionar con prontitud, es una acción vencida y es un requisito de ley.
G53: 2. Para este estudio tecnico se cuenta con un presupuesto de $ 85,000,000. Este valor esta sujeto a la propuesta que la ESAP presente y su inicio seria despues de Ley de Garantías. | H53: 2018-01-07 | I53: 2018-12-31 | K53: 2018-12-31 | P53: Incluido en el Plan de adquisiciones | W53: Administrativo y Financiero | X53: 358 | Y53: -576 | Z53: 2019-01-22 | AA53: Diciembre de 2018: teniendo en cuenta la respuesta negativa obtenida de la ESAP para la realización de este proceso de modernización, se solicitó cotización a las siguientes entidades: Universidad de Antioquia, Universidad Católica Luis Amigó y Tecnológico de Antioquia. Las tres universidad, dieron respuesta en que se encuentran estructurando la respuesta y será entregada la primera semana de diciembre de 2018. Una vez se tengan el estudio de mercado, se procederá a establecer el tipo de contratación a realizar y continuar con el respectivo trámite contractual para el 2019. A la fecha, no se ha recibido ninguna de las cotizaciones solicitadas. | AB53: Correo: 22.01.2019 | AC53: NA | AE53: Esta proyectado en el PAA Presupuestado desde el agregado de funcionamiento rubro 18 remuneración de servicios técnicos. | AF53: 30% | AG53: 30% | AH53: CB | AI53: Revisar y definir el recurso presupuestal que se requiere para la contratación.
A54: Auditoria Regular-Evaluación Componente Control financiero 2017 | B54: 2018-04-25 | C54: 1 | D54: Hallazgo No.1. Sobrestimación cuenta contable 11100690-Otras cuentas de Ahorro. La cuenta 11100690-Otras cuentas de ahorro se encontró sobre-estimada en $914.934.105 (cifra detallada en el cuadro 15.Recursos entregados en administración vigencia 2017), correspondiente a recursos ejecutados de convenios que no fueron contabilizados, situación que subestimó en el mismo valor la cuenta 24530101-Recursos en Administración y la cuenta 24530190-Rendimientos financieros. Estos hechos contravienen los principios contables segun lo dispuesto en la Resolucion 356 de 2007 Manual de Procedimientos de la Contaduría General de la Nación, en cuanto que "a una o más cuentas deudoras corresponden siempre una o más cuentas acreedoras por el mismo importe", debido a que la ejecución contractual no fue informada en forma oportuna por los supervisores de los convenios y no fue causada la ejecución de rendimientos financieros que ocasiona la subestimación de los estados financieros a 31 de diciembre de 2017 de ISVIMED: para el equipo auditor es un hallazgo con incidencia administrativa. | E54: Administrativa | F54: Administrativa | G54: 1. Realizar Conciliaciones mensuales de cada una de las cuentas bancarias donde se aministren los recursos de convenios (recursos Recibidos en Administración); comparando el saldo en extractos vs saldo en la cuenta 245301-en administracion. 2. Implementar mecanismos de control desde el area de tesoreria que permitan identificar los proveedores sujetos de pago que se imputan directamente a cada una de las cuentas bancarias aperturadas para el manejo de los recursos de los convenios suscritos y en los cuales el ISVIMED actua como ejecutor; evitando asi la subestimación de las cuentas del efectivo y equivalente del efectivo. | H54: 2018-05-01 | I54: 2018-12-31 | J54: Evitar la sobreestimación o subestimación de las cifras reflejadas en los estados financieros del ISVIMED, principalmente en las cuentas contables de efectivo y equivalentes del efectivo y otros pasivos, cuentas en las cuales se registran la ejecucion de los convenios suscritos por el Instituto y las entidades publicas (recursos recibidos en administración) | K54: 2018-12-31 | L54: Subdirección Administrativa y Financiera (tesoreria) | M54: Beatriz Helena Ramirez Gallón | P54: Avance a junio 2018, admon y financiero: 1. Conciliaciones:Con respecto a las concilaiciones, Cada uno de los enlaces financieros estanrealizano las concilaiciones de los recursos disponibles en las cuentas bancarias y de fiducias VS los saldos en la cuenta contable 2902-Recusos recibidos en administracion la cual es revisada y aprobada por el contador del Instituto. 2. Implementacion de mecanismos de control: Tesoreria implemetó como mecanismo un cuadro de control donde se articulan los rubros presupuestales, las cuentas bancarias donde se administran los recursos de cada uno de los convenios suscritos y las cuentas contables, evitando asi los errores en la imputacion contable y la realizacion de los pagos por las cuentas bancarias del ISVIMED. | V54: Auditoria Regular-Evaluación Componente Control financiero 2017 | W54: Administrativo y Financiero | X54: 244 | Y54: -576 | Z54: 2019-01-22 | AA54: Se realizaron conciliaciones mensuales decada una de las cuentas bancarias tanto de los convenios como de las cuentas propias. Se entregan las A-Z donde reposan estas conciliaciones de la vigencia 2018. las conciliaciones fueron realizadas con los enlaces financieros de cada proyecto y el personal del area de contabilidad. | AB54: Correo 22.01.2019 | AC54: Carpetas con las conciliaciones de toda la vigencia 2018. (2 carpetas entregadas a control interno). Informe de la gestión realizada del área de proyectos especiales. | AE54: Se realiza un muestreo de 15 convenios, encontrando novedades. (Papel de trabajo hallazgo No. 1 Aud reg control fro 2017 - CGM), se evidencia que continua falencias en el procedimiento de reintegros a pesar de que se identifican con las conciliaciones. | AF54: 20% | AG54: 20% | AH54: CB | AI54: Realizar las gestiones necesarias para conciliar las cuentas de los convenios.
A55: Auditoria Regular-Evaluación Componente Control financiero 2017 | B55: 2018-04-25 | C55: 2 | D55: Hallazgo No.2. Diferencia en Operaciones Reciprocas con la Empresa de Desarrollo Urbano-EDU. Se realizó revisión de las operaciones recíprocas rendidas por el ISVIMED registradas en el sistema CHIP; y se cruzó con los datos reportados por cada entidad, encontrando diferencias en los valoresregistrados por los entes recíprocos, como se puede apreciar en el cuadro 17 operaciones reciprocas vigencia 2017. Contraviniendo lo dispuesto en el manual de procedimientos Resolucion 356 de 2007 Disposiciones Adicionales de la Contaduría General de la Nación sobre operaciones recíprocas, esto por falta de comunicación constante con las entidades recíprocas, generando falencias en el saneamiento de las cuentas, lo que para el equipo auditor se constituye en unhallazgo con incidencia administrativo. | E55: Administrativa | F55: Administrativa | G55: 1. Adoptar procedimiento para la Conciliación de operaciones reciprocas entre entidades. 2. Asignación de obligación específica "conciliación operaciones reciprocas" a contratista asignado al área contable. 3. Elaborar informe de las gestiones realizadas mensualmente. | H55: 2018-05-01 | I55: 2018-12-31 | J55: Minimizar las diferencias en los reportes presentados a traves de la plataforma CHIP, por concepto de operaciones reciprocas con las demas Entidades contables publicas | K55: 2018-12-31 | L55: Subdirección Administrativa y Financiera (Contabilidad) | M55: Fabián Darío Arango López | P55: Avance junio 2018, admon y financiero: 1. el procedimiento para la conciliación de operaciones reciprocas entre entidades ya se encuentra elaborado; en estos momentos esta en revision por parte del asesor con funciones de contador. 2. En estos momentos se cuenta con un contratista en el area contable que tiene asignada en su contrato la funcion de realizar las concilaicion de operaciones reciprocas entre entidades publicas (contrato 232 de 2018). 3. Se anexa informe consolidado al 31/03/2018 de las gestiones realizadas en el proceso de conciliacion de operaciones reciprocas. | S55: 100% | T55: 100% | V55: Auditoria Regular-Evaluación Componente Control financiero 2017 | W55: Administrativo y Financiero | AE55: Seguimiento 04.01.2019: Este hallazgo fue cerrada de acuerdo al informe realizado por la Contraloría con radicado E15503 con fecha de 20.12.2018. Califican el cumplimiento de la acción y de la efectividad en 100%. | AF55: 100% | AG55: 100% | AH55: Cerrado | AI55: No aplica.
A56: Auditoría Regular compenente gestión y resultados, vigencia 2017 | B56: 2018-12-20 | C56: 1 | D56: Observación 1. Inadecuado Control sobre el uso de los bienes Inmuebles mejorados. Durante las visitas de inspección realizadas por el Equipo Auditor para verificación de las especificaciones técnicas y calidad de las obras entregadas con ocasión al Programa de Mejoramiento de Vivienda, se pudo constatar que las viviendas relacionadas en el siguiente cuadro, que fueron beneficiarias de mejoramiento habían sido enajenadas en condición de arrendamiento, luego de ser objeto de la inversión. (Hallazgo administrativo) | E56: Administrativa | F56: Administrativa | G56: 1. Iniciar sancionatorio para las familias identificadas por la Contraloria 2. Aplicar la metodología actual de verificación de habitabilidad para la línea de mejoramiento de vivienda 3. Continuar informando y sensibilizando a los beneficiarios sobre los compromisos y obligaciones que adquiere al recibir el subsidio. | H56: 2019-01-15 | I56: 2019-12-13 | J56: Cumplir con lo definido en el Decreto 2339 de 2013 Articulo 8. Prohibición de enajenar la vivienda o dejar de residir en ella. | K56: 2019-12-13 | L56: Subdirecciones Poblacional, Dotación, Jurídica | M56: Subdirectora Poblacional, Subdirector Dotación, Profesional Especializada Jurídica | V56: Auditoría Regular compenente gestión y resultados, vigencia 2017 | W56: Dotación | X56: =+I56-H56 -> 332 | Y56: =+I56-$Y$4 -> -229 | Z56: 14/01/2019 24/01/2019 | AA56: Dotación: La subdirección de Dotación mediante la reunión de socialización y la visita de inicio continuará informando y sensibilizando a los beneficiarios sobre los compromisos y obligaciones que adquiere al recibir el subsidio de mejoramiento de vivienda haciendo enfásis en el Articulo 8 del decreto 2339 de 2013 que prohibe enajenar la vivienda o dejar de residir en ella por el termino de 10 años. jurídica: Se encuentra en proceso de analisis y estructuración para la los ajustes respectivos en el manual de contratación. | AB56: Correo de fecha 15/01/2019 Asunto: Seguimiento Plan de Mejoramiento CGM | AC56: Dotación: Copia de la bitácora de la señora Maria de las Mercedes Roldán Giraldo - resolución 661 de 2018 | AE56: Las acciones planteadas para iniciar en enero 15 de 2019. | AI56: Iniciar con la ejecución de las acciones.
A57: Auditoría Regular compenente gestión y resultados, vigencia 2017 | B57: 2018-12-20 | C57: 2 | D57: Observación 2. Deficiencia en la calidad de la obra. De la muestra seleccionada para la evaluación de los Mejoramientos de Vivienda, de acuerdo con el siguiente cuadro, y de cuya Resolución se realizaron varias visitas a las viviendas intervenidas por este Operador…(Hallazgo administrativo) | E57: Administrativa | F57: Administrativa | G57: 1. Reforzar en los contratos con los operadores la obligación de utilizar materiales de primera calidad. 2. La supervisión de los contratos de ejecución de mejoramientos, deberá solicitar al finalizar cada contrato de mejoramiento un certificado que valide la calidad de los materiales utilizados en la obra. 3. Realizar una capacitación técnica al personal que apoya la supervisión de los mejoramientos en el recibo de obra a satisfacción y en la verificación de la calidad de los materiales. 4. Reforzar el contrato de los técnicos que realizan apoyo a la supervisión de los mejoramientos, en cuanto a las obligaciones de seguimiento a la ejecución de la obra y recibo a entera satisfacción. 5. El Supervisor de los mejoramientos, debe realizar verificaciones en campo, con el fin de validar la información de quienes realizan el apoyo a ésta supervisión. | H57: 2019-01-15 | I57: 2019-12-13 | J57: Ejercer en debida forma las funciones de supervisión, cumpliendo con lo definido en la ley y garantizar la calidad de las obras. | K57: 2019-12-13 | L57: Subdirecciones Dotación, Jurídica | M57: Subdirector Dotación, Profesional Especializada Dotación, Profesional Especializada Contratación | V57: Auditoría Regular compenente gestión y resultados, vigencia 2017 | W57: Dotación | X57: 332 | Y57: -229 | Z57: 2019-01-14 | AA57: Dotación: Se realizarán visitas periodicas a cargo del supervisor de los contratos con el fin de hacer seguimiento mas detallado a la labor del personal que presta apoyo a la supervisión en campo que ellos ejercen a las labores realizadas por los operadores. | AB57: Correo de fecha 15/01/2019 Asunto: Seguimiento Plan de Mejoramiento CGM | AC57: NA | AE57: Las acciones planteadas para iniciar en enero 15 de 2019. | AI57: Iniciar con la ejecución de las acciones.
A58: Auditoría Regular compenente gestión y resultados, vigencia 2017 | B58: 2018-12-20 | C58: 3 | D58: Observación 3. APU para los Mejoramientos de Vivienda, el equipo auditor realizó una evaluación a los análisis de precios unitarios APU establecidos por el Instituto Social de Vivienda y Hábitat de Medellín – ISVIMED considerando que son la base del presupuesto para la ejecución de las actividades en los Mejoramientos de Vivienda saludables, encontrando que el siguiente ítem sobrepasa el valor del mercado, verificando con los precios de referencia de CAMACOL, ya que involucra actividades con cantidades que no son coherentes con las medidas otorgadas en el mercado, generando con ello una deficiencia en la optimización del recurso público para los fines que se tienen previstos, pudiendo conllevar a una posible vulneración del principio de la gestión fiscal de economía, establecido en el artículo 8 de la Ley 42 de 1993…(Hallazgo administrativo) | E58: Administrativa | F58: Administrativa | G58: 1. Ajustar el procedimiento: Realizar anualmente un estudio de mercado sobre el cuál se realiza el análisis de precios unitarios de los materiales más utilizados en los mejoramientos de vivienda. Este análisis será obligatorio para el operador al momento de realizar el presupuesto de cada mejoramiento. 2. El técnico y el supervisor de cada contrato deberá realizar el debido seguimiento presupuestal. | H58: 2019-01-15 | I58: 2019-12-13 | J58: Optimización de los recursos y garantizar que la asignación de los recursos sea la mas conveniente para maximizar los resultados | K58: 2019-12-13 | L58: Subdirecciones Dotación, Jurídica | M58: Subdirector Dotación, Profesional Especializada Dotación. | V58: Auditoría Regular compenente gestión y resultados, vigencia 2017 | W58: Dotación | X58: 332 | Y58: -229 | Z58: 2019-01-14 | AA58: Dotación: Se realizará un análisis de precios unitarios y para ello se solicitaran cotizaciones a tres depositos de materiales con el fin de consolidar precios acordes al mercado actual, también se incluirán nuevas actividades para el año 2019; Para lo anterior se dió plazo hasta el dia 22 de enero con el fin de entregarselo a los operadores para su implementación. | AB58: Correo de fecha 15/01/2019 Asunto: Seguimiento Plan de Mejoramiento CGM | AC58: NA | AE58: Las acciones planteadas para iniciar en enero 15 de 2019. | AI58: Iniciar con la ejecución de las acciones.
A59: Auditoría Regular compenente gestión y resultados, vigencia 2017 | B59: 2018-12-20 | C59: 4 | D59: Observación 5. Debilidades en los estudios previos. El Instituto Social de Vivienda y Hábitat de Medellín suscribió el convenio interadministrativo No. 203 de 2017 con la Institución Universitaria Colegio Mayor de Antioquia el cual tiene por objeto: “Apoyo en la ejecución de la gestión predial desde los componentes jurídico, social, técnico y administrativo, necesarios para la adquisición de inmuebles y mejoras en el sector San Luis del barrio Alejandro Echavarría comuna 9 del Municipio de Medellín...” por valor de $1.264.394.080. (Hallazgo administrativo) | E59: Administrativa | F59: Administrativa | G59: 1. Definir desde el manual de contratación: Los oferentes deberán presentar un presupuesto detallado para la ejecución del objeto a contratar, acompañado del correspondiente estudio de mercado que justifique lo presupuestado, lo cual deberá ser validado por la subdirección que plantea la necesidad contractual. 2. Durante la ejecución contractual el supervisor validará la ejecución presupuestal detalladamente. | H59: 2019-01-15 | I59: 2019-12-13 | J59: Adecuar los controles de las etapas de planeación y la elaboración de estudios previos para lograr una correcta ejecución e inversión de los recursos. | K59: 2019-12-13 | L59: Subdirección Jurídica | M59: Subdirectora Jurídica, Profesional Especializado Contratación. | V59: Auditoría Regular compenente gestión y resultados, vigencia 2017 | W59: Jurídica | X59: 332 | Y59: -229 | AE59: Las acciones planteadas para iniciar en enero 15 de 2019. | AI59: Iniciar con la ejecución de las acciones.
A60: Auditoría Regular compenente gestión y resultados, vigencia 2017 | B60: 2018-12-20 | C60: 5 | D60: Observación 6. Deficiencia en la valuación de los predios de San Luis. Revisada por el Equipo Auditor la documentación y el Informe de Avalúo emitido por la Lonja de Propiedad Raíz, con fundamento en los parametros y procedimientos de evaluación para llevar a cabo el dictamen de los avalúos, se pudo establecer lo siguiente con respecto a las denuncias formuladas en la PQRSD 250 de 2018 – San Luis . Proyecto Tranvía de Ayacucho (Hallazgo administrativo con presunta incidencia disciplinaria) | E60: Con Incidencia Administrativa y Disciplinaria | F60: Con Incidencia Administrativa y Disciplinaria | G60: 1. Revisar y ajustar el perfil, las funciones, y la metodología de trabajo del revisor de avaluaos y realizar el debido entrenamiento por parte del supervisor. 2. Revisar y dejar documentado cual es la normatividad aplicable de avalúos para el inicio de cada proyecto del Instituto, acompañados del operador de avalúos y el Municipo, y sobre estos desarrollar los avalúos. | H60: 2019-01-15 | I60: 2019-12-13 | J60: Cumplir con los principios de la gestión fiscal y de la función administrativa. Cumplir con las funciones de la supervisión. Cumplir con la legislación de avaluos aplicable | K60: 2019-12-13 | L60: Subdirección Jurídica y proyectos especiales | M60: Subdirectora Jurídica, Asesora Proyectos Especiales. | V60: Auditoría Regular compenente gestión y resultados, vigencia 2017 | W60: Proyectos | X60: 332 | Y60: -229 | AE60: Las acciones planteadas para iniciar en enero 15 de 2019. | AI60: Iniciar con la ejecución de las acciones.
A61: Auditoría Regular compenente gestión y resultados, vigencia 2017 | B61: 2018-12-20 | C61: 6 | D61: Observación 7. Deficiencia en la valuación de los predios de Picacho. Revisada por el Equipo Auditor la documentación y el Informe de Avalúo emitido por la Lonja de Propiedad Raíz, con fundamento en los parametros y procedimientos de evaluación para llevar a cabo el dictamen de los avalúos, se pudo establecer lo siguiente con respecto a las denuncias formuladas en la PQRSD 344 de 2018 – Proyecto Metro Cable El Picacho. (Hallazgo administrativo con presunta incidencia disciplinaria) | E61: Con Incidencia Administrativa y Disciplinaria | F61: Con Incidencia Administrativa y Disciplinaria | G61: 1. Revisar y ajustar el perfil, las funciones, y la metodología de trabajo del revisor de avaluaos y realizar el debido entrenamiento por parte del supervisor. 2. Revisar y dejar documentado cual es la normatividad aplicable de avalúos para el inicio de cada proyecto del Instituto, acompañados del operador de avalúos y el Municipo, y sobre estos desarrollar los avaluos. | H61: 2019-01-15 | I61: 2019-12-13 | J61: Cumplir con los principios de la gestión fiscal y de la función administrativa. Cumplir con las funciones de la supervisión. Cumplir con la legislación de avaluos aplicable | K61: 2019-12-13 | L61: Subdirección Jurídica y proyectos especiales | M61: Subdirectora Jurídica, Asesora Proyectos Especiales. | V61: Auditoría Regular compenente gestión y resultados, vigencia 2017 | W61: Proyectos | X61: 332 | Y61: -229 | AE61: Las acciones planteadas para iniciar en enero 15 de 2019. | AI61: Iniciar con la ejecución de las acciones.
A62: Auditoría Regular compenente gestión y resultados, vigencia 2017 | B62: 2018-12-20 | C62: 7 | D62: Observación 8. Deficiencia en los Diseños de la Unidad Hospitalaria de Buenos Aires. El ISVIMNED con fecha 11 de diciembre de 2013, suscribió el contrato de fiducia mercantil irrevocable inmobiliaria de administración y pagos, el cual se denominó “FIDEICOMISO UNIDAD HOSPITALARIA BUENOS AIRES” con la Fiduciaria Corficolombiana S.A., modificado mediante Otrosí N°1 del 22 de enero de 2014, Otrosí N°2 del 17 de marzo de 2014 y Otrosí N°3 del 7 de julio de 2014, con la cual se suscribieron los subcontratos de prestación de servicios…(Hallazgo administrativo con presunta incidencia disciplinaria) | E62: Con Incidencia Administrativa y Disciplinaria | F62: Con Incidencia Administrativa y Disciplinaria | G62: 1. Realizar supervisiones colegiadas o interdisciplinarias o interinstitucionales cuando la magnitud de los contratos lo ameriten, con el propósito de que cada disciplina aporte al seguimiento y control de los proyectos. 2. Realizar un charla a los supervisores de las funciones y responsabilidades que deben cumplir. 3. Aplicar el manual de contratación referente a la supervisión y los lineamientos que se establezcan en los contratos o convenios. | H62: 2019-01-15 | I62: 2019-12-13 | J62: Cumplir con las funciones de la supervisión. | K62: 2019-12-13 | L62: Subdirecciones Planeación y Jurídica | M62: Subdirectora Planeación, Profesional Especializada Planeación, Subdirectora de Jurídica, Profesional Especializada Contratación. | V62: Auditoría Regular compenente gestión y resultados, vigencia 2017 | W62: Jurídica | X62: 332 | Y62: -229 | Z62: 2019-01-24 | AA62: Jurídica: Se esta programando para este periodo una capacitación de actualización para todo el recurso humano que tenga relación con la supervisión y actividades de apoyo a la misma. | AE62: Las acciones planteadas para iniciar en enero 15 de 2019. | AI62: Iniciar con la ejecución de las acciones.
A63: Auditoría Regular compenente gestión y resultados, vigencia 2017 | B63: 2018-12-20 | C63: 8 | D63: Observación 9. Inconsistencias en la rendición de la cuenta. En la rendición de la información contractual del mes de julio de 2017, que realizó el -ISVIMED en el aplicativo “Gestión Transparente” de la Contraloría General de Medellín; se documentó que los contratos Nos. 405-2017 y 394-2017 fueron celebrados con los representantes legales, sin embargo correspondían a la Corporación Lonja de Propiedad Raíz de Medellín y Antioquia y La Corporación Nacional de Lonjas de Propiedad Raíz "CORALONJAS" respectivamente. (Hallazgo administrativo) | E63: Administrativa | F63: Administrativa | G63: 1. Revisar y validar cuales son los campos de la plataforma "gestión transparente" con la finalidad de tener claridad que información se debe diligenciar y tenerlos presente en cada publicación. 2. Garantizar que la información rendida reúna los términos y exigencias establecidas en la resolución 170 de 2017, en cuanto a oportunidad, suficiencia y calidad, 3. Realizar un seguimiento a la información rendida dentro de los primeros días del mes, es decir, realizar cruce de información, para detectar novedades y realizar los ajustes pertinentes. | H63: 2019-01-15 | I63: 2019-12-13 | J63: Garantizar la rendición de cuentas oportuna, suficiente y de calidad | K63: 2019-12-13 | L63: Subdirección jurídica | M63: Profesional Especializada Contratación | V63: Auditoría Regular compenente gestión y resultados, vigencia 2017 | W63: Jurídica | X63: 332 | Y63: -229 | Z63: 2019-01-24 | AA63: Jurídica: Se realizó la verificación y corrección correspondiente a los contratos 394 y 405 del 2017 en la plataforma de gestión transparente. Adicionalmente el personal encargado de realizar esta actividad se encuentra en contacto permanente con los funcionarios de Contraloría con el fin de tener mayor claridad en las publicaciones; Así mismo como parte de la retroalimentación del procedimiento, el personal encargado se apoyo en el tutorial recomendado por la Contraloría del link que se relaciona http://www.cgm.gov.co/cgm/Paginaweb/RC/Paginas/rendicion%20de%20cuentas.aspx | AC63: Jurídica: 1. Pantallazo de la corrección realizada. 2. Correos electronicos de consulta a la Contraloría 3. Link de tutorial http://www.cgm.gov.co/cgm/Paginaweb/RC/Paginas/rendicion%20de%20cuentas.aspx | AE63: Las acciones planteadas para iniciar en enero 15 de 2019. | AI63: Iniciar con la ejecución de las acciones.
A64: Auditoría Regular compenente gestión y resultados, vigencia 2017 | B64: 2018-12-20 | C64: 9 | D64: Observación 10. No entrega de la Información solicitada. En reiteradas ocasiones, el Equipo Auditor solicitó mediante oficio y correo electrónico información correspondiente a los procesos que se venían evaluando dentro de la Auditoría Regular, como se relaciona a continuación, no encontrando respuesta por parte del Instituto frente a las solicitudes formuladas, ni la entrega de información requerida, incumpliendo con ello el artículo quinto de la Resolución N°170 de 2017…(Hallazgo administrativo) | E64: Administrativa | F64: Administrativa | G64: 1. Mejorar y lograr una comunicación efectiva entre el Instituto y la Contraloría, manteniendo la figura de enlace en cada auditoría. En caso de tener requerimientos muy generales, se solicitará, dentro del término establecido para ellos, la claridad y puntulidad del tema para poder enviar la información manera oportuna, integra y coherente. | H64: 2019-01-15 | I64: 2019-12-13 | J64: Atención oportuna a las solicitudes de los entes fiscalizadores. Diligencia y control. | K64: 2019-12-13 | L64: Dirección | M64: Directora | V64: Auditoría Regular compenente gestión y resultados, vigencia 2017 | W64: Dirección | X64: 332 | Y64: -229 | AE64: Las acciones planteadas para iniciar en enero 15 de 2019. | AI64: Iniciar con la ejecución de las acciones.
A65: Auditoría Regular compenente gestión y resultados, vigencia 2017 | B65: 2018-12-20 | C65: 10 | D65: Observación 12. Incumplimiento de las acciones de mejora en los tiempos establecidos. Evaluadas las acciones del plan de mejoramiento rendido en febrero de 2017, se evidenció que no se cumplió con los plazos establecidos para ejecutar las acciones propuestas. Con lo enunciado se estaría vulnerando lo prescrito en la Resolución 232 de 2016, con fundamento en la cual se rindió la cuenta, situación que podría dar lugar a la aplicación del artículo 101 de la Ley 42 de 1993…(Hallazgo administrativo) | E65: Administrativa | F65: Administrativa | G65: 1. Se continuará con el seguimiento de ley semestral, así como el seguimiento trimestral en el comité de Coordinación de Control Interno, de los avances de cada una de las acciones. 2. Recordar en cada comité de Coordinación de control interno las acciones próximas a vencer. | H65: 2019-01-15 | I65: 2019-12-13 | J65: Garantizar un adecuado manejo de los recursos públicos y evitar posibles sanciones. | K65: 2019-12-13 | L65: Dirección | M65: Directora | V65: Auditoría Regular compenente gestión y resultados, vigencia 2017 | W65: Dirección | X65: 332 | Y65: -229 | Z65: Enero de 2018 | AA65: Se definen enlaces por cada subdirección para el seguimiento y control de los planes de mejoramiento y se les realizar una explicación de los planes y del propio formato. | AB65: NA | AC65: Correo de asiganción de enlace y registro de asistencia a capacitaciones. | AE65: Las acciones planteadas para iniciar en enero 15 de 2019. | AI65: Iniciar con la ejecución de las acciones.
A66: Auditoría Regular compenente gestión y resultados, vigencia 2017 | B66: 2018-12-20 | C66: 11 | D66: Observación 13. Acciones planteadas por Isvimed que no fueron efectivas. En la evaluación al Plan de Mejoramiento se identificó que algunas acciones de mejora planteadas fueron cumplidas pero no condujeron a subsanar las causas que dieron origen a los hallazgos presentados; por lo tanto, no fueron efectivas. (Hallazgo administrativo) | E66: Administrativa | F66: Administrativa | G66: 1. En cada comité de Coordinación de Control Interno realizar acompañamiento del planteamiento de las acciones y el uso de las herramientas de acciones de mejora existentes en el sistema de gestión. | H66: 2019-01-15 | I66: 2019-12-13 | J66: Garantizar un adecuado manejo de los recursos públicos y evitar posibles sanciones. | K66: 2019-12-13 | L66: Dirección | M66: Directora | V66: Auditoría Regular compenente gestión y resultados, vigencia 2017 | W66: Dirección | X66: 332 | Y66: -229 | AE66: Las acciones planteadas para iniciar en enero 15 de 2019. | AI66: Iniciar con la ejecución de las acciones.
X91: =+I91-H91 -> 0 | AH91: =IF($AG91="","",IF($AG91=100%,"Cerrado",IF($AG91<=39%,"CB",IF($AG91<=79%,"CM",IF($AG91<=99%,"CA",""))))) ->  | AW91: =IF($AV91="","",IF($AV91=100%,"Cerrado",IF($AV91<=39%,"CB",IF($AV91<=79%,"CM",IF($AV91<=99%,"CA",""))))) -> 
AG92: =+COUNT(AG8:AG91) -> 48
AD93: Este porcentaje es asicgnado por el organismo de control o área que haga el seguimiento y este no siempre es igual al asignado por el líder del proceso, toda vez que la acción se pudo haber cumplid (100%), pero esta no soluciono la deficiencia.
F95: CONTRALORIA
F96: RESUMEN DE LA CALIFICACIÓN DE ACCIOENES POR HALLAZGO, SEGÚN CRITERIOS | AD96: ESTADO DE LA ACCION | AE96: CUMPLIMIENTO DE LA ACCIÓN %
A97: Fecha seguimeinto: | B97: Enero de 2019. | F97: CRITERIO DE EVALUACIÓN
F98: No cumplidas 0%-29% | AD98: Cerrado | AE98: 100% de cumplimiento
F99: Cumplimiento Parcial 30%-79% | AD99: CA | AE99: 80-99 (Cumplimiento Alto)
F100: Cumplido 80%-100% | AD100: CM | AE100: 40-79 (Cumplimiento Medio)
F101: Pendiente de cierre | AD101: CB | AE101: 0-39 (Cumplimiento Bajo)
F102: Con plazo hasta 2018
F103: TOTAL ACCIONES

Sheet PMUCG (hidden)
A1: Código: FPAR03 | D1: PLAN DE MEJORAMIENTO ÚNICO
O2: PERÍODO FISCAL:
A3: Versión: 06 | D3: ENTIDAD: Instituto Social de Vivienda y Hábitat Municipio de Medellín – ISVIMED
A5: FORMULACIÓN DE LAS ACCIONES | N5: SEGUIMIENTO VIGENCIA 2016 (Auditoria 2017) Contraloría | Q5: SEGUIMIENTO VIGENCIA 2017 (Auditoria 2018) Radicado E14772 y E 15503 (Contraloría) | T5: SEGUIMIENTO VIGENCIA 2018 (Auditoria 2019)
A6: NOMBRE DE LA AUDITORÍA | B6: FECHA DE LA AUDITORÍA (aaaa-mm-dd) | C6: Nro. | D6: DESCRIPCIÓN DEL HALLAZGO | E6: CAUSAS DEL HALLAZGO | F6: HALLAZGO ADMINISTRATIVO CON INCIDENCIA | G6: ACCIÓN DE MEJORAMIENTO/CORRECTIVA | H6: PLAZO DE LA ACCIÓN | J6: OBJETIVO QUE SE BUSCA LOGRAR | K6: FECHA OBTENCIÓN DE RESUILTADOS | L6: RESPONSABLE | N6: CUMPLIMIENTO DE LA ACCIÓN % | O6: EFECTIVIDAD % | P6: OBSERVACIONES | Q6: CUMPLIMIENTO DE LA ACCIÓN % | R6: EFECTIVIDAD % | T6: CUMPLIMIENTO DE LA ACCIÓN % | U6: EFECTIVIDAD %
F7: (Lista desplegable) | H7: FECHA INICIO (AA/MM/DD) | I7: FECHA TERMINACIÓN (AA/MM/DD) | L7: DEPENDENCIA | M7: FUNCIONARIO | S7: RESPONSABLE
A8: EVALUACION FISCAL Y FINANCIERA VIGENCIA 2015 | B8: Abril de 2016 | C8: 1 | D8: Hallazgo Administrativo #1: Debilidades en el cumplimiento del Plan de Mejoramiento de la Auditoria Fiscal y Financiera; Si bien se identificó por parte del equipo auditor durante la evaluación del Plan de Mejoramiento en desarrollo de la Auditoría Fiscal y Financiera Vigencia 2015, que la entidad ha emprendido acciones para superar las deficiencias relacionadas con la demora en la liquidación de los convenios interadministrativos suscritos con la Empresa de Desarrollo Urbano –EDU y al proceso de nulidad y restablecimiento del derecho corresponde al pago de multas y sanciones a la DIAN, también es claro que la fecha establecida por la entidad fue el 31 de diciembre del 2014, y por desconocimiento no se solicitó a la Contraloría General de Medellín ampliación del plazo tal como lo establece la Resolución 149 de 2013. | F8: Administrativa | G8: Anudar esfuerzos para lograr las acciones de mejoramiento implementadas para los hallazgos adminstrativos de la auditoria fiscal y finaciera vigencia 2014 y realizar seguimiento mensual | H8: 2016-04-30 | I8: 30/06/2017 30/06/2020 | J8: Dar cumplimiento a las acciones de mejoramiento implementadas en la auditoria de la vigencia 2014 | K8: 30/06/2017 30/06/2020 | L8: Subdireccion de dotación de vivienda y habitat. Subdireccion Juridica, Subdireccion Administrativa y Financiera | M8: Claudia Patricia Cuartas Pescador. Isbel Cristina Aramburo Jaramillo, Francisco Javier Tabares Calderon | P8: Seguimiento CF V2015 H1 | Q8: 68% | R8: 68% | S8: Administrativo y Financiero
G9: 6. Reasignar las supervisiones que actualmente se asignaron, de manera proporcional a la carga laboral del funcionario encargado. | H9: 2016-09-27 | I9: 2017-06-30 | K9: 2017-06-30 | N9: 50% | O9: 50% | S9: Jurídica
A10: Auditoría Regular Vigencia 2015 | B10: 2016-09-27 | C10: 11 | D10: Hallazgo administrativo 11. Incumplimiento de las obligaciones contractuales. El Instituto Social de Vivienda y Hábitat de Medellín –Isvimed expidió la Resolución No. 271 del 11 de abril de 2013 por medio de la cual asignó subsidios municipales en dinero a 158 grupos familiares beneficiarios de la Organización Popular de Vivienda Funcodent, para la adquisición de vivienda nueva en el proyecto de interés prioritario Torres del este II. El -Isvimed aprobó y autorizó a través de la Fiduciaria, Alianza Fiduciaria S.A., garante de estos recursos, el pago de $2.086.358.400 a la OPV Funcodent, valor equivalente al 64% de los recursos con un avance físico real de obra que se encontraba solo en un 18,8%, situación que no cumple con lo establecido en el artículo tercero de la Resolución interna No. 271 de 2013 que establece: “Esta entidad autorizará el pago de los subsidios asignados, en proporción al desarrollo del proyecto…. así como contra entrega del informe de avance de obra certificado por la interventoría y la Subdirección Técnica del Instituto”. La falta de controles en los procesos de contratación puede generar riesgos en los recursos entregados a terceros, situación que de no corregirse se podría configurar en un hallazgo con presunta incidencia fiscal. | F10: Administrativo con presunta incidencia Fiscal. | G10: Para subsanar el riesgo de pagar sin el avance real de las obras, se mantendrán suspendidos los desembolsos a la OPV FUNCODENT, hasta tanto no se evidencie el equilibrio entre el avance físico y el financiero. | H10: 2016-09-27 | I10: 2018-06-30 | J10: Establecer las medidas necesarias para la protección efectiva delos recursos públicos. | K10: 2018-06-30 | L10: Subdireccion de Dotación de vivienda y Habitat | M10: Bibiana Castaño y Guiller Alvarez | N10: 50% | O10: 50% | P10: Traslado Contraloría Responsabilidad Fiscal Oficio Contraloría: Radicado 201900004035 de fecha 2019/09/13, radicado interno E11093. | S10: Jurídica | T10: 100% | U10: 100%
A11: Auditoria Regular- Evaluación Componente Control Financiero 2016 | B11: Mayo de 2017 | C11: 4 | D11: Saneamiento cuenta 151003- Construcciones (Proyectos adelantados por la EDU) con saldos sujetos a depuración contable, se evidenció que el ISVIMED incumplió con el deber de adelantar el proceso de depuración contable prescrito en el artículo 59 de la Ley 1739 de diciembre 23 de 2014, según el cual las entidades públicas, debían adelantar, en un plazo de cuatro (4) años contados a partir de la vigencia de la ley, las gestiones administrativas necesarias para depurar la información contable de las obligaciones, de manera que en los estados financieros se revelara en forma fidedigna la realidad económica, financiera y patrimonial de la entidad. Posteriormente el artículo 59 de la Ley 1739 de 2014, fue modificado por el artículo 261 de la Ley 1753 de 2015, indicando que el término para adelantar dicho proceso sería de dos (2) años contados a partir de la vigencia de dicha ley, norma que estableció que el cumplimiento de esta obligación debía ser verificado por las contralorías territoriales. Sin embargo, en el artículo 355 de la ley 1819 del 29 de diciembre de 2016, se dispone lo siguiente: “ARTÍCULO 355. SANEAMIENTO CONTABLE. Las entidades territoriales deberán adelantar el proceso de depuración contable a que se refiere el artículo 59 de la Ley 1739 de 2014, modificado por el artículo 261 de la Ley 1753 de 2015. El término para adelantar dicho proceso será de dos (2) años contados a partir de la vigencia de la presente ley. El cumplimiento de esta obligación deberá ser verificado por las contralorías territoriales.” Así mismo, es relevante reseñar que la Circular Conjunta del 20 de febrero de 2017 dirigida a los Contralores Territoriales, en su párrafo cuarto indica: “Es importante señalar que los servidores públicos responsables del proceso de saneamiento contable en las entidades territoriales, que no den cumplimiento a lo establecido en la Ley 1819 de 2016 y a los términos previstos en los numerales 3.1 “Depuración Contable permanente y sostenibilidad”, de la Resolución 357 de 2008, y 3.2.15 “Depuración Contable permanente y sostenible”, de la Resolución 193 de 2016, de la Contaduría General de la nación – CGN, conllevará a sanciones que el Código Disciplinario único califica como falta gravísima, al tenor de los dispuesto en el numeral 52, del artículo 48 de la Ley 734 de 2002”. | F11: Administrativa | G11: Continuar con el proceso de sostenibilidad contable y realizar informes mensuales y socializarlos en el Comité Tecnico de Sostenibilidda Contable, organo asesor de la Dirección, | H11: 30-05-2017 | I11: 2018-12-31 | J11: Depurar y sanear la informacion contable permitiendo una presentacion del Balance General que refleje la realidad financiera del Instituto, | K11: 2018-12-31 | L11: Subdireccion Administrativa y Financiera Subdirección Jurídica, Subdireccion de Dotacion de vivienda y habitat | M11: Cesar augusto Castaño jaramillo (subdirector Administrativo y Financiero), Laura Mesa JaramilloFabian (Subdirectora Juridica), Luz Bibiana Castaño jaramillo (subdirectora de dotacion de vivienda y habitat), Fabian Dario Arango Lopez (asesor) | N11: N/A | O11: NA | P11: Seguimiento CF V2016 H4 | S11: Administrativo y Financiero
A12: Auditoría Regular vigencia 2016 | B12: 2017-11-09 | C12: 1 | D12: Incumplimiento de obligaciones y Debilidades de supervisión de los Convenios Nos. 070 y 323 de 2016. En la revisión de los Convenios No. 070 y 323 de 2016 celebrados por -ISVIMED con la Corporación Ayuda Humanitaria, los cuales tienen por objeto “Aunar esfuerzos y acciones para desarrollar de manera conjunta la atención, asesoría y acompañamiento social, jurídico, técnico y financiero a familias con evacuación definitiva y/o temporal afectadas por desastres naturales o emergencias e intervenidas por obra pública en la ciudad de Medellín, con pago de subsidio municipal de arrendamiento temporal”, y en los cuales el Equipo Auditor evidenció lo siguiente: • En la verificación de las “Obligaciones del Asociado” establecidas en el Convenio Artículo noveno, numeral 5.7 que señala la obligación de Suministrar, organizar, filtrar y presentar la información y las bases de datos requeridas oportunamente, que sirvan de soporte para la generación permanente de informes y reportes; al revisar las bases de datos suministradas, se identificaron beneficiarios dobles, identificaciones erradas, menores de edad identificados con la cédula de los padres, identificaciones que contienen caracteres especiales tales como: guiones, puntos, comas, espacios en blanco, letras e identificaciones no válidas como son los FOLIOS de registro civil de nacimiento. Así como también la existencia en la base de datos de beneficiario fallecidos de acuerdo con la verificación realizada con el Fondo de Solidaridad y garantía –FOSYGA y la Registraduría Nacional del Estado Civil. • En la verificación realizada con el FOSYGA. (Fondo de Solidaridad y garantía) que administra La Base de Datos Única de Afiliados – la cual contiene la información de los afiliados de los distintos regímenes del Sistema General de Seguridad Social en Salud, donde se reporta que 774 grupos familiares devengan ingresos superiores a dos (2) SMLMV y que han recibido subsidios en el año 2016 por valor de $2.838.260.697, incumpliendo al parecer con las condiciones que motivan el pago del subsidio de arrendamiento temporal. Además, en la verificación con la Cámara de Comercio de Medellín a la cual se le solicitó certificar cuales personas tienen matrícula mercantil vigente, establecimientos de comercio o registran actividades comerciales, se encontraron 108 beneficiarios del subsidio de arrendamiento temporal que tienen tal condición, sin encontrarse evidencia de la verificación de su nivel de ingresos. Es de anotar que el subsidio Municipal de Arrendamiento Temporal, atiende a las familias en condiciones de vulnerabilidad social y económica, con un subsidio de arrendamiento temporal como alternativa de solución habitacional para que puedan continuar con su desarrollo familiar, mientras acceden a soluciones habitacionales definitivas o regresan a sus hogares una vez mitigado el riesgo. El proyecto se encuentra reglamentado por el Decreto municipal No. 2339 de 2013 el cual establece en su Artículo No. 69 los requisitos especiales y en el literal a) señala que la atención está ocasionada por un desastre natural, ubicación en zona de alto riesgo o intervención ordenada por el ente municipal con ocasión de una obra pública, adicionalmente para poder acceder al subsidio deberán cumplir con las condiciones establecidas en el Artículo No. 15 del mismo decreto, el cual señala entre otros requisitos que el grupo familiar deberá acreditar ingresos familiares iguales o inferiores a dos (2) SMLMV. Las situaciones descritas que afectan y ponen en riesgo el cabal cumplimiento del objetivo perseguido con el proyecto, evidencian debilidades en el cumplimiento de las funciones de la supervisión ejercida por el Instituto, respecto al cumplimiento del objeto contractual. La condición anotada contraría lo estipulado en la Ley 1474 de 2011, artículo 84, que señala: Facultades y deberes de los supervisores y los interventores. La supervisión e interventoría contractual implica el seguimiento al ejercicio del cumplimiento obligacional por la Entidad contratante sobre las obligaciones a cargo del contratista... Por lo que es del caso radicar un hallazgo administrativo con presunta incidencia disciplinaria, por el incumplimiento de las labores de supervisión respecto del control y manejo de las bases de datos y de la verificación de requisitos lo que ocasionó, que fueran asignados y pagados subsidios de arrendamiento temporal durante el año 2016 por valor de $2.838.260.697 a grupos familiares sin el cumplimiento de requisitos establecidos. Dentro de las causas que determinan la condición encontrada se pueden citar: la asignación ineficiente de los recursos y el desconocimiento de las funciones, responsabilidades y deberes de la supervisión. Como efectos adversos de lo anteriormente observado se tiene que las identificaciones incorrectas dificultan e imposibilitan realizar los cruces de información y la verificación del cumplimiento de los requisitos para la asignación del Subsidio municipal de arrendamiento temporal, además, el no cumplimiento de los fines esenciales del Estado para los cuales se dispone el recurso público, consagrado en el Artículo 2 de la Constitución Política de Colombia. | F12: Disciplinaria | G12: 4. Realizar y analizar cruce de informacion de los hogares activos en el Programa de Arrendamiento Temporal, para determinar el número de personas que deben actualizar los documentos de identidad. Ajuste de acción: S18465 del 2019/11/29, Informe E14129 del 2019/12/20 1. Revisión de documentos de identidad de integrantes activos. (Validación de cada documento de identidad físico que reposa en los expedientes respecto de los datos registrados en la base de datos). A fin de detectar y corregir posibles errores de digitación 2. Verificación permanente de números de documentos de identidad de los integrantes activos dentro del proyecto que van ingresando posterior a la validación masiva de noviembre y diciembre de 2019 y enero de 2020 | H12: 2017-12-30 | I12: 2020-06-30 | K12: 2018-03-01 | L12: Subdirección Poblacional | M12: Natalia Andrea Restrepo López; Profesional Universitario Claudia María Rodriguez Subdirectora Jurídica Laura del Socorro Mesa Jaramillo | S12: Poblacional
G13: 5. Notificar y realizar seguimiento a las personas activas en el Programa de Arrendamiento Temporal, acerca de la entrega de la actualizacion de los documentos de identidad. La notificacion la realizará el Operador donde quede establecido que se le darán 2 meses para entrega de documentos al grupo familiar; si no cumple con el requerimiento salen del programa de arrendameinto temporal. Ajuste de acción: S18465 del 2019/11/29, Informe E14129 del 2019/12/20 1. Revisión de documentos de identidad de integrantes activos. (Validación de cada documento de identidad físico que reposa en los expedientes respecto de los datos registrados en la base de datos). A fin de detectar y corregir posibles errores de digitación 2. Verificación permanente de números de documentos de identidad de los integrantes activos dentro del proyecto que van ingresando posterior a la validación masiva de noviembre y diciembre de 2019 y enero de 2020 | H13: 2018-01-01 | I13: 2020-06-30 | K13: 2018-03-30 | L13: Subdirección Poblacional Subdirección Jurídica | M13: Subdirectora Poblacional, Natalia Andrea Restrepo López; Profesional Universitario Claudia María Rodriguez. Subdirectora Jurídica, Laura del Socorro Mesa Jaramillo | S13: Poblacional
G14: 7. Elaborar un instructivo acerca del manejo de la base de datos del sistema de información del programa de arrendamientio temporal, en donde quede claro el manejo de las variables de atención y los mecanismos de ingreso de la información de los integrantes de los hogares adscritos al programa. | H14: 2018-02-28 | I14: 2019-12-30 | K14: 2019-12-30 | L14: Subdirección Poblacional Subdirección Jurídica Subdirección Administrativa y Financiera | M14: Subdirectora Poblacional Natalia Andrea Restrepo López Profesional Universitario Claudia María Rodriguez Subdirectora Jurídica Laura del Socorro Mesa Jaramillo Subdirector Administrativo y Financiero Cesar Augusto Castaño Jaramillo | P14: Seguimiento CR V2016 H1.7 | S14: Poblacional
G15: 19. Entregar solución de vivienda a hogares activos en el Programa de Arrendamiento Temporal, a través de la asignacion de 1.000 subsidios de vivienda | H15: 2018-01-30 | I15: 2019-12-30 | K15: 2019-12-30 | L15: Subdirección de Planeación Subdirección Administrativa y Financiera Subdirección de Dotación de Vivienda y Hábitat Subdirección Jurídica | M15: Subdirectora de Planeación Luz Adriana Campuzano Subdirector Administrativo y Financiero Cesar Augusto Castaño Jaramillo Subdirector de Dotación de Vivienda y Hábitat Rodrigo Alberto Rendón Cortés Subdirectora Jurídica Laura del Socorro Mesa | P15: Seguimiento CR V2016 H1.19 | S15: Poblacional
A16: Auditoría Regular vigencia 2016 | B16: 2017-11-09 | C16: 3 | D16: Inadecuada contratación de la interventoría con cargo a la OPV. Durante la evaluación de los proyectos de vivienda de interés prioritario ejecutados por las Organizaciones Populares OPV´s: Altos del Jardín – Villa Jesusita II, Villa Canela etapa 2, Torres del Este etapas 1 y 2, Sierra Campestre, Villa María y Los Almendros realizados por las siguientes Organizaciones Populares de Vivienda –OPVs–: Asociación de Madres Cabeza de Familia para el Desarrollo Empresarial y la Vivienda –AMCF–, Cooperativa de Desarrollo Comunitario –COODESCOM–, Fundación Colombiana de Desplazados, Vulnerables y Etnias –FUNCODENT–, Asociación de Vivienda Comunitaria Sierra Campestre, Corporación Viviendas Unidas –CORVIDAS– y la Asociación de Vivienda Comunitaria Nuevo Amanecer, respectivamente; la interventoría fue contratada con recursos de las OPVs, se evidenció, que éstas son las que hacen el proceso de selección y suscripción del contrato de Interventoría teniendo en cuenta que los recursos provienen del mismo proyecto de vivienda, contraviniendo lo establecido en el artículo 42 del Decreto Municipal 2339 de 2013 “Por el cual se reglamenta la Administración, Postulación y Asignación del Subsidio Municipal de Vivienda del Municipio de Medellín”, en el que se hace referencia a lo siguiente: “ARTÍCULO 42. DE LA CONDICIÓN CONTRACTUAL. El oferente elegido deberá acreditar la suscripción de contratos individuales con cada uno de los grupos familiares beneficiarios del subsidio municipal. En el contrato se establecerá que el Administrador del subsidio–ISVIMED- ejercerá el control y seguimiento de la aplicación de los subsidios, directamente o a través de una persona contratada para el efecto. El costo de la interventoría será asumido por el Instituto Social de Vivienda y Hábitat de Medellín –ISVIMED-, sin afectar el subsidio municipal de construcción en sitio propio asignado a cada grupo familiar.” (subrayado por fuera de texto). Al respecto del contrato de interventoría, la Corte Constitucional en reiteradas ocasiones ha manifestado lo siguiente: (Ver en informe). Por lo antes indicado, era deber del Instituto Social de Vivienda y Hábitat de Medellín – ISVIMED contratar la interventoría para garantizar el seguimiento, control y cumplimiento de los fines esenciales del Estado con los recursos otorgados por éste para los Proyectos de Vivienda ejecutados y administrados por las Organizaciones Populares de Vivienda – OPV. Esta deficiencia conllevó a que se incrementaran los costos económicos de los proyectos, puesto que existen proyectos a los cuales se les entregó subsidios desde el año 2012, así mismo, a que estos proyectos no fueran ejecutados en su totalidad, a que los grupos familiares que hacen parte de las OPV no estén a la fecha disfrutando del bien material, a que se presentaran suspensiones de los mismos proyectos, al no cumplimiento de los fines esenciales del estado de que trata el artículo 2 de la Constitución Política de Colombia y al incumplimiento de los principios de la gestión fiscal de economía, eficiencia y eficacia consagrados en el artículo 8 de la Ley 42 de 1993, por lo que se configura en un hallazgo administrativo con presunta incidencia disciplinaria. | F16: Disciplinaria | G16: Se fortalecerá el equipo interdisciplinario de OPV, con el fin de supervisar la contratación de la obra, los avances y la interventoria que deben hacer estas. El ISVIMED ha determinado que el curso de acción que mejor respeta la Ley y la Constitución es el fortalecimiento del equipo de OPV existente que permita una dedicación exclusiva para las supervisiones, generando más eficiencia, transparente y de más utilidad para los fines esenciales del estado que la atomización de la supervisión en interventorías. Tramitar la modificación a la redacción del artículo 42 del decreto 2339 de 2013, para dar claridad al alcance del Isvimed con relación a la intervención y seguimeinto a los proyectos construidos a través de las OPVs, en los que se asignan subsidios municipales, la cual se hará a través de una supervisión interna contratada por el Instituto y no una interventoría externa. | H16: 2017-12-01 | I16: 2018-12-30 | J16: Garantizar la supervisión de las obras ejecutadas por OPV, en las que el Isvimed otorga subsidios a las familias que la conforman, fortaleciendo el control de los recursos asignados en el proyecto. | K16: 2018-12-30 | L16: Subdirección de dotacion y Subdirección Jurídica | M16: Rodrigo Alberto Rendón Cortés. Guiller Alvarez, lider de proyecto; Laura del Socorro Mesa. Paulina Rengifo, profesional especializada | P16: Seguimiento CR V2016 H3 | S16: Jurídica
A17: Auditoría Regular vigencia 2016 | B17: 2017-11-09 | C17: 5 | D17: No conclusión efectiva en El proyecto de vivienda Altos del Jardín Villa Jesusita II. El proyecto de vivienda Altos del Jardín-Villa Jesusita II desarrollado por la Organización Popular de Vivienda –OPV– Asociación de madres cabeza de familia para el desarrollo empresarial y la vivienda;–AMCF– está suspendido desde diciembre de 2014, porque la Licencia de construcción concedida mediante la Resolución C4-0175 de 25/01/2010 y prorrogada por la Resolución C4-0656 de 2013 se encuentra vencida, conjuntamente el lote en el cual se asienta el proyecto se encuentra embargado, debido a la insolvencia financiera del proyecto Villa Jesusita I, localizado en el barrio La Milagrosa, a cargo de la misma OPV. El proyecto comprende la ejecución 7 torres con 24 apartamentos cada una, según el 5° informe de interventoría estaban en ejecución a diciembre de 2014 las tres primeras torres con 28 aptos terminados, los cuales han sido ocupados y adecuados por miembros de esta OPV, sin embargo, no todos los tomadores son beneficiarios de los subsidios municipales de vivienda otorgados por El Instituto social de vivienda y hábitat de Medellín –ISVIMED–. A través de Alianza Fiduciaria SA., el ISVIMED ha pagado a la OPV –AMCF– $644.812.874 que corresponden con el avance de las tres primeras torres hasta diciembre de 2014; estos recursos provienen de los subsidios asignados por el Isvimed a 67 grupos familiares a través de los siguientes actos administrativos: Resoluciones N°1509/2012, 989/2013, 989/2013, 827/2013, 788/2013, 1181/2013, 0167/2014; como se aprecia en el cuadro N°9. Sin embargo, en la fecha de elaboración de este informe, el equipo auditor no vislumbra la posibilidad de avance del proyecto por parte del OPV; toda vez, que para continuar con la ejecución de este proyecto AMCAF debe ejecutar el urbanismo aprobado en la licencia de construcción otorgada mediante las resoluciones citadas el cual consiste en la ejecución de una vía urbana cuyo costo no está a su alcance. Es decir, AMCAF, además de cumplir con lo anteriormente descrito debe someter el proyecto a la consecución de una nueva Licencia de construcción acorde con la normatividad planteada en el Plan de Ordenamiento Territorial –Acuerdo 48 de 2014– Estos hechos evidencian una omisión en el control que debe ser ejercido por el Isvimed de acuerdo con el decreto 2339 de 21 de noviembre de 2013, el cual en el Artículo 42 establece que “el oferente elegido deberá acreditar la suscripción de contratos individuales con cada uno de los grupos familiares beneficiarios del subsidio municipal. En el contrato se establecerá que el administrador del subsidio-ISVIMED- ejercerá el control y seguimiento de la aplicación de los subsidios, directamente o a través de una persona contratada para el efecto. El costo de la interventoría será asumido por el Instituto Social de Vivienda y Hábitat de Medellín-ISVIMED-, sin afectar el subsidio municipal de construcción en sitio propio asignado a cada grupo familiar”. Con los recursos pagados, el ISVIMED no logró oportunamente el objetivo propuesto de brindar una solución de vivienda digna a 67 grupos familiares beneficiados por el subsidio municipal de vivienda, por consiguiente, El Instituto está incumpliendo con los principios de la gestión fiscal de Eficiencia y Eficacia definidos en la Ley 42 de 1993 –Artículo 8– en el sentido de "que la asignación de recursos sea la más conveniente para maximizar los resultados, que los resultados se logren de manera oportuna y guarden relación con los objetivos y metas", dado el compromiso que adquiere el Instituto Social de Vivienda y Hábitat de Medellín ISVIMED de recuperar el proyecto de vivienda para ser entregado a los beneficiarios del mismo, se levanta la incidencia fiscal y se deja como hallazgo administrativo, condicionado a que dicha recuperación se haga efectiva, pero que de no ser recuperado, acarreará el respectivo hallazgo fiscal, en los términos definidos en el artículo antes señalado, tasado en $644.812.874. (Ver Cuadro 9. Proyecto Altos del Jardín, del informe). | F17: Administrativa | G17: Conformar mesa de trabajo interna: Operará dentro del ISVIMED de manera institucional y su único objetivo será explorar la problemática de Altos del Jardín. Dentro de esta mesa participaran los subdirectores y el director del ISVIMED lo cual garantizará el poder decisorio de dicho mecanismo. Se busca que mediante la periodicidad de la mesa y el carácter gerencial de la misma, se puedan impulsar todas las acciones necesarias para salvaguardar los recursos públicos. La mesa tendrá como prioridad buscar soluciones, siempre dentro de la normatividad, para darle viabilidad del proyecto. La mesa también se encargará de hacer seguimiento continuo a la viabilidad del proyecto y a formular estrategias o planes de acciones contingentes que busquen garantizar la protección de los recursos públicos en caso de que el proyecto no pueda viabilizarse. | H17: 2017-12-01 | I17: 2019-12-31 | J17: Formular estrategias y planes de acción mediante los cuales el ISVIMED evaluará la viabilidad del proyecto y emitirá recomendaciones y requerimientos para la OPV según sea el caso, o en su defecto, formular la política del ISVIMED en caso de que el proyecto sea declarado inviable. | K17: 2019-12-31 | L17: Subdirección Poblacional; Subdirección de dotación y Subdirección Jurídica. | M17: Rodrigo Alberto Rendón Cortés; Laura del Socorro Mesa y Natalia Andrea Restrepo. | P17: Seguimiento CR V2016 H5.2 | S17: Dotación
G18: Integrar mesa de trabajo externa: mediante la mesa de trabajo externa el ISVIMED citará a las demás autoridades, y representantes de la OPV y de la comunidad con el fin de coadyuvar en aquellos procesos que dependan de la Alcaldía e Isvimed e involucrar a la administración Municipal para que actúe de manera conjunta y concertada para que el Municipio puede hacer pleno uso de toda sus atribuciones, a través de las diferentes dependencias, para poder efectivamente supervisar el avance de las obras y para poder mantener informado a los entes de control, representante legal y beneficiarios del proyecto Altos del Jaridín. | H18: 2017-12-01 | I18: 2018-12-31 | K18: 2018-12-31 | L18: Subdirección Poblacional; Subdirección de dotación y Subdirección Jurídica. | M18: Rodrigo Alberto Rendón Cortés; Laura del Socorro Mesa y Natalia Andrea Restrepo. | P18: Seguimiento CR V2016 H5.3 | S18: Dotación
G19: Asesoría técnica al proceso para la obtención de una nueva licencia de construcción. El ISVIMED citará de manera periódica a los representantes de la OPV para ayudarlos a formular los documentos técnicos necesarios para obtener una nueva licencia de construcción. Situación necesaria para adelantar la construcción del proyecto. Aunque el ISVIMED no puede tramitar ni intervenir directamente en la formulación del proyecto dado el carácter privado y autónomo de la OPV, dado el hecho de que los subsidios ya fueron asignados y que es deber del ISVIMED velar por la aplicación de los subsidios, la subdirección de dotación dispondrá de personal técnico quienes evaluaran y diagnosticaran la obra, y ayudaran a los ingenieros contratados por la OPV para realizar la formulación técnica de un proyecto constructivo para la obtención de la licencia en la respectiva curaduría. | H19: 2017-12-01 | I19: 2018-12-31 | J19: Supervisar la ejecución del proyecto, monitorear la viabilidad del mismo, y formular propuestas para que la OPV adopte las líneas de acción necesarias para solicitar una nueva licencia de construcción. | K19: 2018-12-31 | L19: Subdirección de dotación | M19: Rodrigo Alberto Rendón Cortés. | P19: Seguimiento CR V2016 H5.4 | S19: Dotación
A20: Auditoría Regular vigencia 2016 | B20: 2017-11-09 | C20: 6 | D20: En la revisión de los proyectos de vivienda nueva referenciados en el siguiente cuadro, se evidenció que a la fecha se encuentran 850 viviendas sin entregar, teniendo en cuenta que los proyectos están terminados completamente, algunos de ellos desde el año 2013, hecho este que fue corroborado luego de las visitas realizadas a dichos proyectos los días 12 y 13 de junio de 2017, por lo tanto, se ha estado invirtiendo gran cantidad de recursos en lo que respecta a vigilancia, gastos de servicios públicos y adicional a ello mantenimiento del inmueble al momento de su entrega.(ver cuadro 10 Proyectos de Vivienda Nueva evaluados, del informe). Es de anotar, que estos proyectos se encuentran enmarcados dentro del Programa de vivienda gratuita del gobierno nacional y del cual le fue adjudicado al Municipio de Medellín 10.000 viviendas nuevas, no obstante, si bien el Instituto Social de Vivienda y Hábitat de Medellín – ISVIMED ha enviado oficios de solicitud reiterativa con respecto a la modificación del contrato de compraventa suscrito entre ISVIMED y Fidubogotá, en los siguientes términos: “…La modificación de las respectivas promesas de compraventa consistirían en el valor y la forma de pago, pues en la misma se hace mención que FIDUCIARIA BOGOTÁ pagará por el valor de las viviendas 60 SMLMV y el ISVIMED aportará 10 SMLMV, razón por la cual al no aportar recursos el ISVIMED FIDUBOGOTÁ pagaría 70 SMLMV por el valor de las viviendas…”. Esto enmarcado para los siguientes proyectos de vivienda nueva, así: (Ver Cuadro 11. Proyectos de vivienda nueva). Sin embargo, cada oficio remitido tiene un periodo de seis meses de diferencia y a la fecha del proceso auditor no se tiene un pronunciamiento por parte del Gobierno Nacional, por lo que no es una gestión óptima para el fin que se busca, toda vez, que el artículo 14 de la Ley 1755 de 2015, el cual establece que: “Artículo 14. Términos para resolver las distintas modalidades de peticiones. Salvo norma legal especial y so pena de sanción disciplinaria, toda petición deberá resolverse dentro de los quince (15) días siguientes a su recepción. Estará sometida a término especial la resolución de las siguientes peticiones: 1. Las peticiones de documentos y de información deberán resolverse dentro de los diez (10) días siguientes a su recepción. Si en ese lapso no se ha dado respuesta al peticionario, se entenderá, para todos los efectos legales, que la respectiva solicitud ha sido aceptada y, por consiguiente, la administración ya no podrá negar la entrega de dichos documentos al peticionario, y como consecuencia las copias se entregarán dentro de los tres (3) días siguientes. 2. Las peticiones mediante las cuales se eleva una consulta a las autoridades en relación con las materias a su cargo deberán resolverse dentro de los treinta (30) días siguientes a su recepción…”. Por lo que, el ISVIMED está incurriendo en mayores costos del valor real de la vivienda, sin tener la autonomía para la entrega y asignación de estos bienes inmuebles, por lo que se vulnera el principio de la gestión fiscal de eficiencia configurándose un hallazgo administrativo. | F20: Administrativa | G20: La accion de mejora para la entrega de las 405 viviendas que aún estan pendientes, se hara considerando los siguientes aspectos asi: Técnico: Realizar mantenimiento de las viviendas que presentan producto no comforme a fin de adecuarlas para la entrega a sus beneficiarios. Jurídico: Seguimiento mensual con las notarias con acompañamiento del delegado de la Superintendencia de Notariado y Registro, en desarrollo del convenio No.130 de 2016, en donde se lleva a cabo la escrituración de las viviendas sin entregar. Social: Seguimiento y verificación mensual a los hogares que presentan novedades para que aporten los requisitos faltantes y que no permiten el proceso de asignación del subsidio municipal, escrituración y entrega. El seguimiento ayudará a identificar aquellos hogares que pasados tres meses no hayan cumplido con el total de requisitos, los mismos que serán remitidos a FONVIVIENDA para que allí, analicen la pertinencia de revocar el subsidio Nacional. Considerando que existen hogares que tienen subsidio asignado por el Gobierno nacional representado en 60 SMMLV, pero que no cumplen con los requisitos establecidos en el decreto 2339 de 2013, para otorgarles el subsidio municipal complementario equivalente a los 10 SMLMV restantes, se impulsará ante Fonvivienda y FIDUCIARIA BOGOTA, en calidad de vocera del Patrimonio Autónomo Matriz del programa Nacional de Vivienda gratuita los tramites necesarios para la asignacion de los subsdios Nacionales en un 100%. | H20: 2017-12-01 | I20: 2018-12-30 | J20: Mitigar las causas que dieron origen a la no entrega oportuna de los 405 apartamentos sin entregar de proyectos terminados identificados en la Auditoría Regular vigencia 2016 . | K20: 2018-12-30 | L20: Subdirección de Dotación de Vivienda y Hábitat Subdirección Jurídica Subdirección Poblacional | M20: Rodrigo Alberto Rendón Cortés Guiller Alvarez, lider de proyecto; Laura del Socorro Mesa. Paulina Rengifo, profesional especializada Natalia Andrea Restrepo. Jazmin Vasquez Vasquez, profesional universitaria. | P20: Seguimiento CR V2016 H6 | S20: Dotación
A21: Auditoría Regular vigencia 2016 | B21: 2017-11-09 | C21: 7 | D21: Revisada la documentación correspondiente al proyecto de vivienda nueva denominado “Montaña B8 y Mirador de la Cascada”, se evidenció las copias de las póliza de seguro de cumplimiento particular N°21-45-101106353 Anexo 5 expedida por Seguros del Estado S.A. de fecha 09/04/2014, vigencia: desde 26/04/2014 a 25/08/2017 y Anexo 7 cuya fecha de expedición fue 12/08/2014, vigencia: desde 26/04/2014 a 30/10/2017 en las cuales el párrafo “Nota” hace referencia a lo siguiente: “La vigencia del amparo de calidad del servicio será de tres (3) años contados a partir de la fecha de recibo de Informe Final. Beneficiario: Alianza Fiduciaria S.A. – Vocera del Fideicomiso Macroproyecto Pajarito PA2 – Tirol III”. Nota que es contraria con el proyecto al cual pertenece la ampliación de las pólizas expedidas, las cuales corresponden al proyecto de vivienda nueva antes referenciado, lo que conlleva a un incumplimiento de los Artículos 116 y 127 de Decreto Nacional No. 1510 de 2013, se corre el riesgo que en una eventual reclamación ante la empresa aseguradora, ésta evada la reclamación, ya que en la póliza no se encuentra aclarado el proyecto de vivienda que se adelanta y cuyas pólizas fueron expedidas y hacen parte del mismo, generando con ello un inadecuado control y verificación por parte del instituto y en la obligación que le asiste a éste para la aprobación de dichas pólizas, y el amparo que sobre las mismas se debe tener constituido en el evento de un siniestro o incumplimiento por parte de los responsables de la ejecución del proyecto, por lo que se estaría vulnerando el principio de la gestión fiscal de la eficiencia consagrado en el artículo 8 de la Ley 42 de 1993, configurándose con ello en un hallazgo administrativo. | F21: Administrativa | G21: Como acción de mejora se viene dando aplicación al INSTRUCTIVO PARA CONTROL DE PROYECTOS POR FIDUCIA I-GDS-03 - , en el que se determina que para proceder con la suscripción del acta de inicio entre las partes se debe contar con el formato F-GJ-07 - APROBACIÓN DE GARANTÍA, generando con ello control y verificación por parte del Instituto y mitigar así el riesgo que se pueda presentar ante una eventual reclamación. | H21: 2017-04-05 | I21: 2018-12-31 | J21: Mitigar el riesgo que se pueda presentar ante una eventual reclamación ante la empresa aseguradora, teniendo claro el proyecto de vivienda para el cual fue expedida la póliza. | K21: 2018-12-31 | L21: Subdirección Jurídica | M21: Laura Mesa Jaramillo Subdirector Jurídica | P21: Seguimiento CR V2016 H7 | S21: Jurídica
A22: Auditoría Regular vigencia 2016 | B22: 2017-11-09 | C22: 8 | D22: Una vez evaluada la documentación, que se encuentra en el archivo de la Entidad con respecto al proyecto de vivienda nueva denominado “Montaña B8 y Mirador de la Cascada”, se evidenció en el informe de programación N° 03 del 30 de diciembre de 2013 presentado por la interventoría del proyecto Gutiérrez Díaz y Cía. S.A., en la página 34, numeral 3.3 Sobrecostos del proyecto por incumplimiento de entregas de diseños definitivos y completos, donde se presenta la siguiente relación: (ver Cuadro 12. Sobrecostos del proyecto del informe). De acuerdo con el informe antes señalado, se presentan las siguientes conclusiones: • “Se puede establecer una clara responsabilidad de los atrasos a la no entrega a tiempo de los diseños o paquetes técnicos de las obras, lo que ha generado retrasos constantes en la ejecución de la misma. • Para el inicio de los trabajos programados en cualquier obra, se hace indispensable tener la información técnica (diseño, presupuesto, detalles constructivos, programación, etc.) en un 100% concluida y entregada al contratista en forma oportuna con todos los sellos y aprobación de las entidades públicas correspondientes. • Según la Cláusula Segunda, Inciso B Numeral 1 de la minuta del contrato de Fideicomiso en donde se establece que: “Suministrar en forma oportuna toda la información que sea necesaria para la ejecución de la obra (planos, especificaciones, diseños debidamente conciliados” a la fecha de este informe no se ha cumplido a cabalidad.” Por lo que esta condición ocasionó un incremento de los valores iniciales del proyecto y variaciones en el alcance físico de las obras, toda vez, que causó modificación o desplazamiento del sitio de trazado inicialmente propuesto para la formulación del proyecto, demoras en el plazo de entrega final de los diseños, al igual que generó actividades adicionales y obra extra no contempladas inicialmente, así mismo, la suspensión actual del proyecto, conllevando con ello a un mayor valor del mismo, incumpliendo con los términos establecidos en el numeral 4° del artículo 25 “Principio de Economía”, de la ley 80 de 1993, el Principio de Planeación concordante con el artículo 87 “Maduración de Proyectos” de la Ley 1474 de 2011, vulnerando con ello los principios de la gestión fiscal de economía, eficiencia y eficacia consagrados en el artículo 8 de la ley 42 de 1993, porque no se cumplió con los fines esenciales del Estado, lo que redunda en una entrega oportuna del proyecto de vivienda en beneficio de la comunidad a la cual le fueron asignados dichos subsidios, por lo tanto, se configura en un hallazgo administrativo con presunta incidencia disciplinaria y fiscal, tasado en $691.580.088. | F22: Disciplinaria y Fiscal | G22: Dentro de las acciones de mejora establecidas por el Instituto, se incorporo el M-GDS-05 - MANUAL DE ESTUDIOS Y DISEÑOS PARA PROYECTOS CONSTRUCTIVOS , el cual Establece una guía de estudios y diseños que compile los requerimientos técnicos, ambientales y sociales para garantizar el proceso de diseño de una forma mas integral, partiendo desde la planeación y estructuración de los proyectos habitacionales del programa de vivienda nueva hasta la aplicación de una metodología en la gestión del proyecto que permita su eficaz implementación y minimice reprocesos en su proceso constructivo, igualmente se determino contratar interventorías a los estudios y diseños. Se dará continuidad a la demanda que hoy se adelanta por parte del Isvimed, en contra de la firma CONSINSA RAMON H quien hizo los estudios y diseños de los proyectos Montaña B8 y Cascada. | H22: 2017-04-04 | I22: 2019-06-30 | J22: Garantizar que una vez se inicie el proceso de ejecución de los proyectos, se cuente con todos los insumos necesarios, evitando así, variaciones en los proyectos, los alcances físicos de las obras, y obras extras no contempladas inicialmente, definiendo las etapas de desarrollo para el diseño de los proyectos habitacionales, el alcance de cada estudio, identificando los productos mínimos que debe contener un proyecto habitacional desarrollado por el Instituto, e iniciar el proceso de selección y de contratación para la ejecución del la obra, una vez se cuente con las licencias de construcción. | K22: 2019-06-30 | L22: Subdirección de Dotación de Vivienda y Hábitat y Subdirección Jurídica | M22: Rodrigo Alberto Rendon Cortes; Laura del Socorro Mesa Jaramillo; Guiller Alexis Alvarez Moreno. | P22: Seguimiento CR V2016 H8 | S22: Dotación
A23: Auditoría Regular vigencia 2016 | B23: 2017-11-09 | C23: 9 | D23: El proceso de selección y la suscripción del contrato de obra se efectuaron sin disponer de los diseños, ni de la licencia de construcción correspondiente, estas omisiones en la planificación que a continuación se describen se evidenciaron en la revisión de la documentación suministrada por el ISVIMED (registros precontractuales e informes de la empresa de interventoría). En el Fideicomiso Macroproyecto Pajarito PA2 –Cucaracho posteriormente denominado Atardeceres–; suscrito el 17 de diciembre de 2012, entre el Instituto de Vivienda y Hábitat –ISVIMED-y Alianza Fiduciaria S.A, –con el objeto de que Alianza, como vocera del fideicomiso realice entre otras las siguientes actividades: a) Adelante el proceso de invitación, selección y contratación directa del diseño, la construcción y la interventoría según previa instrucción del ISVIMED” – El 17 de febrero de 2013 se suscribió con la empresa Coninsa Ramón H SA el contrato para la elaboración de los diseños , previamente, el 30 de octubre de 2012 se había efectuado el proceso de selección del contratista de obra, este contrato se firmó con la empresa Pórticos SA., el 21 de febrero de 2013; en esta misma fecha se abrió la convocatoria para la selección del contrato de interventoría, mediante la Invitación Privada 05 de 2013; en la que fue elegida la empresa Estructuras Interventoría y Proyectos–EIP Ltda. –, este contrato fue refrendado el 15 de abril de 2013. El acta de inicio tanto del contrato de obra, como el de interventoría se suscribieron el 23 de abril de 2013. Ahora bien, la licencia de construcción para el proyecto Cucaracho-Atardeceres fue concedida el 31 de mayo de 2013 mediante la Resolución C3-0234, es decir, la licencia de construcción fue otorgada en una fecha posterior a los procesos de selección y de contratación, tanto del contrato de obra, como el de interventoría. No obstante haberse establecido la fecha de inicio para el 23 de abril de 2013, los diseños definitivos fueron entregados el 29 de junio de 2013 por la empresa Coninsa Ramón H., por consiguiente, las actividades de construcción del proyecto comenzaron el 1 de julio de 2013, período durante el cual se generaron unos sobrecostos, tasados por la empresa de interventoría: Estructuras Interventoría Proyectos –EIP– Ltda., en $108.772.907. (Ver cuadro N°13) Otro aspecto, que guarda relación con lo anteriormente presentado es que el acta de cabida del proyecto levantada el 15 de julio de 2013, no fue posible firmarla, porque el proyecto en la Torre1 no cumplió con el retiro exigido en la Licencia de Construcción C3-0234; –el retiro en la obra es de 4,10m entre paramentos de la Torre1 con relación a la vía y según la Licencia debe ser de 5,0 m–, lo que obligó a efectuar variaciones al proyecto de vivienda. [ver cuardos No.13; 14 y 15 del informe]. Estas irregularidades en la planeación de este proyecto por parte de Alianza Fiduciaria, el ISVIMED y Coninsa Ramón H. se reflejaron en el desarrollo de la obra, puesto que retrasaron el logro del objetivo propuesto e incrementaron el valor del proyecto. Asimismo, evidencian una trasgresión del principio de la función administrativa de Economía en el sentido de que dicho principio “constituye una orientación para que el cumplimiento de los fines del Estado se proyecte buscando el mayor beneficio social al menor costo”. Este principio permite a su vez establecer una relación con los principios de la gestión fiscal de Eficiencia y Eficacia definidos en la Ley 42 de 1993 – Artículo 8°; La vigilancia de la gestión fiscal del Estado se fundamenta en la eficiencia, la economía, la eficacia, la equidad y la valoración de los costos ambientales, de tal manera que permita determinar en la administración, en un período determinado, que la asignación de recursos sea la más conveniente para maximizar sus resultados; que en igualdad de condiciones de calidad los bienes y servicios se obtengan al menor costo; que sus resultados se logren de manera oportuna y guarden relación con sus objetivos y metas”. Los sobrecostos en que se incurrió durante el período descrito entre el 23 de abril de 2013 y el 1 de julio de 2013 vulneran los principios de la gestión fiscal de Eficiencia y Eficacia, toda vez que el personal, tanto del contratista como de la interventoría estuvo dispuesto, sin embargo, la construcción del proyecto de vivienda Cucaracho-Atardeceres no se había iniciado por la falta de diseños definitivos. Estas acciones configuran un hallazgo administrativo con presunta incidencia fiscal por valor de $108.772.907 | F23: Disciplinaria y Fiscal | G23: Dentro de las acciones de mejora establecidas por el Instituto, se incorporo el M-GDS-05 - MANUAL DE ESTUDIOS Y DISEÑOS PARA PROYECTOS CONSTRUCTIVOS , el cual Establece una guía de estudios y diseños que compile los requerimientos técnicos, ambientales y sociales para garantizar el proceso de diseño de una forma mas integral, partiendo desde la planeación y estructuración de los proyectos habitacionales del programa de vivienda nueva hasta la aplicación de una metodología en la gestión del proyecto que permita su eficaz implementación y minimice reprocesos en su proceso constructivo, igualmente se determino contratar interventorías a los estudios y diseños. Se dará continuidad a la demanda que hoy se adelanta por parte del Isvimed, en contra de la firma CONSINSA RAMON H quien hizo los estudios y diseños del proyecto Atardeceres. | H23: 2017-04-04 | I23: 2019-06-30 | J23: Una vez se inicie el proceso de ejecución de los proyectos contar con todos los insumos necesarios, evitando así, variaciones en los proyectos, los alcances físicos de las obras, y obras extras no contempladas inicialmente, definiendo las etapas de desarrollo para el diseño de los proyectos habitacionales, el alcance de cada estudio, identificando los productos mínimos que debe contener un proyecto habitacional desarrollado por el Instituto, e iniciar el proceso de selección y de contratación para la ejecución del la obra, una vez se cuente con las licencias de construcción | K23: 2019-06-30 | L23: Subdirección de Dotación de Vivienda y Hábitat y Subdirección Jurídica | M23: Rodrigo Alberto Rendon Cortes; Laura del Socorro Mesa Jaramillo; Guiller Alexis Alvarez Moreno. | P23: Seguimiento CR V2016 H9 | S23: Dotación
A24: Auditoría Regular vigencia 2016 | B24: 2017-11-09 | C24: 10 | D24: Durante la evaluación de la documentación que soporta la ejecución de los diferentes programas que atiende el Instituto Social de Vivienda y Hábitat de Medellín - ISVIMED, en los expedientes que reposan en el archivo del Instituto, se evidenció la no existencia de algunos documentos que hacen parte de la trazabilidad de los procedimientos desarrollados por el Instituto, tales como: actas de pago, certificados, constancias y demás documentos que hacen parte del expediente, lo que impide una adecuada verificación de los mismos, generando con ello que se afecte la fidelidad de los programas y proyectos desarrollados por el Instituto y la claridad en el manejo de la información, además de un atraso en la labor de revisión de la información requerida para la evaluación correspondiente, por lo que no se está dando cumplimiento con los principios generales que rigen la función archivística establecidas en el artículo 4°de la Ley 594 de 2000, lo que se genera por debilidades de control que no permiten advertir oportunamente el problema, vulnerando con ello el principio de la gestión fiscal de eficiencia consagrado en el Artículo 8 de la ley 42 de 1993, por lo que se configura un hallazgo administrativo. | F24: Administrativa | G24: Designar en cada Subdirección y oficina, un funcionario de planta o contratista para que sirva de enlace de la gestión documental, para que conjuntamente con el personal del Archivo Central, apoye el cumplimiento normativo de la gestión documental en cada dependencia. | H24: 2017-12-11 | I24: 2018-12-31 | J24: Corregir las debilidades de control observadas por la no inclución de algunos documentops en los expedientes del archivo del Isvimed y que hacen parte de la trasabilidad de los procedimientos desarrollados por el Instittuto para dar cumplimiento a los principios generales que rigen la función archivística establecidas en el artículo 4°de la Ley 594 de 2000. | K24: 2018-12-31 | L24: Subdirección Administrativa y Financiera | M24: Cesar Castaño J Subdirección Administrativa y Financiera | P24: Seguimiento CR V2016 H10.1 | S24: Administrativo y Financiero
G25: Realizar auditorías de seguimiento cada tres meses por parte de Archivo Central, a los Archivos de Gestión, como medida de control para verificar el cumplimiento normativo en el proceso de organización de los expedientes. | H25: 2018-03-01 | I25: 2018-12-31 | K25: 2019-12-31 | P25: Seguimiento CR V2016 H10.2 | S25: Administrativo y Financiero
G26: Contratar personal suficiente e idoneo para intervenir el archivo pendiente, el cual debe contar con estudios como tecnólogo o técnico en archivística, gestión documental o similares, para la realización de las labores archivísticas en los documentos de Archivo Central y en los Archivos de Gestión. | H26: 2018-01-01 | I26: 31/12/2019 30/04/2020 | K26: 31/12/2019 30/04/2020 | P26: Seguimiento CR V2016 H10.3 | S26: Administrativo y Financiero
A27: Auditoría Regular vigencia 2016 | B27: 2017-11-09 | C27: 11 | D27: Hallazgo administrativo N°11 (Corresponde a la Observación No. 11 del Informe Preliminar) deficiencias en la ubicación y custodia del archivo del ISVIMED. Durante el desarrollo del proceso auditor se evidenció la ubicación del archivo general de la Entidad, el cual se encuentra desprotegido de toda custodia, toda vez, que cualquier persona puede acceder a él. Otro aspecto, que llama la atención es el sitio de destinación del archivo general del ISVIMED, ya que se encuentra en el sótano de la edificación, con el riesgo de inundación por parte de la quebrada aledaña a las instalaciones del Instituto, por otro lado, la tubería de desagüe sanitaria se encuentra expuesta y con el agravante que podría presentarse ruptura de la misma, que ocasionaría perdida de la información. Según concepto de la Corte Constitucional, en la cual se hace referencia a la custodia y conservación de los documentos públicos expone lo siguiente: (Se transcribe la norma). De acuerdo con lo antes indicado, el Instituto Social de Vivienda y Hábitat de Medellín – ISVIMED no cumple con lo establecido en el artículo 3° del Acuerdo 008 de 2014 del Archivo General de la Nación, el cual determina que: (Se transcribe la norma). En virtud de la norma antes citada y los riesgos que conlleva el inadecuado proceso de organización, conservación, uso y manejo de los documentos públicos, soporte documentario de los programas y proyectos adelantados por el Instituto Social de Vivienda, vulnerado con ello el principio de la gestión fiscal de eficiencia consagrado en artículo 8 de la 42 de 1993, por lo tanto, se configura un hallazgo administrativo. | F27: Administrativa | G27: Consecución de un espacio adecuado para ubicar el Archivo Central que cumpla con las especificaciones técnicas y de seguridad requeridas para la conservación y preservación de los documentos de la entidad. | H27: 2017-12-11 | I27: 31/12/2019 30/04/2020 | J27: Garantizar los espacios y las instalaciones necesarias para el correcto funcionamiento del archivo del Isvimed, teniendo en cuenta las especificaciones técnicas existentes sobre áreas de archivos. | K27: 31/12/2019 30/04/2020 | L27: Dirección, Subdirección Administrativa y Financiera | M27: Cesar Castaño J | P27: Seguimiento CR V2016 H11 | S27: Administrativo y Financiero
